Service Area,Service Division,Expense Type,Expense Code,Detailed Expense Type,Payment Date,Transaction Number,Amount Exc Vat,Supplier Name
Neighbourhood Services,Technical Services,Employees,040149,"Recruitment, Instruction and Training",01-Apr-2014,2727024,"1,260.00",ELECTRICAL CONTRACTORS ASSOCIATION.
Children and Adult Services,Children�s Services,Third Party Payments,440027,Other Third Party Payments,01-Apr-2014,2726224-941306,"1,177.05",REDACTED - PAYMENT TO INDIVIDUAL
Children and Adult Services,Children�s Services,Third Party Payments,440028,Other Third Party Payments,01-Apr-2014,2726267-941685,941.64,REDACTED - PAYMENT TO INDIVIDUAL
Children and Adult Services,Children�s Services,Third Party Payments,440027,Other Third Party Payments,01-Apr-2014,2726271-941528,"1,647.87",REDACTED - PAYMENT TO INDIVIDUAL
Children and Adult Services,Children�s Services,Third Party Payments,440027,Other Third Party Payments,01-Apr-2014,2726287-941246,638.91,REDACTED - PAYMENT TO INDIVIDUAL
Children and Adult Services,Children�s Services,Third Party Payments,440027,Other Third Party Payments,01-Apr-2014,2726288-941358,908.01,REDACTED - PAYMENT TO INDIVIDUAL
Children and Adult Services,Children�s Services,Third Party Payments,440027,Other Third Party Payments,01-Apr-2014,2726299-941415,840.75,REDACTED - PAYMENT TO INDIVIDUAL
Children and Adult Services,Children�s Services,Third Party Payments,440027,Other Third Party Payments,01-Apr-2014,2726310-941557,"1,647.87",REDACTED - PAYMENT TO INDIVIDUAL
Children and Adult Services,Children�s Services,Third Party Payments,440027,Other Third Party Payments,01-Apr-2014,2726315-941437,973.27,REDACTED - PAYMENT TO INDIVIDUAL
Children and Adult Services,Children�s Services,Third Party Payments,440015,Other Third Party Payments,01-Apr-2014,2726319-940902,"1,061.94",REDACTED - PAYMENT TO INDIVIDUAL
Children and Adult Services,Children�s Services,Third Party Payments,440027,Other Third Party Payments,01-Apr-2014,2726339-941477,"1,177.05",REDACTED - PAYMENT TO INDIVIDUAL
Children and Adult Services,Children�s Services,Third Party Payments,440027,Other Third Party Payments,01-Apr-2014,2726341-941455,571.71,REDACTED - PAYMENT TO INDIVIDUAL
Children and Adult Services,Children�s Services,Third Party Payments,440027,Other Third Party Payments,01-Apr-2014,2726348-941606,605.34,REDACTED - PAYMENT TO INDIVIDUAL
Children and Adult Services,Children�s Services,Third Party Payments,440027,Other Third Party Payments,01-Apr-2014,2726350-941643,"1,177.05",REDACTED - PAYMENT TO INDIVIDUAL
Children and Adult Services,Children�s Services,Third Party Payments,440027,Other Third Party Payments,01-Apr-2014,2726360-941673,840.75,REDACTED - PAYMENT TO INDIVIDUAL
Children and Adult Services,Children�s Services,Third Party Payments,440016,Other Third Party Payments,01-Apr-2014,2726364-940852,878.58,REDACTED - PAYMENT TO INDIVIDUAL
Children and Adult Services,Children�s Services,Third Party Payments,440016,Other Third Party Payments,01-Apr-2014,2726364-940853,878.58,REDACTED - PAYMENT TO INDIVIDUAL
Children and Adult Services,Children�s Services,Third Party Payments,440016,Other Third Party Payments,01-Apr-2014,2726364-940854,878.58,REDACTED - PAYMENT TO INDIVIDUAL
Children and Adult Services,Children�s Services,Third Party Payments,440027,Other Third Party Payments,01-Apr-2014,2726382-941427,605.34,REDACTED - PAYMENT TO INDIVIDUAL
Children and Adult Services,Children�s Services,Third Party Payments,440027,Other Third Party Payments,01-Apr-2014,2726384-941604,"1,647.87",REDACTED - PAYMENT TO INDIVIDUAL
Children and Adult Services,Children�s Services,Third Party Payments,440027,Other Third Party Payments,01-Apr-2014,2726396-941504,"1,177.05",REDACTED - PAYMENT TO INDIVIDUAL
Children and Adult Services,Children�s Services,Third Party Payments,440027,Other Third Party Payments,01-Apr-2014,2726401-941611,706.23,REDACTED - PAYMENT TO INDIVIDUAL
Children and Adult Services,Children�s Services,Third Party Payments,440027,Other Third Party Payments,01-Apr-2014,2726421-941170,"1,647.87",REDACTED - PAYMENT TO INDIVIDUAL
Children and Adult Services,Children�s Services,Third Party Payments,440027,Other Third Party Payments,01-Apr-2014,2726436-941164,"1,580.61",REDACTED - PAYMENT TO INDIVIDUAL
Children and Adult Services,Children�s Services,Third Party Payments,440029,Other Third Party Payments,01-Apr-2014,2726438-941151,510.07,REDACTED - PAYMENT TO INDIVIDUAL
Children and Adult Services,Children�s Services,Third Party Payments,440027,Other Third Party Payments,01-Apr-2014,2726441-941634,"1,647.87",REDACTED - PAYMENT TO INDIVIDUAL
Children and Adult Services,Children�s Services,Third Party Payments,440027,Other Third Party Payments,01-Apr-2014,2726451-941581,"1,143.42",REDACTED - PAYMENT TO INDIVIDUAL
Children and Adult Services,Children�s Services,Third Party Payments,440029,Other Third Party Payments,01-Apr-2014,2726467-941148,844.05,REDACTED - PAYMENT TO INDIVIDUAL
Children and Adult Services,Children�s Services,Third Party Payments,440027,Other Third Party Payments,01-Apr-2014,2726470-941209,"1,177.05",REDACTED - PAYMENT TO INDIVIDUAL
Children and Adult Services,Children�s Services,Third Party Payments,440028,Other Third Party Payments,01-Apr-2014,2726489-941686,"1,412.46",REDACTED - PAYMENT TO INDIVIDUAL
Children and Adult Services,Children�s Services,Third Party Payments,440029,Other Third Party Payments,01-Apr-2014,2726502-941150,"1,181.67",REDACTED - PAYMENT TO INDIVIDUAL
Children and Adult Services,Children�s Services,Third Party Payments,440027,Other Third Party Payments,01-Apr-2014,2726505-941221,571.71,REDACTED - PAYMENT TO INDIVIDUAL
Children and Adult Services,Children�s Services,Third Party Payments,440027,Other Third Party Payments,01-Apr-2014,2726506-941638,941.64,REDACTED - PAYMENT TO INDIVIDUAL
Children and Adult Services,Children�s Services,Third Party Payments,440027,Other Third Party Payments,01-Apr-2014,2726507-941476,"1,177.05",REDACTED - PAYMENT TO INDIVIDUAL
Children and Adult Services,Children�s Services,Third Party Payments,440027,Other Third Party Payments,01-Apr-2014,2726514-941331,"1,647.87",REDACTED - PAYMENT TO INDIVIDUAL
Children and Adult Services,Children�s Services,Third Party Payments,440027,Other Third Party Payments,01-Apr-2014,2726526-941507,706.23,REDACTED - PAYMENT TO INDIVIDUAL
Children and Adult Services,Children�s Services,Third Party Payments,440027,Other Third Party Payments,01-Apr-2014,2726529-941270,"1,647.87",REDACTED - PAYMENT TO INDIVIDUAL
Children and Adult Services,Children�s Services,Third Party Payments,440028,Other Third Party Payments,01-Apr-2014,2726543-941688,"1,345.20",REDACTED - PAYMENT TO INDIVIDUAL
Children and Adult Services,Children�s Services,Third Party Payments,440027,Other Third Party Payments,01-Apr-2014,2726545-941172,706.23,REDACTED - PAYMENT TO INDIVIDUAL
Children and Adult Services,Children�s Services,Third Party Payments,440027,Other Third Party Payments,01-Apr-2014,2726551-941690,"1,177.05",REDACTED - PAYMENT TO INDIVIDUAL
Children and Adult Services,Children�s Services,Third Party Payments,440027,Other Third Party Payments,01-Apr-2014,2726579-941518,706.23,REDACTED - PAYMENT TO INDIVIDUAL
Children and Adult Services,Children�s Services,Third Party Payments,440027,Other Third Party Payments,01-Apr-2014,2726592-941590,"1,177.05",REDACTED - PAYMENT TO INDIVIDUAL
Children and Adult Services,Children�s Services,Third Party Payments,440027,Other Third Party Payments,01-Apr-2014,2726654-941672,"1,647.87",REDACTED - PAYMENT TO INDIVIDUAL
Children and Adult Services,Children�s Services,Third Party Payments,440027,Other Third Party Payments,01-Apr-2014,2726682-941601,"1,177.05",REDACTED - PAYMENT TO INDIVIDUAL
Children and Adult Services,Children�s Services,Third Party Payments,440027,Other Third Party Payments,01-Apr-2014,2726704-941279,840.75,REDACTED - PAYMENT TO INDIVIDUAL
Children and Adult Services,Children�s Services,Third Party Payments,440027,Other Third Party Payments,01-Apr-2014,2726706-941334,"1,106.16",REDACTED - PAYMENT TO INDIVIDUAL
Children and Adult Services,Children�s Services,Third Party Payments,440029,Other Third Party Payments,01-Apr-2014,2726709-941153,787.78,REDACTED - PAYMENT TO INDIVIDUAL
Children and Adult Services,Children�s Services,Third Party Payments,440027,Other Third Party Payments,01-Apr-2014,2726715-941288,706.23,REDACTED - PAYMENT TO INDIVIDUAL
Children and Adult Services,Children�s Services,Third Party Payments,440028,Other Third Party Payments,01-Apr-2014,2726723-941701,874.38,REDACTED - PAYMENT TO INDIVIDUAL
Children and Adult Services,Children�s Services,Third Party Payments,440027,Other Third Party Payments,01-Apr-2014,2726726-941570,"1,647.87",REDACTED - PAYMENT TO INDIVIDUAL
Children and Adult Services,Children�s Services,Third Party Payments,440027,Other Third Party Payments,01-Apr-2014,2726728-941421,706.23,REDACTED - PAYMENT TO INDIVIDUAL
Children and Adult Services,Children�s Services,Third Party Payments,440027,Other Third Party Payments,01-Apr-2014,2726731-941212,"1,647.87",REDACTED - PAYMENT TO INDIVIDUAL
Children and Adult Services,Children�s Services,Third Party Payments,440027,Other Third Party Payments,01-Apr-2014,2726732-941568,"1,109.79",REDACTED - PAYMENT TO INDIVIDUAL
Children and Adult Services,Children�s Services,Third Party Payments,440027,Other Third Party Payments,01-Apr-2014,2726749-941565,"1,008.90",REDACTED - PAYMENT TO INDIVIDUAL
Children and Adult Services,Children�s Services,Third Party Payments,440016,Other Third Party Payments,01-Apr-2014,2726750-941043,907.20,REDACTED - PAYMENT TO INDIVIDUAL
Children and Adult Services,Children�s Services,Third Party Payments,440027,Other Third Party Payments,01-Apr-2014,2726755-941641,"1,008.90",REDACTED - PAYMENT TO INDIVIDUAL
Children and Adult Services,Children�s Services,Third Party Payments,440027,Other Third Party Payments,01-Apr-2014,2726759-941584,"1,647.87",REDACTED - PAYMENT TO INDIVIDUAL
Children and Adult Services,Children�s Services,Third Party Payments,440027,Other Third Party Payments,01-Apr-2014,2726761-941663,"1,311.57",REDACTED - PAYMENT TO INDIVIDUAL
Children and Adult Services,Children�s Services,Third Party Payments,440027,Other Third Party Payments,01-Apr-2014,2726763-941621,504.45,REDACTED - PAYMENT TO INDIVIDUAL
Children and Adult Services,Children�s Services,Third Party Payments,440027,Other Third Party Payments,01-Apr-2014,2726763-941622,504.45,REDACTED - PAYMENT TO INDIVIDUAL
Children and Adult Services,Children�s Services,Third Party Payments,440028,Other Third Party Payments,01-Apr-2014,2726764-941675,714.82,REDACTED - PAYMENT TO INDIVIDUAL
Children and Adult Services,Children�s Services,Third Party Payments,440027,Other Third Party Payments,01-Apr-2014,2726773-941616,908.01,REDACTED - PAYMENT TO INDIVIDUAL
Children and Adult Services,Children�s Services,Third Party Payments,440027,Other Third Party Payments,01-Apr-2014,2726777-941258,"1,177.05",REDACTED - PAYMENT TO INDIVIDUAL
Regeneration & Economic Development,Transport and Contracted Services,Creditors,952025,Creditor-private street works,01-Apr-2014,2726794-RED-03-2014-264,"1,089.91",ABLE CONSTRUCTION LTD.
Assistant Chief Executive,Policy & Communications Division,Supplies and Services,332029,"Printing, Stationery and Gen Off Exps",01-Apr-2014,2726797-0000047439,"18,267.15",ACORN WEB OFFSET LTD.
Children and Adult Services,Education,Third Party Payments,440999,Other Third Party Payments,01-Apr-2014,2726801-INV01917,"2,880.00",ACUMEN COMMUNITY ENTERPRISE DEVELOPMENT TRUST LTD.
Neighbourhood Services,Technical Services,Supplies and Services,304221,Equipment and Materials,01-Apr-2014,2726804-19440050,"3,025.60",AGGREGATE INDUSTRIES UK LTD.
Neighbourhood Services,Technical Services,Supplies and Services,304221,Equipment and Materials,01-Apr-2014,2726804-19446197,518.65,AGGREGATE INDUSTRIES UK LTD.
Neighbourhood Services,Technical Services,Supplies and Services,304221,Equipment and Materials,01-Apr-2014,2726805-19440048,"1,157.61",AGGREGATE INDUSTRIES UK LTD.
Neighbourhood Services,Technical Services,Supplies and Services,304221,Equipment and Materials,01-Apr-2014,2726805-19440051,870.48,AGGREGATE INDUSTRIES UK LTD.
Neighbourhood Services,Technical Services,Supplies and Services,304221,Equipment and Materials,01-Apr-2014,2726805-19446198,585.04,AGGREGATE INDUSTRIES UK LTD.
Neighbourhood Services,Technical Services,Supplies and Services,304221,Equipment and Materials,01-Apr-2014,2726805-19446199,629.92,AGGREGATE INDUSTRIES UK LTD.
Neighbourhood Services,Technical Services,Supplies and Services,304221,Equipment and Materials,01-Apr-2014,2726805-19452894,"2,166.22",AGGREGATE INDUSTRIES UK LTD.
Neighbourhood Services,Culture & Sport,Supplies and Services,384540,Miscellaneous Expenses,01-Apr-2014,2726807-222,810.00,AHA DISTRIBUTION LTD.
Regeneration & Economic Development,Transport and Contracted Services,Third Party Payments,440999,Other Third Party Payments,01-Apr-2014,2726810-0900000144-012,"4,709.70",AIRWAVE SOLUTIONS LTD.
Children and Adult Services,Children�s Services,Supplies and Services,332047,"Printing, Stationery and Gen Off Exps",01-Apr-2014,2726812-148052,910.00,ALBANY CONTRACT FURNITURE.
Neighbourhood Services,Direct Services,Third Party Payments,430100,Rendered by Private Contractors,01-Apr-2014,2726814-428,"2,400.00",ALL SEASONS ARBORISTS.
Children and Adult Services,Commissioning inc Supporting People,Premises,145050,Cleaning and Domestic Supplies,01-Apr-2014,2726821-52127,"32,537.70",ANLABY OFFICE CLEANING SERVICES LTD.
Neighbourhood Services,Culture & Sport,Supplies and Services,312013,"Newspapers, Books and Periodicals",01-Apr-2014,2726838-4127665,511.23,ASKEWS & HOLTS LIBRARY SERVICES LTD.
Regeneration & Economic Development,Economic Development and Housing,Cap Exp on Grants & Other Financial Assistance (REFCUS),918401,Capital grants,01-Apr-2014,2726847-RED-03-2014-234,"2,098.00",BAINBRIDGE ENTERPRISES LTD.
Dedicated Schools Grant,Dedicated Schools Grant,Third Party Payments,410037,Rendered by Other Local Authorities,01-Apr-2014,2726849-0000000031,"3,809.17",BARBARA PRIESTMAN ACADEMY.
Dedicated Schools Grant,Dedicated Schools Grant,Supplies and Services,384199,Miscellaneous Expenses,01-Apr-2014,2726869-TJ-20/1/14-10/4/14,552.00,BLUE SKY CHILDCARE.
Neighbourhood Services,Direct Services,Supplies and Services,324117,Provisions,01-Apr-2014,2726876-41580131,512.15,BRAKE BROS FOODSERVICE LTD.
RED HRA,HRA Capital,Construction Work,908105,Construction work,01-Apr-2014,2726883-969931,"7,222.40",BRITISH TELECOMMUNICATIONS PLC.
Regeneration & Economic Development,Economic Development and Housing,Supplies and Services,338002,Services,01-Apr-2014,2726901-93242683,"1,000.00",CAPITA PROPERTY & INFRASTRUCTURE LTD.
Children and Adult Services,Education,Supplies and Services,342007,Computers and Communications,01-Apr-2014,2726903-40190,"17,543.00",CAREER VISION LTD.
Corporate Resources,I.C.T. Services,Supplies and Services,342215,Computers and Communications,01-Apr-2014,2726906-4471,"2,700.00",CAREWORKS (IRELAND) LTD.
Neighbourhood Services,Technical Services,Stock,926900,Stock in hand-Inventory system,01-Apr-2014,2726907-851400753,550.00,CARLISLE CONSTRUCTION MATERIALS LTD.
Neighbourhood Services,Direct Services,Supplies and Services,304221,Equipment and Materials,01-Apr-2014,2726909-447844,"1,560.00",CARRS BILLINGTON AGRICULTURE.
Children and Adult Services,Children�s Services,Employees,080025,Agency Staff,01-Apr-2014,2726917-2280294,787.50,CELSIAN.
Children and Adult Services,Children�s Services,Employees,080025,Agency Staff,01-Apr-2014,2726917-2281683,"1,942.50",CELSIAN.
Neighbourhood Services,Direct Services,Supplies and Services,304221,Equipment and Materials,01-Apr-2014,2726919-9950/01583496,"3,963.80",CERAMIC TILE DISTRIBUTORS (CTD).
Neighbourhood Services,Technical Services,Stock,926900,Stock in hand-Inventory system,01-Apr-2014,2726919-9950/01583525,"1,498.50",CERAMIC TILE DISTRIBUTORS (CTD).
Neighbourhood Services,Culture & Sport,Supplies and Services,338047,Services,01-Apr-2014,2726921-1403/2,"2,120.72",CHANTEL MCGREGOR.
Neighbourhood Services,Culture & Sport,Construction Work,908105,Construction work,01-Apr-2014,2726930-667,"10,372.05",CHRISTOPHER HENRY T/A WILDWOOD CUMBRIA.
Children and Adult Services,Children�s Services,Transport,230005,Contract Hire,01-Apr-2014,2726943-CLUB14012E,505.00,CLUBMAN CABS.
Children and Adult Services,Children�s Services,Third Party Payments,486044,Service Level Agreements,01-Apr-2014,2726945-3910002103,"3,187.13",CO DURHAM & DARLINGTON NHS FOUNDATION TRUST.
Children and Adult Services,Children�s Services,Third Party Payments,479101,Purchase of Care,01-Apr-2014,2726945-3910003213,"2,747.68",CO DURHAM & DARLINGTON NHS FOUNDATION TRUST.
Corporate Resources,Human Resources,Third Party Payments,479111,Purchase of Care,01-Apr-2014,2726945-3910003257,"1,147.15",CO DURHAM & DARLINGTON NHS FOUNDATION TRUST.
Children and Adult Services,Head of Adults,Supplies and Services,338370,Services,01-Apr-2014,2726945-3910003369,"53,719.97",CO DURHAM & DARLINGTON NHS FOUNDATION TRUST.
Neighbourhood Services,Direct Services,Supplies and Services,338066,Services,01-Apr-2014,2726946-F44962-00688,585.00,CO-OPERATIVE FUNERAL CARE.
Regeneration & Economic Development,"Spatial Policy, Planning, Assets & Environment",Supplies and Services,338032,Services,01-Apr-2014,2726961-961,"1,000.00",COUNTRYSIDE TRAINING PARTNERSHIP.
Children and Adult Services,Education,Supplies and Services,338027,Services,01-Apr-2014,2726969-FEB2014,"1,925.00",CRICHTON CONSULTANCY.
Regeneration & Economic Development,Economic Development and Housing,Cap Exp on Grants & Other Financial Assistance (REFCUS),918401,Capital grants,01-Apr-2014,2726981-RED-03-2014-233,"6,581.40",DANDY EVENTS & PARTY SPECIALISTS.
Children and Adult Services,Children�s Services,Supplies and Services,384362,Miscellaneous Expenses,01-Apr-2014,2726990-334,600.00,DEL BUONO LTD.
Corporate Resources,I.C.T. Services,Stock,926900,Stock in hand-Inventory system,01-Apr-2014,2726991-7402104788,"3,290.00",DELL COMPUTER CORPORATION LTD.
Neighbourhood Services,Direct Services,Supplies and Services,304221,Equipment and Materials,01-Apr-2014,2726996-C004355A,"1,185.00",DESIGNPLAN LIGHTING LTD.
RED HRA,HRA Capital,Construction Work,908105,Construction work,01-Apr-2014,2727017-194498,602.50,EDMUNDSON ELECTRICAL LTD.
Children and Adult Services,Education,Supplies and Services,372009,Subscriptions,01-Apr-2014,2727021-EDU12650,"4,999.00",EDUFOCUS LTD.
RED HRA,HRA Capital,Construction Work,908105,Construction work,01-Apr-2014,2727029-0000126147,994.84,ENVIROVENT LTD.
Children and Adult Services,Planning & Service Strategy,Supplies and Services,384540,Miscellaneous Expenses,01-Apr-2014,2727032-SINV00003147,"1,000.00",EXTERION MEDIA.
Neighbourhood Services,Direct Services,Premises,125009,Rents,01-Apr-2014,2727039-137,"12,500.00",FINKLEGATE PROPERTIES LTD.
Neighbourhood Services,Projects and Business services,Third Party Payments,430120,Rendered by Private Contractors,01-Apr-2014,2727040-CTIN06416841,"2,318.30",FINNING (UK) LTD.
Neighbourhood Services,Projects and Business services,Third Party Payments,430120,Rendered by Private Contractors,01-Apr-2014,2727040-CTIN06416842,"3,453.20",FINNING (UK) LTD.
Children and Adult Services,Planning & Service Strategy,Supplies and Services,338089,Services,01-Apr-2014,2727042-516-21/10/13,"1,625.00",FIRST IN TRAINING LTD.
Children and Adult Services,Planning & Service Strategy,Supplies and Services,338089,Services,01-Apr-2014,2727042-526,"2,000.00",FIRST IN TRAINING LTD.
Children and Adult Services,Children�s Services,Supplies and Services,340001,Postages,01-Apr-2014,2727046-CAS-03-2014-138,"1,000.00",FP TELESET.
Neighbourhood Services,Technical Services,Stock,926900,Stock in hand-Inventory system,01-Apr-2014,2727049-1/380980,515.90,FRED WILLIAMSON & SONS LTD.
Children and Adult Services,Commissioning inc Supporting People,Employees,040001,"Recruitment, Instruction and Training",01-Apr-2014,2727059-16271,"6,725.00",GATENBY SANDERSON LTD.
Regeneration & Economic Development,Transport and Contracted Services,Creditors,952210,Creditor - Joint Authority Group - Highways,01-Apr-2014,2727064-98000311,"65,000.00",GEOPLACE LLP.
Neighbourhood Services,Culture & Sport,Supplies and Services,332047,"Printing, Stationery and Gen Off Exps",01-Apr-2014,2727066-72767,"1,211.83",GLADSTONE MRM LTD.
Neighbourhood Services,Technical Services,Supplies and Services,338027,Services,01-Apr-2014,2727068-BGPP0125/040,"4,472.24",GLEEDS ADVISORY LTD.
Children and Adult Services,Children�s Services,Supplies and Services,384641,Miscellaneous Expenses,01-Apr-2014,2727078-2921,792.00,GREEN LANE NURSERY & CHILDCARE CENTRE.
Children and Adult Services,Children�s Services,Supplies and Services,384302,Miscellaneous Expenses,01-Apr-2014,2727083-9535,795.20,GROUNDWORK NORTH EAST.
Neighbourhood Services,Direct Services,Third Party Payments,430100,Rendered by Private Contractors,01-Apr-2014,2727084-J4221,"1,240.00",GROVE REED.
Children and Adult Services,Head of Adults,Premises,125009,Rents,01-Apr-2014,2727087-2400-060595,"3,297.26",GVA GRIMLEY LLP.
Neighbourhood Services,Direct Services,Supplies and Services,304221,Equipment and Materials,01-Apr-2014,2727091-SIN350212,"1,347.05",HANDICARE ACCESSIBILITY LTD.
Neighbourhood Services,Technical Services,Supplies and Services,304221,Equipment and Materials,01-Apr-2014,2727099-SIN7039015,536.00,HCS DRAIN SERVICES LTD.
Neighbourhood Services,Technical Services,Third Party Payments,430100,Rendered by Private Contractors,01-Apr-2014,2727099-SIN7039092,"2,379.25",HCS DRAIN SERVICES LTD.
Neighbourhood Services,Technical Services,Supplies and Services,304221,Equipment and Materials,01-Apr-2014,2727099-SIN7039095,569.50,HCS DRAIN SERVICES LTD.
Regeneration & Economic Development,Transport and Contracted Services,Supplies and Services,338099,Services,01-Apr-2014,2727106-210214,530.00,HISTRIONICS.
Neighbourhood Services,Direct Services,Premises,115125,Repairs to Grounds,01-Apr-2014,2727109-B33/0064719,837.36,HOWDENS JOINERY LTD.
Neighbourhood Services,Direct Services,Premises,115125,Repairs to Grounds,01-Apr-2014,2727109-B33/0065208,691.46,HOWDENS JOINERY LTD.
Neighbourhood Services,Direct Services,Premises,115125,Repairs to Grounds,01-Apr-2014,2727109-B33/0065209,766.49,HOWDENS JOINERY LTD.
Neighbourhood Services,Direct Services,Premises,115125,Repairs to Grounds,01-Apr-2014,2727109-B33/0065313,"1,023.86",HOWDENS JOINERY LTD.
Neighbourhood Services,Culture & Sport,Premises,125009,Rents,01-Apr-2014,2727114-6964,"36,141.25",IMPALA ESTATES LTD.
Children and Adult Services,Education,Construction Work,908105,Construction work,01-Apr-2014,2727118-DURH/0475,"174,945.00",INSPIREDSPACES DURHAM LTD.
Children and Adult Services,Education,Construction Work,908105,Construction work,01-Apr-2014,2727118-DURH/0476,"41,538.24",INSPIREDSPACES DURHAM LTD.
Neighbourhood Services,Technical Services,Stock,926900,Stock in hand-Inventory system,01-Apr-2014,2727119-441766,922.88,INSTARMAC GROUP PLC.
Neighbourhood Services,Technical Services,Third Party Payments,460151,Contract Payments,01-Apr-2014,2727119-441943,735.28,INSTARMAC GROUP PLC.
Neighbourhood Services,Technical Services,Stock,926900,Stock in hand-Inventory system,01-Apr-2014,2727119-442263,"1,845.76",INSTARMAC GROUP PLC.
Regeneration & Economic Development,Economic Development and Housing,Cap Exp on Grants & Other Financial Assistance (REFCUS),918401,Capital grants,01-Apr-2014,2727130-RED-03-2014-232,"1,935.00",JACKSON`S TAXI.
Regeneration & Economic Development,Economic Development and Housing,Supplies and Services,384700,Miscellaneous Expenses,01-Apr-2014,2727134-RED-03-2014-177,"1,000.00",JN STRAUGHAN & CO.
Children and Adult Services,Education,Supplies and Services,338027,Services,01-Apr-2014,2727136-30,"1,750.00",JOHN RYMASZEWSKI.
Neighbourhood Services,Technical Services,Stock,926900,Stock in hand-Inventory system,01-Apr-2014,2727141-00000403,995.40,JP MATERIALS & PLANT HIRE LTD.
Neighbourhood Services,Direct Services,Supplies and Services,304221,Equipment and Materials,01-Apr-2014,2727143-CNI18784/D,"3,641.63",JT DOVE LTD.
Neighbourhood Services,Direct Services,Supplies and Services,304221,Equipment and Materials,01-Apr-2014,2727143-CNI18874/D,"3,641.63",JT DOVE LTD.
Neighbourhood Services,Direct Services,Supplies and Services,304221,Equipment and Materials,01-Apr-2014,2727143-CNI18875/D,"2,691.64",JT DOVE LTD.
Neighbourhood Services,Technical Services,Supplies and Services,304221,Equipment and Materials,01-Apr-2014,2727153-9030746792,599.45,LAFARGE TARMAC TRADING LTD.
Neighbourhood Services,Technical Services,Supplies and Services,304221,Equipment and Materials,01-Apr-2014,2727153-9030773865,836.57,LAFARGE TARMAC TRADING LTD.
Neighbourhood Services,Technical Services,Supplies and Services,304221,Equipment and Materials,01-Apr-2014,2727153-9030773868,"2,674.98",LAFARGE TARMAC TRADING LTD.
Neighbourhood Services,Technical Services,Supplies and Services,304221,Equipment and Materials,01-Apr-2014,2727153-9030791050,638.80,LAFARGE TARMAC TRADING LTD.
Neighbourhood Services,Direct Services,Transport,210057,Repair and Maintenance of Vehicles,01-Apr-2014,2727161-237181,"1,278.17",LEENGATE INDUSTRIAL & WELDING SUPPLIES (NORTH EAST) LTD.
Children and Adult Services,Education,Supplies and Services,338094,Services,01-Apr-2014,2727163-18002339,"1,020.00",LEISURE IN THE COMMUNITY LTD.
Neighbourhood Services,Culture & Sport,Supplies and Services,384700,Miscellaneous Expenses,01-Apr-2014,2727164-NEI-EXP,"6,500.00",LEISUREWORKS.
Children and Adult Services,Commissioning inc Supporting People,Third Party Payments,470101,Purchase of Care,01-Apr-2014,2727165-R1NVTP/00306155,"4,047.23",LEONARD CHESHIRE DISABILITY.
Neighbourhood Services,Culture & Sport,Supplies and Services,338047,Services,01-Apr-2014,2727170-10147155,"1,383.38",LIONS GATE UK LTD.
Neighbourhood Services,Culture & Sport,Supplies and Services,338047,Services,01-Apr-2014,2727170-10147156,828.33,LIONS GATE UK LTD.
Assistant Chief Executive,Partnerships & Community Engagement Div.,Transfer Payments,525030,Other,01-Apr-2014,2727172,"3,000.00",LITTLE STARS EARLY YEARS.
Children and Adult Services,Public Health,Third Party Payments,460803,Contract Payments,01-Apr-2014,2727174-NES2013/2014,"1,200.00",LLOYDS PHARMACY.
Neighbourhood Services,Technical Services,Stock,926900,Stock in hand-Inventory system,01-Apr-2014,2727176-10477,"1,222.00",LOGIC STREET & PARK FURNITURE LTD.
Neighbourhood Services,Technical Services,Supplies and Services,304252,Equipment and Materials,01-Apr-2014,2727179-90515,721.00,LORD TECHNICAL LTD.
Children and Adult Services,Public Health,Third Party Payments,460803,Contract Payments,01-Apr-2014,2727180-FQL/NRT/1113,926.85,M WHITFIELD LTD.
Neighbourhood Services,Culture & Sport,Supplies and Services,312013,"Newspapers, Books and Periodicals",01-Apr-2014,2727181-PF504,"11,989.49",MAGNA LARGE PRINT BOOKS.
Neighbourhood Services,Culture & Sport,Supplies and Services,312013,"Newspapers, Books and Periodicals",01-Apr-2014,2727181-PF505,"4,052.77",MAGNA LARGE PRINT BOOKS.
Children and Adult Services,Education,Supplies and Services,384199,Miscellaneous Expenses,01-Apr-2014,2727182-P075,"4,586.90",MALL & CO.
Neighbourhood Services,Direct Services,Supplies and Services,324117,Provisions,01-Apr-2014,2727183-219243,"1,365.20",MALTON FOODS LTD.
Neighbourhood Services,Direct Services,Premises,108099,Service Repairs and Maintenance,01-Apr-2014,2727186-39436,504.00,MARIAN DOORS & SHUTTERS.
RED HRA,HRA Centrally Managed,Creditors,952184,Creditor-tenants contents insurance,01-Apr-2014,2727188-6312716,"3,102.91",MARSH LTD UK.
Regeneration & Economic Development,Economic Development and Housing,Supplies and Services,384199,Miscellaneous Expenses,01-Apr-2014,2727193-PSI-0000873,500.00,MEDIAWORKS UK LTD.
Regeneration & Economic Development,Economic Development and Housing,Third Party Payments,440999,Other Third Party Payments,01-Apr-2014,2727197-6285453,"60,000.00",MIDDLESBROUGH BOROUGH COUNCIL.
Neighbourhood Services,Culture & Sport,Supplies and Services,304221,Equipment and Materials,01-Apr-2014,2727198-140233,"1,341.50",MIKE AYRES DESIGN LTD.
Regeneration & Economic Development,Economic Development and Housing,Cap Exp on Grants & Other Financial Assistance (REFCUS),918401,Capital grants,01-Apr-2014,2727207-RED-03-2014-226,"10,477.50",REDACTED - PAYMENT TO INDIVIDUAL
Children and Adult Services,Children�s Services,Supplies and Services,364305,Grants to Voluntary Organisations,01-Apr-2014,2727214-CAS-03-2014-182,"1,661.99",REDACTED - PAYMENT TO INDIVIDUAL
Regeneration & Economic Development,Economic Development and Housing,Cap Exp on Grants & Other Financial Assistance (REFCUS),918401,Capital grants,01-Apr-2014,2727218-RED-03-2014-231,"1,837.00",MTC CONSTRUCTION LTD.
Corporate Resources,Legal & Democratic Services,Supplies and Services,352001,Conference Expenses,01-Apr-2014,2727226-39769,930.00,NATIONAL ASSOCIATION OF PENSION FUNDS LTD.
Children and Adult Services,Children�s Services,Supplies and Services,340001,Postages,01-Apr-2014,2727231-CAS-03-2014-135,"1,000.00",NEOPOST LTD CREDIFON RCB ACCOUNT.
Neighbourhood Services,Culture & Sport,Supplies and Services,340001,Postages,01-Apr-2014,2727231-NEI-HCL,"4,000.00",NEOPOST LTD CREDIFON RCB ACCOUNT.
Regeneration & Economic Development,Economic Development and Housing,Cap Exp on Grants & Other Financial Assistance (REFCUS),918401,Capital grants,01-Apr-2014,2727232-RED-03-2014-185,"4,873.00",NEW AGE PLUMBING & HEATING SERVICES.
Neighbourhood Services,Direct Services,Construction Work,908105,Construction work,01-Apr-2014,2727233-061890,507.50,NEW ROW FARM NURSERIES.
Neighbourhood Services,Direct Services,"Vehicles, Equipment, Furniture and Fittings",912529,Purchase-equipment,01-Apr-2014,2727233-061961,"2,900.00",NEW ROW FARM NURSERIES.
Regeneration & Economic Development,Economic Development and Housing,Supplies and Services,377015,County Durham Development,01-Apr-2014,2727235-5664,"14,000.00",NEWCASTLE GATESHEAD INITIATIVE.
Children and Adult Services,Education,Third Party Payments,440999,Other Third Party Payments,01-Apr-2014,2727241-2A,"3,184.60",NIGEL BROUGH T/A BESPOKE TRAINING SOLUTIONS LTD.
Neighbourhood Services,Technical Services,Third Party Payments,460351,Contract Payments,01-Apr-2014,2727255-031208,574.04,NORTHERN DISPOSAL SERVICES LTD.
Assistant Chief Executive,Partnerships & Community Engagement Div.,Premises,135005,Water Services,01-Apr-2014,2727260-102302420071004,862.67,NORTHUMBRIAN WATER LTD.
Assistant Chief Executive,Partnerships & Community Engagement Div.,Premises,135005,Water Services,01-Apr-2014,2727260-102302420080004,597.05,NORTHUMBRIAN WATER LTD.
Regeneration & Economic Development,Transport and Contracted Services,Premises,135005,Water Services,01-Apr-2014,2727260-31075594001X006,762.50,NORTHUMBRIAN WATER LTD.
Regeneration & Economic Development,Transport and Contracted Services,Premises,135005,Water Services,01-Apr-2014,2727260-314999810010004,762.50,NORTHUMBRIAN WATER LTD.
Regeneration & Economic Development,Transport and Contracted Services,Premises,135005,Water Services,01-Apr-2014,2727260-31499981002X002,762.50,NORTHUMBRIAN WATER LTD.
Neighbourhood Services,Technical Services,Construction Work,908203,Capital - Public Utilities - Water Services,01-Apr-2014,2727260-DF91305139,"11,784.24",NORTHUMBRIAN WATER LTD.
Regeneration & Economic Development,Economic Development and Housing,Cap Exp on Grants & Other Financial Assistance (REFCUS),918401,Capital grants,01-Apr-2014,2727268-RED-03-2014-254,"10,000.00",REDACTED - PAYMENT TO INDIVIDUAL
Neighbourhood Services,Culture & Sport,Supplies and Services,384199,Miscellaneous Expenses,01-Apr-2014,2727269-16318,735.00,OLIVERS TREE SERVICES LTD.
Neighbourhood Services,Culture & Sport,Supplies and Services,338047,Services,01-Apr-2014,2727275-3101,"6,529.28",PASSWORD PRODUCTIONS LTD.
Corporate Resources,I.C.T. Services,Supplies and Services,342033,Computers and Communications,01-Apr-2014,2727285-SALES,569.88,PHOENIX SOFTWARE LTD.
Neighbourhood Services,Direct Services,Supplies and Services,304221,Equipment and Materials,01-Apr-2014,2727289-4120163170,647.95,PLUMBING TRADE SUPPLIES LTD.
Neighbourhood Services,Direct Services,Third Party Payments,430100,Rendered by Private Contractors,01-Apr-2014,2727290-900661650,"2,513.33",PORTAKABIN LTD.
Neighbourhood Services,Direct Services,Third Party Payments,430100,Rendered by Private Contractors,01-Apr-2014,2727300-64555,"1,144.56",PROTECTOR SECURITY GROUP LTD.
Children and Adult Services,Planning & Service Strategy,Supplies and Services,352001,Conference Expenses,01-Apr-2014,2727304-13011618-001,"1,100.00",QUEEN MARGARET UNIVERSITY.
Neighbourhood Services,Technical Services,Third Party Payments,430100,Rendered by Private Contractors,01-Apr-2014,2727311-2580/140243,"53,378.35",RAINTON CONSTRUCTION LTD.
Neighbourhood Services,Technical Services,Third Party Payments,430100,Rendered by Private Contractors,01-Apr-2014,2727311-2580/140244,"79,066.77",RAINTON CONSTRUCTION LTD.
Neighbourhood Services,Direct Services,Third Party Payments,430100,Rendered by Private Contractors,01-Apr-2014,2727330-2953,"1,578.00",RINGLAND SCAFFOLDING.
Children and Adult Services,Head of Adults,Supplies and Services,338365,Services,01-Apr-2014,2727339-029390,730.95,ROMPA LTD.
Corporate Resources,I.C.T. Services,Supplies and Services,340001,Postages,01-Apr-2014,2727340-9046775834,"10,849.96",ROYAL MAIL GROUP PLC.
Neighbourhood Services,Culture & Sport,Supplies and Services,338099,Services,01-Apr-2014,2727350-27,613.04,SAM SMITH..
Children and Adult Services,Head of Adults,Premises,150005,Apportioned Exps of Operational Blds,01-Apr-2014,2727351-111329,674.00,SANDERSON WEATHERALL LLP.
Neighbourhood Services,Technical Services,Third Party Payments,430100,Rendered by Private Contractors,01-Apr-2014,2727353-629,800.00,SCHMUCK WHORLTON LTD.
Neighbourhood Services,Technical Services,Third Party Payments,430100,Rendered by Private Contractors,01-Apr-2014,2727353-INVOICE,800.00,SCHMUCK WHORLTON LTD.
Regeneration & Economic Development,Economic Development and Housing,Cap Exp on Grants & Other Financial Assistance (REFCUS),918401,Capital grants,01-Apr-2014,2727361-RED-03-2014-255,"9,253.00",SEAHAM TOWN COUNCIL.
Assistant Chief Executive,Policy & Communications Division,Employees,040149,"Recruitment, Instruction and Training",01-Apr-2014,2727366-90970917,"3,710.00",SERCO LTD.
Neighbourhood Services,Direct Services,Transport,210057,Repair and Maintenance of Vehicles,01-Apr-2014,2727369-123305,714.63,SG PETCH LTD.
Neighbourhood Services,Technical Services,Supplies and Services,304221,Equipment and Materials,01-Apr-2014,2727376-64119,960.84,SIMMONSIGNS LTD.
Children and Adult Services,Education,Third Party Payments,440999,Other Third Party Payments,01-Apr-2014,2727384-DCCASB001,"3,412.35",SMARTT.
Corporate Resources,I.C.T. Services,"Vehicles, Equipment, Furniture and Fittings",912701,Computer equipment,01-Apr-2014,2727388-INV68669,"4,999.00",SOFTWARE BOX LTD.
Neighbourhood Services,Culture & Sport,Supplies and Services,304252,Equipment and Materials,01-Apr-2014,2727389-SIN033085,812.00,SOUND ASSOCIATES LTD.
Corporate Resources,I.C.T. Services,Stock,926900,Stock in hand-Inventory system,01-Apr-2014,2727393-OP/L818180,"14,165.10",SPECIALIST COMPUTER CENTRES PLC.
Corporate Resources,I.C.T. Services,Stock,926900,Stock in hand-Inventory system,01-Apr-2014,2727393-OP/L818181,640.00,SPECIALIST COMPUTER CENTRES PLC.
Corporate Resources,I.C.T. Services,Stock,926900,Stock in hand-Inventory system,01-Apr-2014,2727393-OP/L818182,640.00,SPECIALIST COMPUTER CENTRES PLC.
Corporate Resources,I.C.T. Services,Stock,926900,Stock in hand-Inventory system,01-Apr-2014,2727393-OP/L819775,"1,280.00",SPECIALIST COMPUTER CENTRES PLC.
Corporate Resources,I.C.T. Services,Stock,926900,Stock in hand-Inventory system,01-Apr-2014,2727393-OP/L819776,"13,776.30",SPECIALIST COMPUTER CENTRES PLC.
Children and Adult Services,Education,Supplies and Services,338027,Services,01-Apr-2014,2727401-B000058,500.00,STAINDROP SCHOOL.
Dedicated Schools Grant,Dedicated Schools Grant,Third Party Payments,410037,Rendered by Other Local Authorities,01-Apr-2014,2727413-546270,"1,142.86",STOCKTON ON TEES BOROUGH COUNCIL.
RED HRA,HRA Capital,Construction Work,908105,Construction work,01-Apr-2014,2727419-188450,"7,387.45",SUNTER LTD.
RED HRA,HRA Capital,Construction Work,908105,Construction work,01-Apr-2014,2727419-LTS/534/021,"60,385.42",SUNTER LTD.
Children and Adult Services,Education,Supplies and Services,332047,"Printing, Stationery and Gen Off Exps",01-Apr-2014,2727421-6524308,514.90,SUPPLIES TEAM LTD.
Neighbourhood Services,Culture & Sport,Supplies and Services,324117,Provisions,01-Apr-2014,2727432-9410792640,500.70,TCHIBO COFFEE INTERNATIONAL LTD.
Regeneration & Economic Development,"Spatial Policy, Planning, Assets & Environment",Supplies and Services,384199,Miscellaneous Expenses,01-Apr-2014,2727440-2014/0005,"4,900.00",TEESDALE ENVIRONMENTAL CONSULTING.
Dedicated Schools Grant,Dedicated Schools Grant,Third Party Payments,410037,Rendered by Other Local Authorities,01-Apr-2014,2727444-89,"11,134.78",THE CEDARS ACADEMY TRUST.
Regeneration & Economic Development,Economic Development and Housing,Supplies and Services,338066,Services,01-Apr-2014,2727446-2776,"6,250.00",THE CYRENIANS LTD.
Children and Adult Services,Children�s Services,Third Party Payments,410037,Rendered by Other Local Authorities,01-Apr-2014,2727454-SII002922,785.00,THE YOUTH JUSTICE BOARD.
Children and Adult Services,Children�s Services,Third Party Payments,410037,Rendered by Other Local Authorities,01-Apr-2014,2727454-SII003310,"1,099.00",THE YOUTH JUSTICE BOARD.
Children and Adult Services,Children�s Services,Third Party Payments,410037,Rendered by Other Local Authorities,01-Apr-2014,2727454-SII003399,"11,020.00",THE YOUTH JUSTICE BOARD.
Children and Adult Services,Children�s Services,Third Party Payments,410037,Rendered by Other Local Authorities,01-Apr-2014,2727454-SII003400,"7,540.00",THE YOUTH JUSTICE BOARD.
Neighbourhood Services,Culture & Sport,Supplies and Services,372009,Subscriptions,01-Apr-2014,2727457-22000060,750.00,TILHILL FORESTRY LTD.
Neighbourhood Services,Technical Services,Stock,926900,Stock in hand-Inventory system,01-Apr-2014,2727459-96545,610.00,TOFCO LTD.
Neighbourhood Services,Technical Services,Stock,926900,Stock in hand-Inventory system,01-Apr-2014,2727461-98517,600.00,TOMMY WARDLE.
Neighbourhood Services,Technical Services,Stock,926900,Stock in hand-Inventory system,01-Apr-2014,2727461-98523,"1,065.14",TOMMY WARDLE.
Regeneration & Economic Development,Economic Development and Housing,Cap Exp on Grants & Other Financial Assistance (REFCUS),918401,Capital grants,01-Apr-2014,2727463-RED-03-2014-184,"2,048.00",TORONTO ELECTRICAL SERVICES & TESTING (TEST).
Neighbourhood Services,Direct Services,Supplies and Services,304221,Equipment and Materials,01-Apr-2014,2727465-29168,"4,590.00",TOTAL PUMP SOLUTIONS LTD.
Neighbourhood Services,Technical Services,Supplies and Services,304221,Equipment and Materials,01-Apr-2014,2727469-615321,732.40,TRAFFIC MANAGEMENT PRODUCTS LTD (TMP).
Neighbourhood Services,Culture & Sport,Supplies and Services,336005,Advertising,01-Apr-2014,2727473-1334127,561.59,TRINITY MIRROR PUBLISHING LTD.
RED HRA,Housing Revenue Account,Supplies and Services,338027,Services,01-Apr-2014,2727474-2276727,"9,479.00",TROWERS & HAMLINS.
Children and Adult Services,Education,Employees,040001,"Recruitment, Instruction and Training",01-Apr-2014,2727475-TARINV/15276324,652.50,TSL EDUCATION LTD.
Regeneration & Economic Development,Transport and Contracted Services,Supplies and Services,304259,Equipment and Materials,01-Apr-2014,2727479-3IN/10238913,"2,767.86",TUNSTALL HEALTHCARE (UK) LTD.
Neighbourhood Services,Technical Services,Supplies and Services,304221,Equipment and Materials,01-Apr-2014,2727483-133900,"1,430.44",TYNEDALE ROADSTONE LTD.
Children and Adult Services,Planning & Service Strategy,Supplies and Services,338091,Services,01-Apr-2014,2727490-05115721-008,"1,080.00",UNIVERSITY OF TEESSIDE.
Children and Adult Services,Planning & Service Strategy,Supplies and Services,338091,Services,01-Apr-2014,2727490-10134188-004,"1,080.00",UNIVERSITY OF TEESSIDE.
Children and Adult Services,Planning & Service Strategy,Supplies and Services,338091,Services,01-Apr-2014,2727490-10134195-004,"1,080.00",UNIVERSITY OF TEESSIDE.
Children and Adult Services,Planning & Service Strategy,Supplies and Services,338091,Services,01-Apr-2014,2727490-10134391-004,"1,080.00",UNIVERSITY OF TEESSIDE.
Children and Adult Services,Planning & Service Strategy,Supplies and Services,338091,Services,01-Apr-2014,2727490-10177314-004,"1,000.00",UNIVERSITY OF TEESSIDE.
Children and Adult Services,Planning & Service Strategy,Supplies and Services,338091,Services,01-Apr-2014,2727490-10190999-003,"1,000.00",UNIVERSITY OF TEESSIDE.
Regeneration & Economic Development,Transport and Contracted Services,Construction Work,908202,Capital - Public Utilities - Telephones Services,01-Apr-2014,2727502-443728,"31,647.33",VODAFONE LTD.
Neighbourhood Services,Technical Services,Third Party Payments,460350,Contract Payments,01-Apr-2014,2727506-36938,636.00,W MARLEY AGRICULTURAL CONTRACTORS LTD.
Neighbourhood Services,Technical Services,Third Party Payments,460350,Contract Payments,01-Apr-2014,2727506-36939,"3,732.50",W MARLEY AGRICULTURAL CONTRACTORS LTD.
Neighbourhood Services,Culture & Sport,Supplies and Services,338047,Services,01-Apr-2014,2727509-22165195,"1,357.19",WARNER BROS ENTERTAINMENT UK LTD.
Neighbourhood Services,Culture & Sport,Supplies and Services,338047,Services,01-Apr-2014,2727509-22165196,"1,494.79",WARNER BROS ENTERTAINMENT UK LTD.
Neighbourhood Services,Culture & Sport,Supplies and Services,332001,"Printing, Stationery and Gen Off Exps",01-Apr-2014,2727522-292769,"1,299.00",WM SMITH & SONS (BARNARD CASTLE) LTD.
Neighbourhood Services,Direct Services,Supplies and Services,304221,Equipment and Materials,01-Apr-2014,2727523-11089425,603.92,WOLSELEY UK LTD.
Neighbourhood Services,Direct Services,Supplies and Services,304221,Equipment and Materials,01-Apr-2014,2727523-11089665,870.77,WOLSELEY UK LTD.
Children and Adult Services,Children�s Services,Supplies and Services,304259,Equipment and Materials,01-Apr-2014,2727528-496542628,857.00,YORKSHIRE PURCHASING ORGANISATION.
Neighbourhood Services,Technical Services,Supplies and Services,304358,Equipment and Materials,01-Apr-2014,2727529-3873,"1,219.50",YOULL CONSTRUCTION LTD.
RED HRA,HRA Capital,Construction Work,908105,Construction work,01-Apr-2014,2727531-30441,"1,008.63",YWC GROUP LTD.
Neighbourhood Services,Direct Services,Transport,210057,Repair and Maintenance of Vehicles,01-Apr-2014,2727533-SVI26227,960.61,ZOELLER WASTE SYSTEMS LTD.
Neighbourhood Services,Culture & Sport,Supplies and Services,384700,Miscellaneous Expenses,02-Apr-2014,230039,"1,630.00",PAUL LYSAGHT.
Neighbourhood Services,Culture & Sport,Supplies and Services,384199,Miscellaneous Expenses,02-Apr-2014,2727546,"3,080.00",ALISTAIR PALMER.
Neighbourhood Services,Direct Services,Premises,125009,Rents,02-Apr-2014,2727811,"2,249.59",NETWORK RAIL.
Corporate Resources,Internal Audit and Insurance,Supplies and Services,384956,Miscellaneous Expenses,02-Apr-2014,229761-14145,"2,075.00",AUDITWARE SYSTEMS LTD.
Children and Adult Services,Education,Supplies and Services,304259,Equipment and Materials,02-Apr-2014,229774-3620,916.68,BTL TIMBER & HARDWARE LTD.
Neighbourhood Services,Technical Services,Stock,926900,Stock in hand-Inventory system,02-Apr-2014,229775-54,710.00,CAEDMON NETS.
Children and Adult Services,Head of Adults,Third Party Payments,470101,Purchase of Care,02-Apr-2014,229776-2153591,"2,500.00",CARELINE LIFESTYLES LTD.
Children and Adult Services,Head of Adults,Third Party Payments,470101,Purchase of Care,02-Apr-2014,229776-2153592,"2,016.00",CARELINE LIFESTYLES LTD.
Neighbourhood Services,Culture & Sport,Supplies and Services,304259,Equipment and Materials,02-Apr-2014,229777-T0618,795.00,CASTLEWOOD.
Neighbourhood Services,Culture & Sport,Supplies and Services,338047,Services,02-Apr-2014,229779-CALENDARGIRLS,"2,029.00",CHESTER LE STREET THEATRE GROUP.
Children and Adult Services,Public Health,Third Party Payments,460803,Contract Payments,02-Apr-2014,229801-03/2014/DURHAM,"6,150.00",DR CF KHAN.
Neighbourhood Services,Culture & Sport,Supplies and Services,338047,Services,02-Apr-2014,229872-DANCEFESTIVAL,"1,941.22",DURHAM CITY SCHOOL SPORT PARTNERSHIP.
Children and Adult Services,Education,Transport,230008,Contract Hire,02-Apr-2014,229889-33431090,"1,910.80",EAST RIDING OF YORKSHIRE COUNCIL.
Children and Adult Services,Public Health,Third Party Payments,460803,Contract Payments,02-Apr-2014,229909-FV165/FEB/14,795.00,G WHITFIELD LTD.
Children and Adult Services,Children�s Services,Supplies and Services,338040,Services,02-Apr-2014,229918-RES-03-2014-192,"2,155.00",HMCTS.
Children and Adult Services,Public Health,Third Party Payments,460803,Contract Payments,02-Apr-2014,229921-TUN03985,"1,550.69",HUNTERCOMBE CENTRE.
Children and Adult Services,Public Health,Third Party Payments,460803,Contract Payments,02-Apr-2014,229921-TUN03986,"1,993.74",HUNTERCOMBE CENTRE.
Children and Adult Services,Public Health,Third Party Payments,460803,Contract Payments,02-Apr-2014,229921-TUN03987,"1,550.69",HUNTERCOMBE CENTRE.
Children and Adult Services,Public Health,Third Party Payments,460803,Contract Payments,02-Apr-2014,229921-TUN04016,"3,300.00",HUNTERCOMBE CENTRE.
Children and Adult Services,Public Health,Third Party Payments,460803,Contract Payments,02-Apr-2014,229921-TUN04017,"1,650.00",HUNTERCOMBE CENTRE.
Children and Adult Services,Public Health,Third Party Payments,460803,Contract Payments,02-Apr-2014,229921-TUN04018,"1,650.00",HUNTERCOMBE CENTRE.
Children and Adult Services,Public Health,Third Party Payments,460803,Contract Payments,02-Apr-2014,229921-TUN04019,"1,650.00",HUNTERCOMBE CENTRE.
Children and Adult Services,Public Health,Third Party Payments,460803,Contract Payments,02-Apr-2014,229921-TUN04020,"1,650.00",HUNTERCOMBE CENTRE.
Children and Adult Services,Public Health,Third Party Payments,460803,Contract Payments,02-Apr-2014,229921-TUN04021,"1,650.00",HUNTERCOMBE CENTRE.
Children and Adult Services,Public Health,Third Party Payments,460803,Contract Payments,02-Apr-2014,229921-TUN04022,"1,414.29",HUNTERCOMBE CENTRE.
Children and Adult Services,Public Health,Third Party Payments,460803,Contract Payments,02-Apr-2014,229921-TUN04023,"1,329.16",HUNTERCOMBE CENTRE.
Children and Adult Services,Public Health,Third Party Payments,460803,Contract Payments,02-Apr-2014,229921-TUN04024,707.14,HUNTERCOMBE CENTRE.
Children and Adult Services,Public Health,Third Party Payments,460803,Contract Payments,02-Apr-2014,229921-TUN04025,"1,414.29",HUNTERCOMBE CENTRE.
Neighbourhood Services,Direct Services,Employees,040149,"Recruitment, Instruction and Training",02-Apr-2014,229932-INV20709,560.00,JOINT INDUSTRY BOARD.
Neighbourhood Services,Technical Services,Construction Work,908114,Capital - Bridge Strengthening,02-Apr-2014,229946-MD2014-146,"2,800.00",MDESIGN.
Neighbourhood Services,Culture & Sport,Supplies and Services,304337,Equipment and Materials,02-Apr-2014,229947-TP95,"2,533.33",MICHELIN TRAVEL PARTNER.
Children and Adult Services,Education,Supplies and Services,384906,Miscellaneous Expenses,02-Apr-2014,229948-CAS-03-2014-092,"1,545.00",MILL HILL NURSERY SCHOOL.
Regeneration & Economic Development,Economic Development and Housing,Cap Exp on Grants & Other Financial Assistance (REFCUS),918401,Capital grants,02-Apr-2014,229958-RED-03-2014-178,"5,000.00",MORGAN GREY LTD.
RED HRA,HRA Capital,Construction Work,908105,Construction work,02-Apr-2014,229961-RED-04-2014-030,"2,348.08",REDACTED - PAYMENT TO INDIVIDUAL
Regeneration & Economic Development,"Spatial Policy, Planning, Assets & Environment",Premises,125009,Rents,02-Apr-2014,229972-RED-03-2014-186,"1,300.00",REDACTED - PAYMENT TO INDIVIDUAL
Regeneration & Economic Development,"Spatial Policy, Planning, Assets & Environment",Supplies and Services,384918,Miscellaneous Expenses,02-Apr-2014,229990-RED-03-2014-176,700.00,REDACTED - PAYMENT TO INDIVIDUAL
Children and Adult Services,Head of Adults,Third Party Payments,478101,Purchase of Care,02-Apr-2014,230000-2152218,"1,285.60",REDACTED - PAYMENT TO INDIVIDUAL
Children and Adult Services,Head of Adults,Income,720033,Fees and Charges,02-Apr-2014,230038-CAS-03-2014-164,517.68,REDACTED - PAYMENT TO INDIVIDUAL
Children and Adult Services,Public Health,Premises,145009,Cleaning and Domestic Supplies,02-Apr-2014,230050-13801,540.00,QUALITY CLEANING SERVICES (NORTHERN) LTD.
Children and Adult Services,Head of Adults,Third Party Payments,474101,Purchase of Care,02-Apr-2014,230053-2153475,690.04,RICHMOND FELLOWSHIP.
Assistant Chief Executive,Partnerships & Community Engagement Div.,Supplies and Services,384085,Miscellaneous Expenses,02-Apr-2014,230065-STOD04-13,750.00,SHINCLIFFE COMMUNITY ASSOCIATION.
Neighbourhood Services,Technical Services,Stock,926900,Stock in hand-Inventory system,02-Apr-2014,2727535-128034,666.90,(PASS) PORTABLE APPLIANCE SAFETY SERVICES LTD.
Neighbourhood Services,Culture & Sport,Supplies and Services,324001,Provisions,02-Apr-2014,2727536-54150432,615.78,3663.
RED HRA,HRA Capital,Construction Work,908105,Construction work,02-Apr-2014,2727538-13439,"1,077.00",ACREBROAD LTD T/A DOBERMANS FLOORING.
RED HRA,HRA Capital,Construction Work,908105,Construction work,02-Apr-2014,2727538-13441,"1,077.00",ACREBROAD LTD T/A DOBERMANS FLOORING.
Neighbourhood Services,Technical Services,Employees,080025,Agency Staff,02-Apr-2014,2727540-28184868,"2,815.00",AECOM LTD.
Neighbourhood Services,Technical Services,Fees,901002,Professional fees,02-Apr-2014,2727540-28185051,"6,571.95",AECOM LTD.
Neighbourhood Services,Technical Services,Supplies and Services,304221,Equipment and Materials,02-Apr-2014,2727542-19504586,"1,142.04",AGGREGATE INDUSTRIES UK LTD.
Neighbourhood Services,Technical Services,Supplies and Services,304221,Equipment and Materials,02-Apr-2014,2727543-19504584,"1,145.76",AGGREGATE INDUSTRIES UK LTD.
Neighbourhood Services,Technical Services,Supplies and Services,304221,Equipment and Materials,02-Apr-2014,2727543-19504585,"1,518.52",AGGREGATE INDUSTRIES UK LTD.
Regeneration & Economic Development,Economic Development and Housing,Cap Exp on Grants & Other Financial Assistance (REFCUS),918401,Capital grants,02-Apr-2014,2727544-RED-04-2014-049,"3,640.00",ALAN LEE & SON.
Children and Adult Services,Head of Adults,Cap Exp on Grants & Other Financial Assistance (REFCUS),918401,Capital grants,02-Apr-2014,2727548-CAS-03-2014-316,"144,100.00",ALLIANCE CARE.
Neighbourhood Services,Direct Services,Third Party Payments,430100,Rendered by Private Contractors,02-Apr-2014,2727549-14339,"4,950.00",AMBIC LTD.
Neighbourhood Services,Direct Services,Third Party Payments,430100,Rendered by Private Contractors,02-Apr-2014,2727549-14396,"2,200.00",AMBIC LTD.
Neighbourhood Services,Direct Services,Third Party Payments,430100,Rendered by Private Contractors,02-Apr-2014,2727549-14421,"4,450.00",AMBIC LTD.
Children and Adult Services,Children�s Services,Supplies and Services,364999,Grants to Voluntary Organisations,02-Apr-2014,2727553-CAS-04-2014-002,608.00,AUCKLAND YOUTH & COMMUNITY ASSOCIATION.
Neighbourhood Services,Technical Services,Stock,926900,Stock in hand-Inventory system,02-Apr-2014,2727554-INV086902,"1,037.20",AZTEC CHEMICALS LTD.
Neighbourhood Services,Direct Services,Third Party Payments,430100,Rendered by Private Contractors,02-Apr-2014,2727556-17392,"10,181.57",BARCLAY ROOFING LTD.
Neighbourhood Services,Direct Services,Supplies and Services,304221,Equipment and Materials,02-Apr-2014,2727559-72305,"2,100.00",BARTEC AUTO ID.
Children and Adult Services,Planning & Service Strategy,Supplies and Services,384540,Miscellaneous Expenses,02-Apr-2014,2727560-306031,"3,685.45",BAUER MEDIA GROUP LTD.
Children and Adult Services,Planning & Service Strategy,Supplies and Services,384540,Miscellaneous Expenses,02-Apr-2014,2727560-306035,904.40,BAUER MEDIA GROUP LTD.
Children and Adult Services,Planning & Service Strategy,Supplies and Services,384540,Miscellaneous Expenses,02-Apr-2014,2727560-307331,765.93,BAUER MEDIA GROUP LTD.
Children and Adult Services,Children�s Services,Supplies and Services,336005,Advertising,02-Apr-2014,2727560-307592,"4,150.00",BAUER MEDIA GROUP LTD.
Children and Adult Services,Public Health,Third Party Payments,460803,Contract Payments,02-Apr-2014,2727577-FPC89/FEB/14,869.00,BOOTS THE CHEMISTS LTD.
Dedicated Schools Grant,Dedicated Schools Grant,Supplies and Services,384199,Miscellaneous Expenses,02-Apr-2014,2727584-CAS-04-2014-003,616.00,BRANDON HAPPYTIMES DAYCARE.
Children and Adult Services,Education,Transfer Payments,510026,School Children,02-Apr-2014,2727584-STAFFING,"1,135.00",BRANDON HAPPYTIMES DAYCARE.
Dedicated Schools Grant,Dedicated Schools Grant,Third Party Payments,425005,Rendered by Voluntary Organisations,02-Apr-2014,2727585-914,"15,604.00",BRECKENBROUGH SCHOOL.
Dedicated Schools Grant,Dedicated Schools Grant,Third Party Payments,425005,Rendered by Voluntary Organisations,02-Apr-2014,2727585-922,"15,604.00",BRECKENBROUGH SCHOOL.
Dedicated Schools Grant,Dedicated Schools Grant,Third Party Payments,425005,Rendered by Voluntary Organisations,02-Apr-2014,2727585-929,"15,070.00",BRECKENBROUGH SCHOOL.
Dedicated Schools Grant,Dedicated Schools Grant,Third Party Payments,425005,Rendered by Voluntary Organisations,02-Apr-2014,2727585-930,"15,070.00",BRECKENBROUGH SCHOOL.
Dedicated Schools Grant,Dedicated Schools Grant,Third Party Payments,425005,Rendered by Voluntary Organisations,02-Apr-2014,2727585-931,"15,070.00",BRECKENBROUGH SCHOOL.
Dedicated Schools Grant,Dedicated Schools Grant,Third Party Payments,425005,Rendered by Voluntary Organisations,02-Apr-2014,2727585-932,"15,604.00",BRECKENBROUGH SCHOOL.
Dedicated Schools Grant,Dedicated Schools Grant,Third Party Payments,425005,Rendered by Voluntary Organisations,02-Apr-2014,2727585-933,"15,604.00",BRECKENBROUGH SCHOOL.
Neighbourhood Services,Technical Services,Supplies and Services,372009,Subscriptions,02-Apr-2014,2727587-0000057710,"2,500.00",BRITISH BOARD OF AGREMENT.
Neighbourhood Services,Direct Services,Transport,230005,Contract Hire,02-Apr-2014,2727591-NEW8107542,540.00,BURNT TREE GROUP LTD.
Regeneration & Economic Development,Transport and Contracted Services,Third Party Payments,430109,Rendered by Private Contractors,02-Apr-2014,2727593-106210,"2,400.00",CA TRAFFIC LTD.
Children and Adult Services,Head of Adults,Premises,108301,Service Repairs and Maintenance,02-Apr-2014,2727594-93411519,"2,911.35",CAPITA PROPERTY & INFRASTRUCTURE LTD.
Children and Adult Services,Head of Adults,Premises,108301,Service Repairs and Maintenance,02-Apr-2014,2727594-93411537,973.35,CAPITA PROPERTY & INFRASTRUCTURE LTD.
Neighbourhood Services,Culture & Sport,Supplies and Services,324001,Provisions,02-Apr-2014,2727595-840018092,"1,286.75",CARLSBERG UK LTD.
Neighbourhood Services,Culture & Sport,Supplies and Services,324001,Provisions,02-Apr-2014,2727595-840040374,777.79,CARLSBERG UK LTD.
Regeneration & Economic Development,"Spatial Policy, Planning, Assets & Environment",Supplies and Services,384700,Miscellaneous Expenses,02-Apr-2014,2727610-RED-04-2014-029,"6,455.85",CITY OF SUNDERLAND.
Children and Adult Services,Children�s Services,Third Party Payments,440999,Other Third Party Payments,02-Apr-2014,2727613-3910003022,"57,753.00",CO DURHAM & DARLINGTON NHS FOUNDATION TRUST.
Neighbourhood Services,Culture & Sport,Supplies and Services,324001,Provisions,02-Apr-2014,2727617-9101516865,584.36,COCA COLA ENTERPRISES LTD.
Neighbourhood Services,Culture & Sport,Supplies and Services,338047,Services,02-Apr-2014,2727619-6857/TW,701.50,COMEDY STORE MANAGEMENT.
Children and Adult Services,Children�s Services,Employees,080025,Agency Staff,02-Apr-2014,2727620-536611,"146,314.76",COMENSURA LTD.
Regeneration & Economic Development,Economic Development and Housing,Other Expenses,914001,Other capital expenses,02-Apr-2014,2727621-0433,"1,350.00",COMMERCIAL ENERGY ASSESSMENT NORTH EAST LTD.
Children and Adult Services,Children�s Services,Supplies and Services,338044,Services,02-Apr-2014,2727622-97360,603.84,COMPLEMENT GENOMICS LTD.
Neighbourhood Services,Technical Services,Supplies and Services,304221,Equipment and Materials,02-Apr-2014,2727623-0000014077,"3,178.00",CONDER SOLUTIONS LTD.
Children and Adult Services,Public Health,Third Party Payments,460803,Contract Payments,02-Apr-2014,2727631-CAS-03-2014-027,500.00,REDACTED - PAYMENT TO INDIVIDUAL
Regeneration & Economic Development,Economic Development and Housing,Cap Exp on Grants & Other Financial Assistance (REFCUS),918401,Capital grants,02-Apr-2014,2727633-RED-04-2014-051,"8,502.79",CRAWFORD BUILDING SERVICES.
Regeneration & Economic Development,Economic Development and Housing,Cap Exp on Grants & Other Financial Assistance (REFCUS),918401,Capital grants,02-Apr-2014,2727635-RED-04-2014-044,"2,570.00",CUMMINGS CONTRACTORS.
Regeneration & Economic Development,Economic Development and Housing,Cap Exp on Grants & Other Financial Assistance (REFCUS),918401,Capital grants,02-Apr-2014,2727635-RED-04-2014-046,"2,570.00",CUMMINGS CONTRACTORS.
Regeneration & Economic Development,Economic Development and Housing,Cap Exp on Grants & Other Financial Assistance (REFCUS),918401,Capital grants,02-Apr-2014,2727635-RED-04-2014-054,"1,845.00",CUMMINGS CONTRACTORS.
Regeneration & Economic Development,Economic Development and Housing,Cap Exp on Grants & Other Financial Assistance (REFCUS),918401,Capital grants,02-Apr-2014,2727635-RED-04-2014-058,"3,375.00",CUMMINGS CONTRACTORS.
Regeneration & Economic Development,Economic Development and Housing,Cap Exp on Grants & Other Financial Assistance (REFCUS),918401,Capital grants,02-Apr-2014,2727635-RED-04-2014-062,"3,230.00",CUMMINGS CONTRACTORS.
RED HRA,HRA Capital,Construction Work,908105,Construction work,02-Apr-2014,2727640-194504,"3,440.84",DELTA ELECTRICAL & MECHANICAL SERVICES.
RED HRA,HRA Capital,Construction Work,908105,Construction work,02-Apr-2014,2727640-194507,822.53,DELTA ELECTRICAL & MECHANICAL SERVICES.
Children and Adult Services,Head of Adults,Premises,125009,Rents,02-Apr-2014,2727643-GLSRENT14/15,"4,546.88",DERWENTSIDE HOMES LTD.
Children and Adult Services,Public Health,Third Party Payments,460803,Contract Payments,02-Apr-2014,2727648,"1,400.00",DR RT DAWSON.
Dedicated Schools Grant,Dedicated Schools Grant,Transport,230005,Contract Hire,02-Apr-2014,2727649-DC06,"1,200.00",DUNCAN G CUMMINGS T/A DC TAXIS.
Children and Adult Services,Commissioning inc Supporting People,Supplies and Services,384700,Miscellaneous Expenses,02-Apr-2014,2727651-CAS-04-2014-015,"1,500.00",DURHAM OTTERS SWIMMING CLUB.
RED HRA,HRA Capital,Construction Work,908105,Construction work,02-Apr-2014,2727659-194494,560.85,EDMUNDSON ELECTRICAL LTD.
Regeneration & Economic Development,"Spatial Policy, Planning, Assets & Environment",Supplies and Services,384700,Miscellaneous Expenses,02-Apr-2014,2727667-RED-04-2014-004,"2,020.95",REDACTED - PAYMENT TO INDIVIDUAL
Neighbourhood Services,Direct Services,Supplies and Services,304221,Equipment and Materials,02-Apr-2014,2727668-DCC126,"1,280.00",REDACTED
Neighbourhood Services,Technical Services,Stock,926900,Stock in hand-Inventory system,02-Apr-2014,2727672-OP/I277500,639.22,FLEMING & CO (MACHINERY) LTD.
Children and Adult Services,Children�s Services,Third Party Payments,425040,Rendered by Voluntary Organisations,02-Apr-2014,2727674-115475,"4,011.97",FOSTERING SOLUTIONS LTD.
Regeneration & Economic Development,Economic Development and Housing,Supplies and Services,344137,Telephones,02-Apr-2014,2727678-FSI-121378,"5,893.00",FREEDOM COMMUNICATIONS (UK) LTD.
Regeneration & Economic Development,Economic Development and Housing,Supplies and Services,384199,Miscellaneous Expenses,02-Apr-2014,2727681-A105517,939.00,G4S ASSESSMENT SERVICES (UK) LTD T/A QUALITY IN TOURISM.
Neighbourhood Services,Technical Services,Supplies and Services,304252,Equipment and Materials,02-Apr-2014,2727683-006017630,615.70,GAP GROUP LTD.
Neighbourhood Services,Technical Services,Stock,926900,Stock in hand-Inventory system,02-Apr-2014,2727684-SINV-068110,"2,240.10",GELPACK EXCELSIOR LTD.
Regeneration & Economic Development,Economic Development and Housing,Cap Exp on Grants & Other Financial Assistance (REFCUS),918401,Capital grants,02-Apr-2014,2727687-RED-03-2014-237,"17,685.00",GILLS FRY FRY LTD.
Regeneration & Economic Development,Economic Development and Housing,Cap Exp on Grants & Other Financial Assistance (REFCUS),918401,Capital grants,02-Apr-2014,2727687-RED-03-2014-257,"3,042.60",GILLS FRY FRY LTD.
Children and Adult Services,Education,Supplies and Services,304259,Equipment and Materials,02-Apr-2014,2727688-978973,"3,010.10",GL ASSESSMENT LTD.
Children and Adult Services,Commissioning inc Supporting People,Supplies and Services,384700,Miscellaneous Expenses,02-Apr-2014,2727697-0009,"10,000.00",HANDCRAFTED PROJECTS.
Neighbourhood Services,Technical Services,Third Party Payments,430100,Rendered by Private Contractors,02-Apr-2014,2727700-SIN7039274,"3,170.00",HCS DRAIN SERVICES LTD.
Neighbourhood Services,Direct Services,Supplies and Services,304221,Equipment and Materials,02-Apr-2014,2727702-1443199286,"3,584.00",HILTI (GB) LTD.
RED HRA,HRA Capital,Construction Work,908105,Construction work,02-Apr-2014,2727703-194715,"295,308.40",HODGSON SAYERS LTD.
Neighbourhood Services,Technical Services,Stock,926900,Stock in hand-Inventory system,02-Apr-2014,2727713-441759,"2,984.80",INSTARMAC GROUP PLC.
Children and Adult Services,Public Health,Third Party Payments,460803,Contract Payments,02-Apr-2014,2727716-FDH51/0214,836.00,INTRAHEALTH LTD.
Neighbourhood Services,Culture & Sport,Supplies and Services,304221,Equipment and Materials,02-Apr-2014,2727717-SIN033058,536.00,IQL UK LTD.
Children and Adult Services,Public Health,Third Party Payments,479102,Purchase of Care,02-Apr-2014,2727720-114,700.00,J ELFORD T/A WISC.
Neighbourhood Services,Direct Services,Supplies and Services,304252,Equipment and Materials,02-Apr-2014,2727723-4100416201,"2,330.00",JN KEARTON.
Children and Adult Services,Education,Employees,040149,"Recruitment, Instruction and Training",02-Apr-2014,2727727-29,576.48,JOHN RYMASZEWSKI.
RED HRA,HRA Capital,Construction Work,908105,Construction work,02-Apr-2014,2727728-194502,"1,680.27",JOINERY & TIMBER CREATIONS (65) LTD.
Neighbourhood Services,Direct Services,Supplies and Services,304221,Equipment and Materials,02-Apr-2014,2727731-BI1130215,"1,440.00",JT DOVE LTD.
Neighbourhood Services,Technical Services,Supplies and Services,304221,Equipment and Materials,02-Apr-2014,2727734-4570,"2,695.40",KEN THOMAS (SITE CLEARANCE LTD).
Children and Adult Services,Education,Transfer Payments,510026,School Children,02-Apr-2014,2727735-CAS-04-2014-008,826.61,KIDS 1ST NURSERIES DURHAM.
Children and Adult Services,Public Health,Third Party Payments,460803,Contract Payments,02-Apr-2014,2727749-FFC99/FEB/14,558.00,LLOYDS PHARMACY.
Children and Adult Services,Public Health,Third Party Payments,460803,Contract Payments,02-Apr-2014,2727750-FXD45/FEB/14,847.00,LLOYDS PHARMACY.
Children and Adult Services,Public Health,Third Party Payments,460803,Contract Payments,02-Apr-2014,2727751-FHM85/FEB/14,902.00,LLOYDS PHARMACY.
Neighbourhood Services,Culture & Sport,Supplies and Services,304999,Equipment and Materials,02-Apr-2014,2727752-10485,"2,565.60",LOGIC STREET & PARK FURNITURE LTD.
Neighbourhood Services,Direct Services,Supplies and Services,304221,Equipment and Materials,02-Apr-2014,2727754-3278245,574.20,LONDON GENERAL SALES LTD.
Neighbourhood Services,Direct Services,Supplies and Services,304221,Equipment and Materials,02-Apr-2014,2727754-3288326,790.64,LONDON GENERAL SALES LTD.
Neighbourhood Services,Technical Services,Stock,926900,Stock in hand-Inventory system,02-Apr-2014,2727755-135092,"1,096.00",LUCY ZODION LTD.
Children and Adult Services,Public Health,Third Party Payments,460803,Contract Payments,02-Apr-2014,2727761,620.00,M & M PHARMACIES LTD.
Neighbourhood Services,Direct Services,Premises,155001,Insurance of Premises,02-Apr-2014,2727764-1404079,"1,786.18",MANDALE INVESTMENTS LTD.
Neighbourhood Services,Technical Services,Stock,926900,Stock in hand-Inventory system,02-Apr-2014,2727768-208456,"1,711.10",MARWOOD ELECTRICAL CO LTD.
Neighbourhood Services,Technical Services,Supplies and Services,304221,Equipment and Materials,02-Apr-2014,2727773-12/328495,"27,974.88",MCARTHUR GROUP LTD.
Dedicated Schools Grant,Dedicated Schools Grant,Transport,230005,Contract Hire,02-Apr-2014,2727775-INV43,854.00,MICHAEL COBB (T/A HAIL TAXIS).
Regeneration & Economic Development,"Spatial Policy, Planning, Assets & Environment",Third Party Payments,440999,Other Third Party Payments,02-Apr-2014,2727777-3415,"5,211.49",MICROCOPY SYSTEMS LTD.
Corporate Resources,I.C.T. Services,Stock,926900,Stock in hand-Inventory system,02-Apr-2014,2727780-0000081448,722.00,MILLENNIUM BUSINESS SYSTEMS LTD.
Children and Adult Services,Children�s Services,Supplies and Services,338042,Services,02-Apr-2014,2727782-303816/INVLMU18,996.00,MISS LORRAINE MUSTARD.
Regeneration & Economic Development,"Spatial Policy, Planning, Assets & Environment",Supplies and Services,384700,Miscellaneous Expenses,02-Apr-2014,2727788-RED-04-2014-003,"1,229.20",REDACTED - PAYMENT TO INDIVIDUAL
Children and Adult Services,Children�s Services,Supplies and Services,338042,Services,02-Apr-2014,2727789-302648,"2,220.00",MR CHARLES MCCAIN.
Children and Adult Services,Children�s Services,Supplies and Services,338042,Services,02-Apr-2014,2727790-302737/INVCD50,625.00,MR CHRISTOPHER DORMAN O`GOWAN.
Children and Adult Services,Children�s Services,Supplies and Services,338042,Services,02-Apr-2014,2727791-288738/INVDR179,"1,020.00",MR DAVID ROWLANDS.
Regeneration & Economic Development,"Spatial Policy, Planning, Assets & Environment",Supplies and Services,384700,Miscellaneous Expenses,02-Apr-2014,2727792-RED-04-2014-006,"3,211.60",MR JOHN HUTCHINSON T/A JF & F HUTCHINSON.
Regeneration & Economic Development,"Spatial Policy, Planning, Assets & Environment",Supplies and Services,384700,Miscellaneous Expenses,02-Apr-2014,2727793-RED-04-2014-002,678.10,REDACTED - PAYMENT TO INDIVIDUAL
Regeneration & Economic Development,Economic Development and Housing,Cap Exp on Grants & Other Financial Assistance (REFCUS),918401,Capital grants,02-Apr-2014,2727794-RED-03-2014-236,955.00,MR M RAFTER.
Children and Adult Services,Children�s Services,Third Party Payments,440999,Other Third Party Payments,02-Apr-2014,2727807-24125,696.00,NATIONAL YOUTH ADVOCACY SERVICE.
Children and Adult Services,Children�s Services,Third Party Payments,440999,Other Third Party Payments,02-Apr-2014,2727807-24701,675.50,NATIONAL YOUTH ADVOCACY SERVICE.
Neighbourhood Services,Technical Services,Supplies and Services,304221,Equipment and Materials,02-Apr-2014,2727809-NC22/C259/BW,"1,108.30",NEDCO CONTRACTS (NE) LTD.
Regeneration & Economic Development,Economic Development and Housing,Cap Exp on Grants & Other Financial Assistance (REFCUS),918401,Capital grants,02-Apr-2014,2727812-RED-04-2014-052,"6,600.00",NEW AGE PLUMBING & HEATING SERVICES.
Neighbourhood Services,Direct Services,Construction Work,908105,Construction work,02-Apr-2014,2727813-061960,"1,111.95",NEW ROW FARM NURSERIES.
Dedicated Schools Grant,Dedicated Schools Grant,Employees,080025,Agency Staff,02-Apr-2014,2727815-81,"1,087.00",NEXT STEP CONSULTANCY.
Dedicated Schools Grant,Dedicated Schools Grant,Employees,080025,Agency Staff,02-Apr-2014,2727815-85,712.00,NEXT STEP CONSULTANCY.
Children and Adult Services,Children�s Services,Supplies and Services,384638,Miscellaneous Expenses,02-Apr-2014,2727818-0000016766,"1,228.50",NORTH EAST AUTISM SOCIETY.
Neighbourhood Services,Culture & Sport,Premises,108301,Service Repairs and Maintenance,02-Apr-2014,2727821-KM001A,"2,800.00",NORTHERN LOGS.
Neighbourhood Services,Direct Services,Transport,210057,Repair and Maintenance of Vehicles,02-Apr-2014,2727822-18605,767.40,NORTHERN POWER CLEAN LTD.
Neighbourhood Services,Direct Services,Supplies and Services,304259,Equipment and Materials,02-Apr-2014,2727823-1107426,"2,899.99",NORTHERN TOOLS & ACCESSORIES.
Children and Adult Services,Children�s Services,Premises,135005,Water Services,02-Apr-2014,2727824-306820420029010,"3,352.05",NORTHUMBRIAN WATER LTD.
Regeneration & Economic Development,Transport and Contracted Services,Third Party Payments,430100,Rendered by Private Contractors,02-Apr-2014,2727825-023699,"20,549.55",NSL LTD.
Regeneration & Economic Development,Transport and Contracted Services,Third Party Payments,430100,Rendered by Private Contractors,02-Apr-2014,2727825-023701,"62,100.66",NSL LTD.
Regeneration & Economic Development,Transport and Contracted Services,Third Party Payments,430100,Rendered by Private Contractors,02-Apr-2014,2727825-023702,"8,420.72",NSL LTD.
Regeneration & Economic Development,Transport and Contracted Services,Third Party Payments,430100,Rendered by Private Contractors,02-Apr-2014,2727825-023703,"3,861.51",NSL LTD.
Regeneration & Economic Development,Transport and Contracted Services,Third Party Payments,430100,Rendered by Private Contractors,02-Apr-2014,2727825-023704,"15,128.69",NSL LTD.
Regeneration & Economic Development,Transport and Contracted Services,Third Party Payments,430100,Rendered by Private Contractors,02-Apr-2014,2727825-023706,"10,861.08",NSL LTD.
Neighbourhood Services,Technical Services,Stock,926900,Stock in hand-Inventory system,02-Apr-2014,2727833-XL111088,"1,520.00",PARK ELECTRICAL DISTRIBUTORS LTD.
Children and Adult Services,Head of Adults,Third Party Payments,474101,Purchase of Care,02-Apr-2014,2727834-2154838,"1,475.76",PAVILION COURT.
Dedicated Schools Grant,Dedicated Schools Grant,Supplies and Services,304259,Equipment and Materials,02-Apr-2014,2727837-2500632672,"2,310.00",PHONAK UK LTD.
Dedicated Schools Grant,Dedicated Schools Grant,Supplies and Services,304639,Equipment and Materials,02-Apr-2014,2727837-2590941792,874.00,PHONAK UK LTD.
Regeneration & Economic Development,Transport and Contracted Services,Supplies and Services,342051,Computers and Communications,02-Apr-2014,2727838-90029,716.80,PINDAR TRAVEL INFORMATION SYSTEMS LTD T/A PINDAR CREATIVE.
RED HRA,HRA Capital,Construction Work,908105,Construction work,02-Apr-2014,2727840-194489,"1,171.00",PLUMBING TRADE SUPPLIES LTD.
Neighbourhood Services,Direct Services,Supplies and Services,304221,Equipment and Materials,02-Apr-2014,2727841-195093,836.69,PLUMBING TRADE SUPPLIES LTD.
Neighbourhood Services,Direct Services,Third Party Payments,430100,Rendered by Private Contractors,02-Apr-2014,2727842-150510231,"3,652.89",POLAR (NE) LTD.
Corporate Resources,Corporate Finance,Supplies and Services,308011,Furniture,02-Apr-2014,2727843-INV0134127,668.32,POSTURITE (UK) LTD.
Neighbourhood Services,Direct Services,Third Party Payments,430100,Rendered by Private Contractors,02-Apr-2014,2727844-64310,"1,184.04",PROTECTOR SECURITY GROUP LTD.
Neighbourhood Services,Direct Services,Third Party Payments,430100,Rendered by Private Contractors,02-Apr-2014,2727844-64892,"1,184.04",PROTECTOR SECURITY GROUP LTD.
Neighbourhood Services,Direct Services,Third Party Payments,430100,Rendered by Private Contractors,02-Apr-2014,2727847-3998,"5,678.40",QW SECURITY LTD.
Children and Adult Services,Head of Adults,Cap Exp on Grants & Other Financial Assistance (REFCUS),918401,Capital grants,02-Apr-2014,2727850-CAS-03-2014-174,"40,597.00",REDWELL HILLS.
Regeneration & Economic Development,"Spatial Policy, Planning, Assets & Environment",Supplies and Services,372009,Subscriptions,02-Apr-2014,2727851-079161,"3,250.00",RICS BUSINESS SERVICES LTD.
Neighbourhood Services,Technical Services,Supplies and Services,372009,Subscriptions,02-Apr-2014,2727851-079232,705.00,RICS BUSINESS SERVICES LTD.
Dedicated Schools Grant,Dedicated Schools Grant,Supplies and Services,384871,Miscellaneous Expenses,02-Apr-2014,2727852-996,"3,000.00",RIGHT TRAX LTD.
Neighbourhood Services,Direct Services,Third Party Payments,430100,Rendered by Private Contractors,02-Apr-2014,2727853-2959,"1,078.00",RINGLAND SCAFFOLDING.
Neighbourhood Services,Direct Services,Third Party Payments,430100,Rendered by Private Contractors,02-Apr-2014,2727853-2964,"1,800.00",RINGLAND SCAFFOLDING.
Regeneration & Economic Development,Transport and Contracted Services,Third Party Payments,430108,Rendered by Private Contractors,02-Apr-2014,2727855-228504,848.02,RITHERDON & CO LTD.
Children and Adult Services,Head of Adults,Supplies and Services,384616,Miscellaneous Expenses,02-Apr-2014,2727857-16018,"15,483.16",RIVERSIDE GROUP LTD.
Children and Adult Services,Head of Adults,Supplies and Services,384616,Miscellaneous Expenses,02-Apr-2014,2727857-16257,"8,916.35",RIVERSIDE GROUP LTD.
Children and Adult Services,Public Health,Third Party Payments,460803,Contract Payments,02-Apr-2014,2727859-FL345,681.00,ROBERTS & ROBERTS LTD T/A HIGGINBOTTOM PHARMACY.
RED HRA,HRA Capital,Construction Work,908105,Construction work,02-Apr-2014,2727872-72312,"1,012.00",SGS MIS ENVIRONMENTAL LTD.
RED HRA,HRA Capital,Construction Work,908105,Construction work,02-Apr-2014,2727872-72335,"1,104.00",SGS MIS ENVIRONMENTAL LTD.
RED HRA,HRA Capital,Construction Work,908105,Construction work,02-Apr-2014,2727872-72336,552.00,SGS MIS ENVIRONMENTAL LTD.
Neighbourhood Services,Culture & Sport,Supplies and Services,384199,Miscellaneous Expenses,02-Apr-2014,2727874-87918980,"2,100.00",SHEILA MULHERN.
Children and Adult Services,Public Health,Third Party Payments,460803,Contract Payments,02-Apr-2014,2727879-FJW29FEB,574.00,SHOTTON PHARMACY.
Neighbourhood Services,Technical Services,Transport,230701,Contract Hire,02-Apr-2014,2727880-740-7307-X07,"13,706.57",SIEMENS FINANCIAL SERVICES LTD.
Children and Adult Services,Children�s Services,Supplies and Services,384638,Miscellaneous Expenses,02-Apr-2014,2727887-SI-365,"6,630.00",SPORT WORKS LTD.
Neighbourhood Services,Direct Services,Third Party Payments,430105,Rendered by Private Contractors,02-Apr-2014,2727894-060994,"1,050.50",STONEGRAVE AGGREGATES LTD.
Neighbourhood Services,Technical Services,Stock,926900,Stock in hand-Inventory system,02-Apr-2014,2727895-6559235,940.32,SUPPLIES TEAM LTD.
Children and Adult Services,Children�s Services,Third Party Payments,425040,Rendered by Voluntary Organisations,02-Apr-2014,2727896-144305,910.00,SWIIS FOSTER CARE LTD.
Children and Adult Services,Children�s Services,Third Party Payments,425040,Rendered by Voluntary Organisations,02-Apr-2014,2727896-144307,"1,075.00",SWIIS FOSTER CARE LTD.
Children and Adult Services,Children�s Services,Third Party Payments,425040,Rendered by Voluntary Organisations,02-Apr-2014,2727896-144308,891.90,SWIIS FOSTER CARE LTD.
Children and Adult Services,Children�s Services,Third Party Payments,425040,Rendered by Voluntary Organisations,02-Apr-2014,2727896-144309,"1,069.00",SWIIS FOSTER CARE LTD.
Neighbourhood Services,Direct Services,Supplies and Services,304221,Equipment and Materials,02-Apr-2014,2727898-1105650,640.00,T CROSSLING & CO LTD.
Dedicated Schools Grant,Dedicated Schools Grant,Third Party Payments,410037,Rendered by Other Local Authorities,02-Apr-2014,2727905-82,926.96,THE CEDARS ACADEMY TRUST.
Dedicated Schools Grant,Dedicated Schools Grant,Third Party Payments,410037,Rendered by Other Local Authorities,02-Apr-2014,2727905-83,"6,959.24",THE CEDARS ACADEMY TRUST.
Neighbourhood Services,Technical Services,Stock,926900,Stock in hand-Inventory system,02-Apr-2014,2727909-N/IN118255,"2,744.30",THOMAS OWEN & SONS (NEWCASTLE) LTD.
Neighbourhood Services,Technical Services,Stock,926900,Stock in hand-Inventory system,02-Apr-2014,2727909-N/IN118891,795.12,THOMAS OWEN & SONS (NEWCASTLE) LTD.
Regeneration & Economic Development,Economic Development and Housing,Cap Exp on Grants & Other Financial Assistance (REFCUS),918401,Capital grants,02-Apr-2014,2727911-RED-04-2014-034,"3,730.00",THYSSENKRUPP ENCASA LTD.
Regeneration & Economic Development,Economic Development and Housing,Cap Exp on Grants & Other Financial Assistance (REFCUS),918401,Capital grants,02-Apr-2014,2727911-RED-04-2014-038,"1,810.00",THYSSENKRUPP ENCASA LTD.
Regeneration & Economic Development,Economic Development and Housing,Cap Exp on Grants & Other Financial Assistance (REFCUS),918401,Capital grants,02-Apr-2014,2727911-RED-04-2014-047,"4,725.00",THYSSENKRUPP ENCASA LTD.
Regeneration & Economic Development,Economic Development and Housing,Cap Exp on Grants & Other Financial Assistance (REFCUS),918401,Capital grants,02-Apr-2014,2727911-RED-04-2014-050,"3,625.00",THYSSENKRUPP ENCASA LTD.
Regeneration & Economic Development,Economic Development and Housing,Cap Exp on Grants & Other Financial Assistance (REFCUS),918401,Capital grants,02-Apr-2014,2727911-RED-04-2014-055,"3,759.50",THYSSENKRUPP ENCASA LTD.
Children and Adult Services,Head of Adults,Supplies and Services,384700,Miscellaneous Expenses,02-Apr-2014,2727912-2598,"8,000.00",TIN ARTS.
Corporate Resources,I.C.T. Services,Supplies and Services,304303,Equipment and Materials,02-Apr-2014,2727918-109720,"4,693.77",TP ELECTRICAL SUPPLIES & FIXINGS LTD.
Dedicated Schools Grant,Dedicated Schools Grant,Transport,230005,Contract Hire,02-Apr-2014,2727920-57,"2,440.00",TRIDENT TAXIS.
Neighbourhood Services,Direct Services,Supplies and Services,304259,Equipment and Materials,02-Apr-2014,2727923-4073,"4,181.50",TRISCAN SYSTEMS LTD.
Children and Adult Services,Education,Employees,040001,"Recruitment, Instruction and Training",02-Apr-2014,2727924-TARINV/15274727,652.50,TSL EDUCATION LTD.
Children and Adult Services,Education,Employees,040001,"Recruitment, Instruction and Training",02-Apr-2014,2727924-TARINV/15275858,652.50,TSL EDUCATION LTD.
Neighbourhood Services,Direct Services,Supplies and Services,338027,Services,02-Apr-2014,2727926-53592,"3,000.00",UNILINK FINANCE LTD.
Children and Adult Services,Planning & Service Strategy,Supplies and Services,338089,Services,02-Apr-2014,2727927-40000436,"4,250.00",UNIVERSITY OF TEESSIDE.
Neighbourhood Services,Technical Services,Stock,926900,Stock in hand-Inventory system,02-Apr-2014,2727929-19669009,"1,914.00",VIATEC UK LTD.
Children and Adult Services,Children�s Services,Fees,901002,Professional fees,02-Apr-2014,2727932-532944,900.00,WARD HADAWAY.
Neighbourhood Services,Technical Services,Supplies and Services,304221,Equipment and Materials,02-Apr-2014,2727933-16510,858.90,WARD TIMBER LTD.
Neighbourhood Services,Direct Services,Income,725025,Rents,02-Apr-2014,2727938-278083,"2,421.80",WHITTLE JONES (GROUP) LTD.
Children and Adult Services,Head of Adults,Premises,125009,Rents,02-Apr-2014,2727938-278255,"1,172.55",WHITTLE JONES (GROUP) LTD.
Neighbourhood Services,Technical Services,Third Party Payments,430100,Rendered by Private Contractors,02-Apr-2014,2727943-35257,975.00,WILLOWCRETE MFG CO LTD.
Neighbourhood Services,Technical Services,Stock,926900,Stock in hand-Inventory system,02-Apr-2014,2727949-10761128,"8,246.78",WOLSELEY UK LTD.
Neighbourhood Services,Technical Services,Stock,926900,Stock in hand-Inventory system,02-Apr-2014,2727949-10833509,"8,558.49",WOLSELEY UK LTD.
Neighbourhood Services,Technical Services,Stock,926900,Stock in hand-Inventory system,02-Apr-2014,2727949-10835307,"2,284.33",WOLSELEY UK LTD.
Neighbourhood Services,Direct Services,Supplies and Services,304221,Equipment and Materials,02-Apr-2014,2727949-10835308,918.00,WOLSELEY UK LTD.
Neighbourhood Services,Direct Services,Supplies and Services,304221,Equipment and Materials,02-Apr-2014,2727949-11089664,691.93,WOLSELEY UK LTD.
Neighbourhood Services,Culture & Sport,Supplies and Services,304259,Equipment and Materials,02-Apr-2014,2727951-DURHAM3,534.00,WOODCRAFT UK.
Neighbourhood Services,Direct Services,Supplies and Services,304221,Equipment and Materials,02-Apr-2014,2727953-104301/B,"3,430.00",WYBONE LTD.
Neighbourhood Services,Direct Services,Premises,125009,Rents,02-Apr-2014,2727955-5450,"2,000.00",YOUNGS RPS LLP.
RED HRA,HRA Centrally Managed,Creditors,952191,Creditor-HRA-rents-refunds,03-Apr-2014,2728125,906.72,REDACTED - PAYMENT TO INDIVIDUAL
RED HRA,HRA Centrally Managed,Creditors,952191,Creditor-HRA-rents-refunds,03-Apr-2014,2728132,516.14,REDACTED - PAYMENT TO INDIVIDUAL
RED HRA,HRA Centrally Managed,Creditors,952191,Creditor-HRA-rents-refunds,03-Apr-2014,2728136,714.93,REDACTED - PAYMENT TO INDIVIDUAL
RED HRA,HRA Centrally Managed,Creditors,952191,Creditor-HRA-rents-refunds,03-Apr-2014,2728146,518.61,REDACTED - PAYMENT TO INDIVIDUAL
RED HRA,HRA Capital,Construction Work,908105,Construction work,03-Apr-2014,2728165,"2,205.14",NORTHERN POWERGRID (NORTHEAST) LTD.
Neighbourhood Services,Direct Services,Supplies and Services,304221,Equipment and Materials,03-Apr-2014,2727958-005611,"10,260.00",A & C WEBER UK LTD.
RED HRA,HRA Capital,Construction Work,908105,Construction work,03-Apr-2014,2727960-13321,"1,515.00",ACREBROAD LTD T/A DOBERMANS FLOORING.
Neighbourhood Services,Technical Services,Supplies and Services,304221,Equipment and Materials,03-Apr-2014,2727961-19446202,"2,393.20",AGGREGATE INDUSTRIES UK LTD.
Neighbourhood Services,Technical Services,Supplies and Services,304221,Equipment and Materials,03-Apr-2014,2727961-19469391,"1,238.76",AGGREGATE INDUSTRIES UK LTD.
Neighbourhood Services,Technical Services,Supplies and Services,304221,Equipment and Materials,03-Apr-2014,2727961-19504587,"1,237.08",AGGREGATE INDUSTRIES UK LTD.
Neighbourhood Services,Technical Services,Supplies and Services,304221,Equipment and Materials,03-Apr-2014,2727961-19511356,680.96,AGGREGATE INDUSTRIES UK LTD.
Neighbourhood Services,Technical Services,Supplies and Services,304221,Equipment and Materials,03-Apr-2014,2727961-19511357,616.10,AGGREGATE INDUSTRIES UK LTD.
Neighbourhood Services,Technical Services,Supplies and Services,304221,Equipment and Materials,03-Apr-2014,2727962-19327611,"1,238.53",AGGREGATE INDUSTRIES UK LTD.
Neighbourhood Services,Technical Services,Supplies and Services,304221,Equipment and Materials,03-Apr-2014,2727962-19403613,"1,191.64",AGGREGATE INDUSTRIES UK LTD.
Neighbourhood Services,Technical Services,Supplies and Services,304221,Equipment and Materials,03-Apr-2014,2727962-19412881,"1,325.33",AGGREGATE INDUSTRIES UK LTD.
Neighbourhood Services,Technical Services,Supplies and Services,304221,Equipment and Materials,03-Apr-2014,2727962-19425341,556.24,AGGREGATE INDUSTRIES UK LTD.
Neighbourhood Services,Technical Services,Supplies and Services,304221,Equipment and Materials,03-Apr-2014,2727962-19440045,"2,040.78",AGGREGATE INDUSTRIES UK LTD.
Neighbourhood Services,Technical Services,Supplies and Services,304221,Equipment and Materials,03-Apr-2014,2727962-19446196,"2,021.30",AGGREGATE INDUSTRIES UK LTD.
Neighbourhood Services,Technical Services,Supplies and Services,304221,Equipment and Materials,03-Apr-2014,2727962-19446200,"1,243.72",AGGREGATE INDUSTRIES UK LTD.
Neighbourhood Services,Technical Services,Supplies and Services,304221,Equipment and Materials,03-Apr-2014,2727962-19446201,"3,133.48",AGGREGATE INDUSTRIES UK LTD.
Neighbourhood Services,Technical Services,Supplies and Services,304221,Equipment and Materials,03-Apr-2014,2727962-19452838,571.44,AGGREGATE INDUSTRIES UK LTD.
Neighbourhood Services,Technical Services,Supplies and Services,304221,Equipment and Materials,03-Apr-2014,2727962-19452893,"2,427.43",AGGREGATE INDUSTRIES UK LTD.
Neighbourhood Services,Technical Services,Supplies and Services,304221,Equipment and Materials,03-Apr-2014,2727962-19452895,"7,613.52",AGGREGATE INDUSTRIES UK LTD.
Neighbourhood Services,Technical Services,Supplies and Services,304221,Equipment and Materials,03-Apr-2014,2727962-19452899,671.24,AGGREGATE INDUSTRIES UK LTD.
Neighbourhood Services,Technical Services,Supplies and Services,304221,Equipment and Materials,03-Apr-2014,2727962-19452900,"1,196.60",AGGREGATE INDUSTRIES UK LTD.
Neighbourhood Services,Technical Services,Supplies and Services,304221,Equipment and Materials,03-Apr-2014,2727962-19452902,"9,808.40",AGGREGATE INDUSTRIES UK LTD.
Neighbourhood Services,Technical Services,Supplies and Services,304221,Equipment and Materials,03-Apr-2014,2727962-19459859,578.24,AGGREGATE INDUSTRIES UK LTD.
Neighbourhood Services,Technical Services,Supplies and Services,304221,Equipment and Materials,03-Apr-2014,2727962-19459860,"1,134.60",AGGREGATE INDUSTRIES UK LTD.
Neighbourhood Services,Technical Services,Supplies and Services,304221,Equipment and Materials,03-Apr-2014,2727962-19459861,"1,127.16",AGGREGATE INDUSTRIES UK LTD.
Neighbourhood Services,Technical Services,Supplies and Services,304221,Equipment and Materials,03-Apr-2014,2727962-19459862,"6,775.36",AGGREGATE INDUSTRIES UK LTD.
Neighbourhood Services,Technical Services,Supplies and Services,304221,Equipment and Materials,03-Apr-2014,2727962-19465486,"8,699.84",AGGREGATE INDUSTRIES UK LTD.
Neighbourhood Services,Technical Services,Supplies and Services,304221,Equipment and Materials,03-Apr-2014,2727962-19469389,"1,179.24",AGGREGATE INDUSTRIES UK LTD.
Neighbourhood Services,Technical Services,Supplies and Services,304221,Equipment and Materials,03-Apr-2014,2727962-19475561,"1,050.28",AGGREGATE INDUSTRIES UK LTD.
Neighbourhood Services,Technical Services,Supplies and Services,304221,Equipment and Materials,03-Apr-2014,2727962-19475562,"7,185.80",AGGREGATE INDUSTRIES UK LTD.
Neighbourhood Services,Technical Services,Supplies and Services,304221,Equipment and Materials,03-Apr-2014,2727962-19481950,830.78,AGGREGATE INDUSTRIES UK LTD.
Neighbourhood Services,Technical Services,Supplies and Services,304221,Equipment and Materials,03-Apr-2014,2727962-19481954,"7,075.44",AGGREGATE INDUSTRIES UK LTD.
Neighbourhood Services,Technical Services,Supplies and Services,304221,Equipment and Materials,03-Apr-2014,2727962-19486672,"2,421.06",AGGREGATE INDUSTRIES UK LTD.
Neighbourhood Services,Technical Services,Supplies and Services,304221,Equipment and Materials,03-Apr-2014,2727962-19488575,665.84,AGGREGATE INDUSTRIES UK LTD.
Neighbourhood Services,Technical Services,Supplies and Services,304221,Equipment and Materials,03-Apr-2014,2727962-19488670,"2,989.94",AGGREGATE INDUSTRIES UK LTD.
Neighbourhood Services,Technical Services,Supplies and Services,304221,Equipment and Materials,03-Apr-2014,2727962-19488676,"3,297.60",AGGREGATE INDUSTRIES UK LTD.
Neighbourhood Services,Technical Services,Supplies and Services,304221,Equipment and Materials,03-Apr-2014,2727962-19495305,"1,857.31",AGGREGATE INDUSTRIES UK LTD.
Neighbourhood Services,Technical Services,Supplies and Services,304221,Equipment and Materials,03-Apr-2014,2727962-19495308,668.00,AGGREGATE INDUSTRIES UK LTD.
Children and Adult Services,Children�s Services,Supplies and Services,304259,Equipment and Materials,03-Apr-2014,2727963-148175,560.00,ALBANY CONTRACT FURNITURE.
Neighbourhood Services,Direct Services,Third Party Payments,430100,Rendered by Private Contractors,03-Apr-2014,2727965-435,"1,400.00",ALL SEASONS ARBORISTS.
Regeneration & Economic Development,Transport and Contracted Services,Construction Work,908105,Construction work,03-Apr-2014,2727966-021417,"19,428.40",ALLIED EXPLORATION & GEOTECHNICS LTD.
Dedicated Schools Grant,Dedicated Schools Grant,Supplies and Services,338035,Services,03-Apr-2014,2727969-10269708,"8,781.00",AQA EDUCATION.
Neighbourhood Services,Technical Services,Stock,926900,Stock in hand-Inventory system,03-Apr-2014,2727970-921503092,"1,639.57",ARCO LTD.
Children and Adult Services,Children�s Services,Third Party Payments,425040,Rendered by Voluntary Organisations,03-Apr-2014,2727977-146500530,"3,972.03",BARNARDOS.
Neighbourhood Services,Direct Services,Supplies and Services,304221,Equipment and Materials,03-Apr-2014,2727982-7002,"17,889.03",BIOMASS BOILER SERVICES LTD.
Neighbourhood Services,Culture & Sport,Supplies and Services,338066,Services,03-Apr-2014,2727983-6710314,"5,000.00",BLUE THE DESIGN CO LTD.
Neighbourhood Services,Projects and Business services,Supplies and Services,338027,Services,03-Apr-2014,2727985-4167017,541.00,BOND DICKINSON LLP.
Children and Adult Services,Planning & Service Strategy,Supplies and Services,338089,Services,03-Apr-2014,2727986-6050662,"3,863.00",BOND SOLON TRAINING LTD.
Children and Adult Services,Education,Supplies and Services,324117,Provisions,03-Apr-2014,2727987-41010768,613.27,BRAKE BROS FOODSERVICE LTD.
Children and Adult Services,Education,Transfer Payments,510026,School Children,03-Apr-2014,2727989,569.90,BRANDON HAPPYTIMES DAYCARE.
Regeneration & Economic Development,Economic Development and Housing,Supplies and Services,377015,County Durham Development,03-Apr-2014,2727994-SI-102762,"8,000.00",BUSINESS & ENTERPRISE NORTH EAST.
Assistant Chief Executive,Partnerships & Community Engagement Div.,Transfer Payments,525030,Other,03-Apr-2014,2727995-RED-04-2014-032,"1,843.72",BYERS GREEN VILLAGE HALL COMMUNITY ASSOCIATION.
Neighbourhood Services,Direct Services,Supplies and Services,304221,Equipment and Materials,03-Apr-2014,2727999-851400636,"2,408.90",CARLISLE CONSTRUCTION MATERIALS LTD.
Corporate Resources,Financial Services,Supplies and Services,340001,Postages,03-Apr-2014,2728005-CS66092,"59,013.40",CFH TOTAL DOCUMENT MANAGEMENT LTD.
Corporate Resources,Financial Services,Supplies and Services,332029,"Printing, Stationery and Gen Off Exps",03-Apr-2014,2728005-CS66237,"14,405.86",CFH TOTAL DOCUMENT MANAGEMENT LTD.
Neighbourhood Services,"Environment,Health & Consumer Protection",Employees,040001,"Recruitment, Instruction and Training",03-Apr-2014,2728006-INV473841,700.00,CHARTERED INSTITUTE OF ENVIRONMENTAL HEALTH.
Children and Adult Services,Commissioning inc Supporting People,Supplies and Services,384700,Miscellaneous Expenses,03-Apr-2014,2728007-1,"4,050.00",CHESTER WEST & CENTRAL COMMUNITY PROJECT.
Neighbourhood Services,Direct Services,Supplies and Services,304221,Equipment and Materials,03-Apr-2014,2728008-13/667,"1,323.61",REDACTED
Regeneration & Economic Development,Transport and Contracted Services,Supplies and Services,338027,Services,03-Apr-2014,2728011-9101293160,"4,400.00",CITY OF YORK COUNCIL.
Children and Adult Services,Children�s Services,Transport,235057,Public Transport,03-Apr-2014,2728012-470336,"5,271.08",CLICK TRAVEL LTD.
Children and Adult Services,Children�s Services,Employees,080025,Agency Staff,03-Apr-2014,2728013-3910002260,"10,877.19",CO DURHAM & DARLINGTON NHS FOUNDATION TRUST.
Children and Adult Services,Children�s Services,Employees,080025,Agency Staff,03-Apr-2014,2728013-3910002525,"11,181.43",CO DURHAM & DARLINGTON NHS FOUNDATION TRUST.
Children and Adult Services,Children�s Services,Third Party Payments,479101,Purchase of Care,03-Apr-2014,2728013-3910003215,"22,188.00",CO DURHAM & DARLINGTON NHS FOUNDATION TRUST.
Children and Adult Services,Head of Adults,Supplies and Services,338370,Services,03-Apr-2014,2728013-3910003374,"48,016.27",CO DURHAM & DARLINGTON NHS FOUNDATION TRUST.
Neighbourhood Services,Technical Services,Stock,926900,Stock in hand-Inventory system,03-Apr-2014,2728014-148114,612.00,COLAS LTD.
Neighbourhood Services,Technical Services,Third Party Payments,430100,Rendered by Private Contractors,03-Apr-2014,2728021-15804,"2,247.89",COUPE LINE LTD.
Neighbourhood Services,Technical Services,Third Party Payments,430100,Rendered by Private Contractors,03-Apr-2014,2728021-15805,"4,129.58",COUPE LINE LTD.
Regeneration & Economic Development,Economic Development and Housing,Cap Exp on Grants & Other Financial Assistance (REFCUS),918401,Capital grants,03-Apr-2014,2728023-RED-04-2014-036,"3,265.00",CRAIG PATTERSON T/A LET ME GET YOU WET.
Neighbourhood Services,Direct Services,Debtors,930046,Debtor-leasing,03-Apr-2014,2728025-2011598,"52,715.00",CUMBERLAND PLATFORM LTD.
Neighbourhood Services,Culture & Sport,Supplies and Services,336005,Advertising,03-Apr-2014,2728026-38335,"1,199.50",D & P TROPHIES.
RED HRA,HRA Capital,Construction Work,908105,Construction work,03-Apr-2014,2728032-195039,"1,379.94",DELTA ELECTRICAL & MECHANICAL SERVICES.
RED HRA,HRA Capital,Construction Work,908105,Construction work,03-Apr-2014,2728032-195041,943.37,DELTA ELECTRICAL & MECHANICAL SERVICES.
RED HRA,HRA Capital,Construction Work,908105,Construction work,03-Apr-2014,2728032-195042,"3,181.91",DELTA ELECTRICAL & MECHANICAL SERVICES.
Children and Adult Services,Commissioning inc Supporting People,Supplies and Services,384700,Miscellaneous Expenses,03-Apr-2014,2728037-SKILLS,"5,000.00",DIGITAL VOICE.
Children and Adult Services,Commissioning inc Supporting People,Supplies and Services,384700,Miscellaneous Expenses,03-Apr-2014,2728038-CAS-11-2013-087,"10,000.00",DISC LTD.
Neighbourhood Services,Culture & Sport,Supplies and Services,338099,Services,03-Apr-2014,2728039-149186,900.00,DO YOU LOVE FOOD LTD.
Regeneration & Economic Development,Transport and Contracted Services,Third Party Payments,440999,Other Third Party Payments,03-Apr-2014,2728041-5595-15,"1,666.67",DTA CONSULTING ENGINEERS.
Corporate Resources,Legal & Democratic Services,Supplies and Services,384199,Miscellaneous Expenses,03-Apr-2014,2728042-20390,603.35,DURHAM BUSINESSWEAR LTD.
Children and Adult Services,Children�s Services,Supplies and Services,384199,Miscellaneous Expenses,03-Apr-2014,2728049-001-20/1/14,"1,260.00",ECLIPSE FITNESS & PERSONAL TRAINING.
RED HRA,HRA Capital,Construction Work,908105,Construction work,03-Apr-2014,2728050-193602,"1,124.09",EDMUNDSON ELECTRICAL LTD.
Regeneration & Economic Development,Economic Development and Housing,Cap Exp on Grants & Other Financial Assistance (REFCUS),918401,Capital grants,03-Apr-2014,2728053-RED-04-2014-035,"2,540.00",ELLIOT HIRD & PARTNERS LTD.
Assistant Chief Executive,Partnerships & Community Engagement Div.,Supplies and Services,384086,Miscellaneous Expenses,03-Apr-2014,2728054,"2,250.00",ELMFIELD ACTION GROUP.
Children and Adult Services,Education,Third Party Payments,440999,Other Third Party Payments,03-Apr-2014,2728056-E281,"6,280.12",EVENTCOVER EDUCATION LTD.
Children and Adult Services,Public Health,Supplies and Services,338094,Services,03-Apr-2014,2728057-607,500.00,FERRYHILL LADDER CENTRE LTD.
Children and Adult Services,Public Health,Supplies and Services,338094,Services,03-Apr-2014,2728057-620,500.00,FERRYHILL LADDER CENTRE LTD.
Children and Adult Services,Planning & Service Strategy,Supplies and Services,338089,Services,03-Apr-2014,2728058-539,"1,400.00",FIRST IN TRAINING LTD.
Neighbourhood Services,Technical Services,Stock,926900,Stock in hand-Inventory system,03-Apr-2014,2728059-OP/I277535,721.10,FLEMING & CO (MACHINERY) LTD.
Neighbourhood Services,Technical Services,Stock,926900,Stock in hand-Inventory system,03-Apr-2014,2728059-OP/I277608,570.50,FLEMING & CO (MACHINERY) LTD.
Regeneration & Economic Development,Economic Development and Housing,Fees,901001,Internal fees,03-Apr-2014,2728060-SITRH/0006244,"1,578.53",FOUR HOUSING GROUP.
Regeneration & Economic Development,Economic Development and Housing,Fees,901001,Internal fees,03-Apr-2014,2728060-SITRH/0006245,"2,237.62",FOUR HOUSING GROUP.
Neighbourhood Services,Projects and Business services,Third Party Payments,430114,Rendered by Private Contractors,03-Apr-2014,2728063-014009,"35,179.75",G O`BRIEN & SONS LTD.
Neighbourhood Services,Technical Services,Supplies and Services,304357,Equipment and Materials,03-Apr-2014,2728065-DCC300314,"12,193.05",GAP GROUP LTD.
Regeneration & Economic Development,"Spatial Policy, Planning, Assets & Environment",Supplies and Services,384700,Miscellaneous Expenses,03-Apr-2014,2728066-RED-04-2014-063,"2,285.85",REDACTED - PAYMENT TO INDIVIDUAL
Neighbourhood Services,Technical Services,Stock,926900,Stock in hand-Inventory system,03-Apr-2014,2728070-06/503868,"6,249.57",GREENHAM TRADING LTD.
Neighbourhood Services,Technical Services,Stock,926900,Stock in hand-Inventory system,03-Apr-2014,2728070-06/505479,"1,147.88",GREENHAM TRADING LTD.
RED HRA,HRA Capital,Construction Work,908105,Construction work,03-Apr-2014,2728072-SIN348434,"3,480.00",HANDICARE ACCESSIBILITY LTD.
Neighbourhood Services,Technical Services,Third Party Payments,460350,Contract Payments,03-Apr-2014,2728075-4297,"4,382.50",HAWTHORN PLANT HIRE.
Neighbourhood Services,Direct Services,Supplies and Services,304221,Equipment and Materials,03-Apr-2014,2728076-4436770,527.67,HEADLAM (FLOORCOVERING DISTRIBUTORS) LTD.
Regeneration & Economic Development,Strategy Programmes and Performance,Supplies and Services,384899,Miscellaneous Expenses,03-Apr-2014,2728079-FEDF005,"3,485.54",HERITAGE ACCOUNTANCY LTD.
Neighbourhood Services,Culture & Sport,Supplies and Services,338099,Services,03-Apr-2014,2728081-HBBATH29,700.00,HILARITY BITES COMEDY CLUB.
Neighbourhood Services,Direct Services,Premises,115125,Repairs to Grounds,03-Apr-2014,2728082-B33/0064955,732.04,HOWDENS JOINERY LTD.
Neighbourhood Services,Direct Services,Premises,115125,Repairs to Grounds,03-Apr-2014,2728083-B33/0064709,761.17,HOWDENS JOINERY LTD.
Neighbourhood Services,Direct Services,Supplies and Services,304221,Equipment and Materials,03-Apr-2014,2728083-B33/0064881,848.74,HOWDENS JOINERY LTD.
Neighbourhood Services,Direct Services,Premises,115125,Repairs to Grounds,03-Apr-2014,2728083-B33/0064952,785.02,HOWDENS JOINERY LTD.
Neighbourhood Services,Direct Services,Premises,115125,Repairs to Grounds,03-Apr-2014,2728083-B33/0064953,889.78,HOWDENS JOINERY LTD.
Neighbourhood Services,Direct Services,Premises,115125,Repairs to Grounds,03-Apr-2014,2728083-B33/0064954,704.11,HOWDENS JOINERY LTD.
Neighbourhood Services,Direct Services,Premises,115125,Repairs to Grounds,03-Apr-2014,2728083-B33/0065037,705.25,HOWDENS JOINERY LTD.
Neighbourhood Services,Technical Services,Employees,040149,"Recruitment, Instruction and Training",03-Apr-2014,2728084-1077,600.00,HSF TRAINING LTD.
Children and Adult Services,Education,Construction Work,908105,Construction work,03-Apr-2014,2728085-DURH/0480,"295,018.00",INSPIREDSPACES DURHAM LTD.
Children and Adult Services,Education,Construction Work,908105,Construction work,03-Apr-2014,2728085-DURH/0481,"212,496.93",INSPIREDSPACES DURHAM LTD.
Neighbourhood Services,Direct Services,"Vehicles, Equipment, Furniture and Fittings",912529,Purchase-equipment,03-Apr-2014,2728086-14074,"16,635.00",INTEGRATED SKILLS LTD.
Corporate Resources,Human Resources,Employees,040149,"Recruitment, Instruction and Training",03-Apr-2014,2728088-41636,673.50,ISTOCKPHOTO LP.
Neighbourhood Services,Direct Services,Third Party Payments,430100,Rendered by Private Contractors,03-Apr-2014,2728089-7939,"2,100.00",IWP DANSK LTD.
Neighbourhood Services,Direct Services,Supplies and Services,304221,Equipment and Materials,03-Apr-2014,2728093-3307/0136962,718.72,JEWSON LTD.
Neighbourhood Services,Direct Services,Premises,115125,Repairs to Grounds,03-Apr-2014,2728093-3307/0137593,545.18,JEWSON LTD.
Neighbourhood Services,Technical Services,Supplies and Services,304221,Equipment and Materials,03-Apr-2014,2728094-00087970,"4,969.28",JOBLING PURSER LTD.
Regeneration & Economic Development,Economic Development and Housing,Other Expenses,914001,Other capital expenses,03-Apr-2014,2728096-N1024335,"20,874.54",JOHN MACLEAN & SONS ELECTRICAL (DINGWALL) LTD.
Neighbourhood Services,Technical Services,Stock,926900,Stock in hand-Inventory system,03-Apr-2014,2728096-N1024484,"56,925.00",JOHN MACLEAN & SONS ELECTRICAL (DINGWALL) LTD.
Neighbourhood Services,Technical Services,Stock,926900,Stock in hand-Inventory system,03-Apr-2014,2728096-NI024428,"12,068.10",JOHN MACLEAN & SONS ELECTRICAL (DINGWALL) LTD.
Neighbourhood Services,Technical Services,Supplies and Services,304221,Equipment and Materials,03-Apr-2014,2728100-BII128832,752.40,JT DOVE LTD.
Neighbourhood Services,Technical Services,Supplies and Services,304221,Equipment and Materials,03-Apr-2014,2728100-BII130083,"2,700.86",JT DOVE LTD.
Neighbourhood Services,Technical Services,Supplies and Services,304221,Equipment and Materials,03-Apr-2014,2728100-BII130218,839.87,JT DOVE LTD.
Neighbourhood Services,Direct Services,Supplies and Services,304221,Equipment and Materials,03-Apr-2014,2728100-NBI109023,633.75,JT DOVE LTD.
Neighbourhood Services,Technical Services,Stock,926900,Stock in hand-Inventory system,03-Apr-2014,2728100-STI397372,"1,246.58",JT DOVE LTD.
Neighbourhood Services,Technical Services,Stock,926900,Stock in hand-Inventory system,03-Apr-2014,2728100-STI397391,771.00,JT DOVE LTD.
Neighbourhood Services,Technical Services,Stock,926900,Stock in hand-Inventory system,03-Apr-2014,2728100-STI397445,632.00,JT DOVE LTD.
Neighbourhood Services,Technical Services,Stock,926900,Stock in hand-Inventory system,03-Apr-2014,2728100-STI397520,771.44,JT DOVE LTD.
Neighbourhood Services,Technical Services,Stock,926900,Stock in hand-Inventory system,03-Apr-2014,2728100-STI397531,915.75,JT DOVE LTD.
Neighbourhood Services,Technical Services,Stock,926900,Stock in hand-Inventory system,03-Apr-2014,2728100-STI397598,630.00,JT DOVE LTD.
Neighbourhood Services,Technical Services,Stock,926900,Stock in hand-Inventory system,03-Apr-2014,2728100-STI397662,684.00,JT DOVE LTD.
Neighbourhood Services,Technical Services,Stock,926900,Stock in hand-Inventory system,03-Apr-2014,2728100-STI397663,799.00,JT DOVE LTD.
Neighbourhood Services,Technical Services,Stock,926900,Stock in hand-Inventory system,03-Apr-2014,2728100-STI397667,500.94,JT DOVE LTD.
RED HRA,HRA Capital,Construction Work,908105,Construction work,03-Apr-2014,2728102-I365,620.40,KJS ACCESS SOLUTIONS.
Neighbourhood Services,Technical Services,Supplies and Services,304221,Equipment and Materials,03-Apr-2014,2728103-9030514192,541.90,LAFARGE TARMAC TRADING LTD.
Neighbourhood Services,Technical Services,Supplies and Services,304221,Equipment and Materials,03-Apr-2014,2728103-9030653722,560.24,LAFARGE TARMAC TRADING LTD.
Neighbourhood Services,Technical Services,Supplies and Services,304221,Equipment and Materials,03-Apr-2014,2728103-9030658856,626.80,LAFARGE TARMAC TRADING LTD.
Neighbourhood Services,Technical Services,Supplies and Services,304221,Equipment and Materials,03-Apr-2014,2728103-9030722031,"1,117.90",LAFARGE TARMAC TRADING LTD.
Neighbourhood Services,Technical Services,Supplies and Services,304221,Equipment and Materials,03-Apr-2014,2728103-9030723833,"1,001.85",LAFARGE TARMAC TRADING LTD.
Neighbourhood Services,Technical Services,Supplies and Services,304221,Equipment and Materials,03-Apr-2014,2728103-9030725507,626.80,LAFARGE TARMAC TRADING LTD.
Neighbourhood Services,Technical Services,Supplies and Services,304221,Equipment and Materials,03-Apr-2014,2728103-9030731655,833.04,LAFARGE TARMAC TRADING LTD.
Neighbourhood Services,Culture & Sport,Supplies and Services,338029,Services,03-Apr-2014,2728108-DDC0010,"2,639.00",LEWIS LEISURE CONSULTANCY.
Neighbourhood Services,Direct Services,Supplies and Services,304221,Equipment and Materials,03-Apr-2014,2728111-A14001368,721.00,LIFT COMPONENTS LTD.
Neighbourhood Services,Direct Services,Supplies and Services,304221,Equipment and Materials,03-Apr-2014,2728112-4939339,"1,139.34",LINDAB LTD.
Neighbourhood Services,Direct Services,Supplies and Services,304221,Equipment and Materials,03-Apr-2014,2728114-3275436,"4,095.00",LONDON GENERAL SALES LTD.
Neighbourhood Services,Direct Services,Supplies and Services,304221,Equipment and Materials,03-Apr-2014,2728114-3295458,"2,507.05",LONDON GENERAL SALES LTD.
Neighbourhood Services,Direct Services,Transport,230005,Contract Hire,03-Apr-2014,2728115-HI0070596,"1,388.75",LOOKERS LEASING LTD.
Neighbourhood Services,Technical Services,Supplies and Services,304358,Equipment and Materials,03-Apr-2014,2728118-1640.00,682.00,MARTIN JEWITT PLANT HIRE.
Children and Adult Services,Children�s Services,Third Party Payments,440016,Other Third Party Payments,03-Apr-2014,2728120-CAS-04-2014-013,770.43,REDACTED - PAYMENT TO INDIVIDUAL
Regeneration & Economic Development,"Spatial Policy, Planning, Assets & Environment",Premises,125009,Rents,03-Apr-2014,2728121-3800,"17,793.75",MINTON OLDBURY LTD.
Regeneration & Economic Development,"Spatial Policy, Planning, Assets & Environment",Supplies and Services,384700,Miscellaneous Expenses,03-Apr-2014,2728129-RED-04-2014-065,"1,500.00",MORTHAM ESTATES (TRUSTEES) LTD.
Assistant Chief Executive,Policy & Communications Division,Supplies and Services,312010,"Newspapers, Books and Periodicals",03-Apr-2014,2728151-248526/0,"16,220.85",NATIONAL LEAFLET CO LTD.
Neighbourhood Services,Direct Services,Supplies and Services,384199,Miscellaneous Expenses,03-Apr-2014,2728152-7996,895.00,NELSONS OF DURHAM.
Children and Adult Services,Education,Supplies and Services,340001,Postages,03-Apr-2014,2728153-CAS-04-2014-016,"3,000.00",NEOPOST LTD CREDIFON RCB ACCOUNT.
Regeneration & Economic Development,Transport and Contracted Services,Construction Work,908105,Construction work,03-Apr-2014,2728155-1142031,"7,465.70",NETWORK RAIL.
Neighbourhood Services,Direct Services,Supplies and Services,304221,Equipment and Materials,03-Apr-2014,2728159-SI/02290069,"3,111.50",NOMIX ENVIRO A DIVISION OF FRONTIER AGRICULTURE LTD.
Children and Adult Services,Education,Supplies and Services,338027,Services,03-Apr-2014,2728160-418,501.00,NORTH EAST ENVIRONMENT NETWORK LTD.
Corporate Resources,Human Resources,Supplies and Services,338066,Services,03-Apr-2014,2728161-DCC-1383,"29,000.00",NORTH EAST PROCUREMENT ORGANISATION LTD (NEPRO).
Corporate Resources,Human Resources,Supplies and Services,338066,Services,03-Apr-2014,2728161-DCC-1384,"30,000.00",NORTH EAST PROCUREMENT ORGANISATION LTD (NEPRO).
Neighbourhood Services,Projects and Business services,Third Party Payments,430100,Rendered by Private Contractors,03-Apr-2014,2728161-DCC-1385-0314-NL,"24,499.00",NORTH EAST PROCUREMENT ORGANISATION LTD (NEPRO).
Children and Adult Services,Head of Adults,Supplies and Services,338066,Services,03-Apr-2014,2728161-DCC-1386-0314-NL,"10,125.00",NORTH EAST PROCUREMENT ORGANISATION LTD (NEPRO).
Children and Adult Services,Public Health,Supplies and Services,338066,Services,03-Apr-2014,2728161-DCC-1387-0314-NL,"19,950.00",NORTH EAST PROCUREMENT ORGANISATION LTD (NEPRO).
RED HRA,HRA Capital,Construction Work,908105,Construction work,03-Apr-2014,2728163-124,700.00,NORTHEAST STAIRLIFTS LTD.
Neighbourhood Services,Culture & Sport,Premises,108301,Service Repairs and Maintenance,03-Apr-2014,2728164-KM001B,"2,025.00",NORTHERN LOGS.
Corporate Resources,Human Resources,Supplies and Services,384199,Miscellaneous Expenses,03-Apr-2014,2728167-I2165412,"2,699.72",NORTHGATE INFORMATION SOLUTIONS UK LTD.
Corporate Resources,Human Resources,Supplies and Services,342053,Computers and Communications,03-Apr-2014,2728167-I2165413,"187,370.25",NORTHGATE INFORMATION SOLUTIONS UK LTD.
Corporate Resources,Human Resources,Supplies and Services,384199,Miscellaneous Expenses,03-Apr-2014,2728167-I2165414,"4,580.58",NORTHGATE INFORMATION SOLUTIONS UK LTD.
RED HRA,HRA Capital,Construction Work,908105,Construction work,03-Apr-2014,2728170-INVOICE1788,832.50,OAKES ENERGY SERVICES LTD.
Children and Adult Services,Head of Adults,Supplies and Services,304259,Equipment and Materials,03-Apr-2014,2728175-555241,544.00,P & N ASSOCIATES LTD.
Neighbourhood Services,Technical Services,Stock,926900,Stock in hand-Inventory system,03-Apr-2014,2728176-XL110475,660.00,PARK ELECTRICAL DISTRIBUTORS LTD.
Neighbourhood Services,Technical Services,Stock,926900,Stock in hand-Inventory system,03-Apr-2014,2728176-XL110477,"1,325.00",PARK ELECTRICAL DISTRIBUTORS LTD.
Regeneration & Economic Development,Economic Development and Housing,Cap Exp on Grants & Other Financial Assistance (REFCUS),918401,Capital grants,03-Apr-2014,2728178-RED-04-2014-042,"6,385.00",PETER JORDAN.
Neighbourhood Services,Direct Services,"Vehicles, Equipment, Furniture and Fittings",912541,Purchase-vehicles,03-Apr-2014,2728192-703153,"18,535.00",RICKERBY LTD.
Neighbourhood Services,Direct Services,Third Party Payments,430100,Rendered by Private Contractors,03-Apr-2014,2728193-2957,"2,451.00",RINGLAND SCAFFOLDING.
Neighbourhood Services,Projects and Business services,Supplies and Services,340001,Postages,03-Apr-2014,2728198-9046838136,"2,788.33",ROYAL MAIL GROUP PLC.
Regeneration & Economic Development,Economic Development and Housing,Cap Exp on Grants & Other Financial Assistance (REFCUS),918401,Capital grants,03-Apr-2014,2728201-RED-04-2014-053,"5,190.00",SAFEBUILD LTD.
Neighbourhood Services,Direct Services,Supplies and Services,338078,Services,03-Apr-2014,2728202-1566,"1,665.37",SAFEGUARD SECURITY (NE) LTD.
Neighbourhood Services,Direct Services,Supplies and Services,338078,Services,03-Apr-2014,2728202-1723,"1,877.86",SAFEGUARD SECURITY (NE) LTD.
Neighbourhood Services,Direct Services,Supplies and Services,338078,Services,03-Apr-2014,2728202-2381,"1,829.00",SAFEGUARD SECURITY (NE) LTD.
Neighbourhood Services,Direct Services,Supplies and Services,338078,Services,03-Apr-2014,2728202-2520,"1,872.36",SAFEGUARD SECURITY (NE) LTD.
Regeneration & Economic Development,Economic Development and Housing,Supplies and Services,304337,Equipment and Materials,03-Apr-2014,2728203-5522,"1,126.20",SEASALT LTD.
RED HRA,HRA Capital,Construction Work,908105,Construction work,03-Apr-2014,2728205-CON69089,700.00,SGS MIS ENVIRONMENTAL LTD.
Children and Adult Services,Children�s Services,Supplies and Services,338027,Services,03-Apr-2014,2728206-1/2013-14-25/3/14,"3,322.00",SHEILA O`CONNOR.
Neighbourhood Services,Technical Services,Supplies and Services,304221,Equipment and Materials,03-Apr-2014,2728207-714516661773,"1,466.53",SIG TRADING LTD.
Children and Adult Services,Children�s Services,Supplies and Services,304259,Equipment and Materials,03-Apr-2014,2728212-MAN59035,742.85,SPACEKRAFT LTD.
Corporate Resources,I.C.T. Services,Stock,926900,Stock in hand-Inventory system,03-Apr-2014,2728213-OP/L819774,"1,920.00",SPECIALIST COMPUTER CENTRES PLC.
Children and Adult Services,Children�s Services,Third Party Payments,425020,Rendered by Voluntary Organisations,03-Apr-2014,2728216-1141563,"1,990.00",ST CUTHBERTS CARE.
Regeneration & Economic Development,Economic Development and Housing,Supplies and Services,384700,Miscellaneous Expenses,03-Apr-2014,2728218-RED-04-2014-072,"1,000.00",STERLING PAVING & GROUNDWORKS LTD.
Neighbourhood Services,Technical Services,Supplies and Services,304221,Equipment and Materials,03-Apr-2014,2728220-060728,"1,252.94",STONEGRAVE AGGREGATES LTD.
Neighbourhood Services,Culture & Sport,Supplies and Services,338027,Services,03-Apr-2014,2728221-K016,"1,000.00",STUART DAVIS ASSOCIATES LTD.
Children and Adult Services,Education,Third Party Payments,440999,Other Third Party Payments,03-Apr-2014,2728222-0000004097,"6,000.00",SUNDERLAND AFC FOUNDATION.
Neighbourhood Services,Direct Services,Supplies and Services,332047,"Printing, Stationery and Gen Off Exps",03-Apr-2014,2728223-6559192,516.84,SUPPLIES TEAM LTD.
Neighbourhood Services,Technical Services,Stock,926900,Stock in hand-Inventory system,03-Apr-2014,2728224-46/813995,"1,160.00",SUPPLY UK.
Children and Adult Services,Children�s Services,Third Party Payments,425040,Rendered by Voluntary Organisations,03-Apr-2014,2728225-144306,"1,069.00",SWIIS FOSTER CARE LTD.
Children and Adult Services,Children�s Services,Third Party Payments,425040,Rendered by Voluntary Organisations,03-Apr-2014,2728229-21559,"2,800.00",TEAM FOSTERING.
Neighbourhood Services,Direct Services,Third Party Payments,430100,Rendered by Private Contractors,03-Apr-2014,2728230-6329,"1,715.00",TEAMS ROOFING LTD.
Children and Adult Services,Commissioning inc Supporting People,Third Party Payments,479101,Purchase of Care,03-Apr-2014,2728232-4810002005,"4,198.02",TEES ESK & WEAR VALLEYS NHS FOUNDATION TRUST.
Children and Adult Services,Children�s Services,Employees,080025,Agency Staff,03-Apr-2014,2728232-4810002055,"6,592.00",TEES ESK & WEAR VALLEYS NHS FOUNDATION TRUST.
Children and Adult Services,Children�s Services,Third Party Payments,440999,Other Third Party Payments,03-Apr-2014,2728232-4810002056,"3,500.00",TEES ESK & WEAR VALLEYS NHS FOUNDATION TRUST.
Children and Adult Services,Head of Adults,Third Party Payments,479101,Purchase of Care,03-Apr-2014,2728232-4810002062,"1,666.65",TEES ESK & WEAR VALLEYS NHS FOUNDATION TRUST.
Children and Adult Services,Commissioning inc Supporting People,Third Party Payments,479101,Purchase of Care,03-Apr-2014,2728232-4810002170,"4,136.60",TEES ESK & WEAR VALLEYS NHS FOUNDATION TRUST.
Neighbourhood Services,Direct Services,Supplies and Services,304259,Equipment and Materials,03-Apr-2014,2728233-4100419841,800.00,TEESDALE ARCHTECTURAL STONE LTD.
Dedicated Schools Grant,Dedicated Schools Grant,Premises,125009,Rents,03-Apr-2014,2728234-GT1766,"1,380.00",THE GREENHOUSE CO (GROUNDWORK) LTD.
Regeneration & Economic Development,"Spatial Policy, Planning, Assets & Environment",Supplies and Services,324500,Provisions,03-Apr-2014,2728235-4100416745,"1,376.88",THE MORRITT COUNTRY HOUSE HOTEL.
Regeneration & Economic Development,Economic Development and Housing,Cap Exp on Grants & Other Financial Assistance (REFCUS),918401,Capital grants,03-Apr-2014,2728238-RED-04-2014-033,"1,665.00",THYSSENKRUPP ENCASA LTD.
Neighbourhood Services,Direct Services,Supplies and Services,304221,Equipment and Materials,03-Apr-2014,2728241-98554,883.60,TOMMY WARDLE.
Children and Adult Services,Education,"Vehicles, Equipment, Furniture and Fittings",912701,Computer equipment,03-Apr-2014,2728242-123055607,542.43,TOSHIBA INFORMATION SYSTEMS (UK) LTD.
RED HRA,Housing Revenue Account,Supplies and Services,304040,Equipment and Materials,03-Apr-2014,2728243-11034,"1,670.00",TPAS LTD.
Children and Adult Services,Children�s Services,Supplies and Services,352001,Conference Expenses,03-Apr-2014,2728244-803,"1,300.00",TRAINING LADDER LTD.
Regeneration & Economic Development,Economic Development and Housing,Supplies and Services,336005,Advertising,03-Apr-2014,2728245-1059486,900.00,TRINITY MIRROR PUBLISHING LTD.
Children and Adult Services,Children�s Services,Supplies and Services,338035,Services,03-Apr-2014,2728248-PFO114-8,"3,153.60",UK YOUTH.
Neighbourhood Services,Culture & Sport,Supplies and Services,312013,"Newspapers, Books and Periodicals",03-Apr-2014,2728249-PF809,"27,080.15",ULVERSCROFT LARGE PRINT BOOKS LTD.
Neighbourhood Services,Direct Services,Supplies and Services,304221,Equipment and Materials,03-Apr-2014,2728250-1007714,"1,577.29",UNDERFLOOR WAREHOUSE LTD (UFW).
Neighbourhood Services,Direct Services,Supplies and Services,304221,Equipment and Materials,03-Apr-2014,2728250-1008885,"1,234.40",UNDERFLOOR WAREHOUSE LTD (UFW).
Neighbourhood Services,Direct Services,Supplies and Services,304221,Equipment and Materials,03-Apr-2014,2728250-1008934,"2,107.88",UNDERFLOOR WAREHOUSE LTD (UFW).
Children and Adult Services,Children�s Services,Premises,145015,Cleaning and Domestic Supplies,03-Apr-2014,2728252-204918,558.00,VAX LTD.
Corporate Resources,I.C.T. Services,Stock,926900,Stock in hand-Inventory system,03-Apr-2014,2728254-2340600,"1,440.00",VIGLEN LTD.
Regeneration & Economic Development,Economic Development and Housing,Supplies and Services,384199,Miscellaneous Expenses,03-Apr-2014,2728255-LOSI28735,525.00,VISIT COUNTY DURHAM.
Children and Adult Services,Education,Supplies and Services,312009,"Newspapers, Books and Periodicals",03-Apr-2014,2728256-1160300075,671.16,WATERSTONES.
Neighbourhood Services,Direct Services,Supplies and Services,304259,Equipment and Materials,03-Apr-2014,2728258-7324,"11,207.68",WESLEY MUSIC.
Neighbourhood Services,Technical Services,Stock,926900,Stock in hand-Inventory system,03-Apr-2014,2728261-11033010,852.96,WOLSELEY UK LTD.
Neighbourhood Services,Direct Services,Supplies and Services,304221,Equipment and Materials,03-Apr-2014,2728261-11089427,603.92,WOLSELEY UK LTD.
Neighbourhood Services,Direct Services,Supplies and Services,304221,Equipment and Materials,03-Apr-2014,2728261-11089666,801.08,WOLSELEY UK LTD.
Neighbourhood Services,Direct Services,Third Party Payments,430100,Rendered by Private Contractors,03-Apr-2014,2728264-30788,"7,554.02",YWC GROUP LTD.
Corporate Resources,Human Resources,Third Party Payments,479112,Purchase of Care,04-Apr-2014,2728749,"1,650.00",JAMIE OLDROYD.
Regeneration & Economic Development,Transport and Contracted Services,Other Expenses,914001,Other capital expenses,04-Apr-2014,2728270-SI15539,"16,394.00",3M UNITED KINGDOM PLC.
Regeneration & Economic Development,Economic Development and Housing,Cap Exp on Grants & Other Financial Assistance (REFCUS),918401,Capital grants,04-Apr-2014,2728272-RED-04-2014-079,"5,204.70",A OGILVIE BUILDING CONTRACTORS LTD.
Children and Adult Services,Education,Supplies and Services,384199,Miscellaneous Expenses,04-Apr-2014,2728275-CLS1402,750.00,AAA SPORTS.
Children and Adult Services,Children�s Services,Third Party Payments,486032,Service Level Agreements,04-Apr-2014,2728287-R81IN2/00003714,"1,677.38",ACTION FOR CHILDREN SERVICES LTD.
Children and Adult Services,Head of Adults,Third Party Payments,473101,Purchase of Care,04-Apr-2014,2728288-INCS005714,758.00,ACTION ON HEARING LOSS.
Neighbourhood Services,Technical Services,Supplies and Services,338027,Services,04-Apr-2014,2728293-28184939,"3,960.00",AECOM LTD.
Neighbourhood Services,Technical Services,Supplies and Services,338027,Services,04-Apr-2014,2728293-28184979,"3,930.00",AECOM LTD.
Regeneration & Economic Development,Economic Development and Housing,Fees,901002,Professional fees,04-Apr-2014,2728293-28185475,"10,545.90",AECOM LTD.
Neighbourhood Services,Technical Services,Supplies and Services,304221,Equipment and Materials,04-Apr-2014,2728297-19517827,"2,364.68",AGGREGATE INDUSTRIES UK LTD.
Neighbourhood Services,Technical Services,Supplies and Services,304221,Equipment and Materials,04-Apr-2014,2728297-19524808,"2,369.64",AGGREGATE INDUSTRIES UK LTD.
Neighbourhood Services,Technical Services,Supplies and Services,304221,Equipment and Materials,04-Apr-2014,2728297-19535330,"1,933.16",AGGREGATE INDUSTRIES UK LTD.
Neighbourhood Services,Technical Services,Supplies and Services,304221,Equipment and Materials,04-Apr-2014,2728297-19535333,594.14,AGGREGATE INDUSTRIES UK LTD.
Neighbourhood Services,Technical Services,Supplies and Services,304221,Equipment and Materials,04-Apr-2014,2728297-19542362,796.52,AGGREGATE INDUSTRIES UK LTD.
Neighbourhood Services,Technical Services,Supplies and Services,304221,Equipment and Materials,04-Apr-2014,2728297-19542363,679.88,AGGREGATE INDUSTRIES UK LTD.
Neighbourhood Services,Technical Services,Supplies and Services,304221,Equipment and Materials,04-Apr-2014,2728297-19542364,562.60,AGGREGATE INDUSTRIES UK LTD.
Neighbourhood Services,Technical Services,Stock,926900,Stock in hand-Inventory system,04-Apr-2014,2728322-921575219,"2,818.68",ARCO LTD.
Children and Adult Services,Public Health,Third Party Payments,460803,Contract Payments,04-Apr-2014,2728327-FA415/FEB/14/NRT,"2,134.02",ASDA PHARMACY.
Children and Adult Services,Public Health,Third Party Payments,460803,Contract Payments,04-Apr-2014,2728327-FA415/L2SS/Q3/2013,"1,034.50",ASDA PHARMACY.
Children and Adult Services,Public Health,Third Party Payments,460803,Contract Payments,04-Apr-2014,2728328-FDE75/0214/NRT,"1,081.39",ASDA PHARMACY.
Children and Adult Services,Public Health,Third Party Payments,460803,Contract Payments,04-Apr-2014,2728329-FE649/0214/NRT,"1,148.12",ASDA PHARMACY.
Children and Adult Services,Public Health,Third Party Payments,460803,Contract Payments,04-Apr-2014,2728329-FXD45/Q3/2014/L2SS,751.00,ASDA PHARMACY.
Children and Adult Services,Public Health,Third Party Payments,460803,Contract Payments,04-Apr-2014,2728332-FTW78/NRT/0214,"1,315.93",ASHCHEM LTD.
Children and Adult Services,Head of Adults,Cap Exp on Grants & Other Financial Assistance (REFCUS),918401,Capital grants,04-Apr-2014,2728334-CAS-03-2014-147,"8,145.00",ASPIRE LEARNING SUPPORT & WELLING CIC.
Regeneration & Economic Development,Economic Development and Housing,Supplies and Services,372009,Subscriptions,04-Apr-2014,2728335-5086,595.00,ASSOCIATION OF TOWN CENTRE MANAGEMENT.
Regeneration & Economic Development,Economic Development and Housing,Supplies and Services,336005,Advertising,04-Apr-2014,2728338-1330,"4,801.75",AUTO ITEMS LTD.
Regeneration & Economic Development,Economic Development and Housing,Cap Exp on Grants & Other Financial Assistance (REFCUS),918401,Capital grants,04-Apr-2014,2728340-RED-04-2014-075,"7,767.50",AVENSWAY BUILDING CONTRACTORS LTD.
Neighbourhood Services,Direct Services,Third Party Payments,430100,Rendered by Private Contractors,04-Apr-2014,2728341-17339,553.00,AXLE WEIGHT TECHNOLOGY LTD.
Children and Adult Services,Children�s Services,Third Party Payments,425020,Rendered by Voluntary Organisations,04-Apr-2014,2728351-146500906,"1,112.08",BARNARDOS.
Neighbourhood Services,Direct Services,Transport,210057,Repair and Maintenance of Vehicles,04-Apr-2014,2728355-45045309,637.86,BELL TRUCK SALES LTD.
Neighbourhood Services,Direct Services,Transport,210057,Repair and Maintenance of Vehicles,04-Apr-2014,2728355-45045363,675.43,BELL TRUCK SALES LTD.
Children and Adult Services,Public Health,Third Party Payments,460803,Contract Payments,04-Apr-2014,2728358-FFK86/0214/NRT,"1,076.50",BEWICK PHARMACY.
Corporate Resources,Financial Services,Supplies and Services,384199,Miscellaneous Expenses,04-Apr-2014,2728359-101259,"19,285.00",BEYOND SYSTEMS.
Corporate Resources,Corporate Finance,Supplies and Services,384199,Miscellaneous Expenses,04-Apr-2014,2728359-101260,"11,925.00",BEYOND SYSTEMS.
Neighbourhood Services,Culture & Sport,Supplies and Services,384199,Miscellaneous Expenses,04-Apr-2014,2728364-00031,"9,436.19",BISHOP CATERING LTD.
Neighbourhood Services,Technical Services,Stock,926900,Stock in hand-Inventory system,04-Apr-2014,2728374-8337340,"1,237.50",BOLD NU TEC INSULATION PRODUCTS & SERVICES LTD.
Children and Adult Services,Public Health,Third Party Payments,460803,Contract Payments,04-Apr-2014,2728379-FW704/0214/NRT,"1,160.65",BOOTS THE CHEMISTS LTD.
Children and Adult Services,Public Health,Third Party Payments,460803,Contract Payments,04-Apr-2014,2728382-FF604/FEB/14/NRT,562.57,BOOTS THE CHEMISTS LTD.
Children and Adult Services,Public Health,Third Party Payments,460803,Contract Payments,04-Apr-2014,2728383-FGV86/0214/NRT,"1,575.08",BOOTS THE CHEMISTS LTD.
Children and Adult Services,Public Health,Third Party Payments,460803,Contract Payments,04-Apr-2014,2728383-FGV86/NRT/01/14,"1,801.98",BOOTS THE CHEMISTS LTD.
Children and Adult Services,Public Health,Third Party Payments,460803,Contract Payments,04-Apr-2014,2728384-FHD21/FEB/2014/NRT,"1,271.81",BOOTS THE CHEMISTS LTD.
Children and Adult Services,Public Health,Third Party Payments,460803,Contract Payments,04-Apr-2014,2728386-FA773/NRT/0214,908.12,BOOTS THE CHEMISTS LTD.
Children and Adult Services,Public Health,Third Party Payments,460803,Contract Payments,04-Apr-2014,2728387-FPC89/0214/NRT,915.16,BOOTS THE CHEMISTS LTD.
Children and Adult Services,Public Health,Third Party Payments,460803,Contract Payments,04-Apr-2014,2728388-FLO73/FEB/14/NRT,984.67,BOOTS THE CHEMISTS LTD.
Children and Adult Services,Public Health,Third Party Payments,460803,Contract Payments,04-Apr-2014,2728391-FA268/0214/NRT,976.93,BOWBURN PHARMACY.
Children and Adult Services,Public Health,Third Party Payments,460803,Contract Payments,04-Apr-2014,2728398-A83009/Q3,920.50,BRIDGE END SURGERY.
Children and Adult Services,Public Health,Third Party Payments,460802,Contract Payments,04-Apr-2014,2728398-A83009OCD,"1,325.00",BRIDGE END SURGERY.
Children and Adult Services,Children�s Services,Supplies and Services,384302,Miscellaneous Expenses,04-Apr-2014,2728403-ADD00039NOT,"1,409.09",BRITISH ASSOC FOR ADOPTION & FOSTERING BAAF.
Regeneration & Economic Development,Economic Development and Housing,Construction Work,908105,Construction work,04-Apr-2014,2728404-5855003356,"54,000.00",BRITISH GAS SERVICES LTD.
Regeneration & Economic Development,Economic Development and Housing,Construction Work,908105,Construction work,04-Apr-2014,2728404-5855003362,"10,000.00",BRITISH GAS SERVICES LTD.
Regeneration & Economic Development,Transport and Contracted Services,Supplies and Services,304245,Equipment and Materials,04-Apr-2014,2728409-021242,"1,080.00",BUDDI.
Regeneration & Economic Development,Economic Development and Housing,Other Expenses,914001,Other capital expenses,04-Apr-2014,2728410-SD000071633,"56,713.75",BUILDING DESIGN PARTNERSHIP LTD.
Neighbourhood Services,Direct Services,Third Party Payments,430100,Rendered by Private Contractors,04-Apr-2014,2728414-35900,534.25,BURNT TREE GROUP LTD.
Neighbourhood Services,Culture & Sport,Supplies and Services,324001,Provisions,04-Apr-2014,2728421-840064543,"1,576.41",CARLSBERG UK LTD.
Neighbourhood Services,Direct Services,Transport,210057,Repair and Maintenance of Vehicles,04-Apr-2014,2728424-281361,777.84,CARRS BILLINGTON AGRICULTURE.
Neighbourhood Services,Direct Services,Third Party Payments,430100,Rendered by Private Contractors,04-Apr-2014,2728430-14897,"1,294.53",CATHEDRAL LOCK & SAFE SERVICES LTD.
Neighbourhood Services,Direct Services,Third Party Payments,430100,Rendered by Private Contractors,04-Apr-2014,2728430-14898,776.56,CATHEDRAL LOCK & SAFE SERVICES LTD.
Neighbourhood Services,Direct Services,Third Party Payments,430100,Rendered by Private Contractors,04-Apr-2014,2728430-14947,"1,359.42",CATHEDRAL LOCK & SAFE SERVICES LTD.
Neighbourhood Services,Technical Services,Stock,926900,Stock in hand-Inventory system,04-Apr-2014,2728437-9950/01585638,"3,350.21",CERAMIC TILE DISTRIBUTORS (CTD).
Children and Adult Services,Public Health,Third Party Payments,460803,Contract Payments,04-Apr-2014,2728443-NRT/FLE10/FEB14,"1,307.36",CHEAPSIDE CHEMIST.
Regeneration & Economic Development,"Spatial Policy, Planning, Assets & Environment",Supplies and Services,384199,Miscellaneous Expenses,04-Apr-2014,2728451-RED-03-2014-259,"6,651.25",CITY OF SUNDERLAND.
Regeneration & Economic Development,"Spatial Policy, Planning, Assets & Environment",Supplies and Services,384700,Miscellaneous Expenses,04-Apr-2014,2728451-RED-03-2014-262,"28,711.00",CITY OF SUNDERLAND.
Children and Adult Services,Education,Supplies and Services,384199,Miscellaneous Expenses,04-Apr-2014,2728458-007,540.00,CLICT.
Regeneration & Economic Development,Economic Development and Housing,Supplies and Services,384700,Miscellaneous Expenses,04-Apr-2014,2728461-RED-04-2014-069,"1,000.00",CO WHEELS CAR CLUB CIC.
Children and Adult Services,Public Health,Third Party Payments,460803,Contract Payments,04-Apr-2014,2728465-FDR43/NE/1314,"1,200.00",CO-OPERATIVE PHARMACY.
Children and Adult Services,Public Health,Third Party Payments,460803,Contract Payments,04-Apr-2014,2728466-FVK01/NRT/FEB/14,712.82,CO-OPERATIVE PHARMACY.
Children and Adult Services,Public Health,Third Party Payments,460803,Contract Payments,04-Apr-2014,2728467-FGN07/NRT/02/14,950.11,CO-OPERATIVE PHARMACY.
Regeneration & Economic Development,"Spatial Policy, Planning, Assets & Environment",Cap Exp on Grants & Other Financial Assistance (REFCUS),918501,Exp assets not owned by authority,04-Apr-2014,2728472-131018,"10,000.00",COLIN ROSE.
Neighbourhood Services,Neighbourhood central costs,Debtors,930017,Debtor-gas contract holding account,04-Apr-2014,2728489-NEI-EXP,"487,520.95",CORONA ENERGY RETAIL 2 LTD.
Neighbourhood Services,Technical Services,Construction Work,908105,Construction work,04-Apr-2014,2728495-10090,"6,394.76",COUPE LINE LTD.
Neighbourhood Services,Technical Services,Construction Work,908105,Construction work,04-Apr-2014,2728496-10060,860.20,COUPE LINE LTD.
Neighbourhood Services,Technical Services,Construction Work,908105,Construction work,04-Apr-2014,2728496-10088,681.80,COUPE LINE LTD.
Neighbourhood Services,Technical Services,Construction Work,908105,Construction work,04-Apr-2014,2728496-10100,512.03,COUPE LINE LTD.
Neighbourhood Services,Technical Services,Construction Work,908105,Construction work,04-Apr-2014,2728496-10102,"1,438.52",COUPE LINE LTD.
Children and Adult Services,Education,Supplies and Services,338027,Services,04-Apr-2014,2728503-MARCH2014,"3,465.00",CRICHTON CONSULTANCY.
Regeneration & Economic Development,Transport and Contracted Services,Supplies and Services,384199,Miscellaneous Expenses,04-Apr-2014,2728516-2513855,"3,960.00",DARLINGTON BOROUGH COUNCIL.
Neighbourhood Services,Direct Services,Supplies and Services,304221,Equipment and Materials,04-Apr-2014,2728517-51474,"4,785.03",DAVENPORT LIFT CONTROL.
Regeneration & Economic Development,Economic Development and Housing,Supplies and Services,338027,Services,04-Apr-2014,2728522-000606,"2,940.00",DEF SOFTWARE LTD.
Children and Adult Services,Public Health,Third Party Payments,460803,Contract Payments,04-Apr-2014,2728525-21/2014,"4,550.00",DENESIDE MEDICAL CENTRE.
Children and Adult Services,Public Health,Third Party Payments,460803,Contract Payments,04-Apr-2014,2728539-FCJ51/NRT/FEB/2014,"1,549.16",DIXON & HALL LTD.
Corporate Resources,Human Resources,Supplies and Services,338057,Services,04-Apr-2014,2728548-GHW/OH/MAR14,"2,112.00",DUNELM MEDICAL PRACTICE.
Assistant Chief Executive,Partnerships & Community Engagement Div.,Transfer Payments,525030,Other,04-Apr-2014,2728549,"10,000.00",DURHAM AGENCY AGAINST CRIME LTD (DAAC).
Assistant Chief Executive,Partnerships & Community Engagement Div.,Transfer Payments,525030,Other,04-Apr-2014,2728551,"3,930.00",DURHAM CHRISTIAN PARTNERSHIP.
Regeneration & Economic Development,Strategy Programmes and Performance,Supplies and Services,384899,Miscellaneous Expenses,04-Apr-2014,2728553-EDDCC001B/10,"2,106.45",DURHAM COMMUNITY ACTION LTD.
Neighbourhood Services,Direct Services,Construction Work,908105,Construction work,04-Apr-2014,2728559-265401,"28,344.04",DURHAM UNIVERSITY.
Regeneration & Economic Development,Economic Development and Housing,Cap Exp on Grants & Other Financial Assistance (REFCUS),918401,Capital grants,04-Apr-2014,2728569-RED-04-2014-077,"2,406.68",EASIBATHE LTD.
Dedicated Schools Grant,Dedicated Schools Grant,Supplies and Services,384871,Miscellaneous Expenses,04-Apr-2014,2728571-0000032563,540.00,EAST DURHAM COLLEGE.
Corporate Resources,Legal & Democratic Services,Supplies and Services,338025,Services,04-Apr-2014,2728572-18/03,750.00,EAST DURHAM FUNERAL SERVICE LTD.
Neighbourhood Services,Direct Services,Supplies and Services,304259,Equipment and Materials,04-Apr-2014,2728573-4031522,"2,936.96",EAST RIDING HORTICULTURE LTD.
Neighbourhood Services,Technical Services,Stock,926900,Stock in hand-Inventory system,04-Apr-2014,2728580-059-139674,"1,855.65",EDMUNDSON ELECTRICAL LTD.
Regeneration & Economic Development,Transport and Contracted Services,Acquisition Of Land And Buildings,905009,Acquisition of land and buildings,04-Apr-2014,2728589-B141130-A2-32,"2,616.93",EDWIN THOMPSON LLP.
Regeneration & Economic Development,Transport and Contracted Services,Acquisition Of Land And Buildings,905009,Acquisition of land and buildings,04-Apr-2014,2728589-B141131-BJ1041,"2,010.80",EDWIN THOMPSON LLP.
Corporate Resources,Legal & Democratic Services,Supplies and Services,338057,Services,04-Apr-2014,2728593-1217,"1,651.00",ELYSIAN PATHOLOGY SERVICES LTD.
Corporate Resources,Legal & Democratic Services,Supplies and Services,338057,Services,04-Apr-2014,2728593-1218,"1,044.00",ELYSIAN PATHOLOGY SERVICES LTD.
Children and Adult Services,Education,Transfer Payments,510026,School Children,04-Apr-2014,2728594-14/01DCATCH,"1,987.65",EMERALD NURSERY.
Neighbourhood Services,Direct Services,Third Party Payments,430100,Rendered by Private Contractors,04-Apr-2014,2728596-19009,"3,288.40",ENTERPRISE ACCIDENT REPAIR CENTRE LTD.
Neighbourhood Services,Direct Services,Third Party Payments,430100,Rendered by Private Contractors,04-Apr-2014,2728596-19017,974.17,ENTERPRISE ACCIDENT REPAIR CENTRE LTD.
Neighbourhood Services,Direct Services,Third Party Payments,430100,Rendered by Private Contractors,04-Apr-2014,2728596-19018,"1,491.88",ENTERPRISE ACCIDENT REPAIR CENTRE LTD.
Regeneration & Economic Development,Economic Development and Housing,Cap Exp on Grants & Other Financial Assistance (REFCUS),918401,Capital grants,04-Apr-2014,2728607-RED-04-2014-041,"2,910.00",F TIFFEN BUILDING SERVICES.
Regeneration & Economic Development,Economic Development and Housing,Cap Exp on Grants & Other Financial Assistance (REFCUS),918401,Capital grants,04-Apr-2014,2728607-RED-04-2014-048,"2,600.00",F TIFFEN BUILDING SERVICES.
Regeneration & Economic Development,Economic Development and Housing,Cap Exp on Grants & Other Financial Assistance (REFCUS),918401,Capital grants,04-Apr-2014,2728607-RED-04-2014-057,"3,305.00",F TIFFEN BUILDING SERVICES.
Regeneration & Economic Development,Economic Development and Housing,Cap Exp on Grants & Other Financial Assistance (REFCUS),918401,Capital grants,04-Apr-2014,2728607-RED-04-2014-059,"3,415.00",F TIFFEN BUILDING SERVICES.
Regeneration & Economic Development,Economic Development and Housing,Cap Exp on Grants & Other Financial Assistance (REFCUS),918401,Capital grants,04-Apr-2014,2728607-RED-04-2014-060,"3,120.00",F TIFFEN BUILDING SERVICES.
Corporate Resources,Human Resources,Supplies and Services,372009,Subscriptions,04-Apr-2014,2728609-00003133-1/4/14,514.00,FACULTY OF OCCUPATIONAL MEDICINE.
Children and Adult Services,Public Health,Third Party Payments,460803,Contract Payments,04-Apr-2014,2728613-A83045/Q3/2013/L2SS,"1,280.50",FERRYHILL & CHILTON MEDICAL PRACTICE.
Children and Adult Services,Public Health,Third Party Payments,460802,Contract Payments,04-Apr-2014,2728613-A83045Q3/2013/HC,"5,500.00",FERRYHILL & CHILTON MEDICAL PRACTICE.
Children and Adult Services,Education,Transfer Payments,510026,School Children,04-Apr-2014,2728621-DCATCHJN,757.20,FIRST STEPS NURSERY.
Neighbourhood Services,Technical Services,Stock,926900,Stock in hand-Inventory system,04-Apr-2014,2728624-OP/I277781,"1,357.95",FLEMING & CO (MACHINERY) LTD.
Regeneration & Economic Development,Economic Development and Housing,Cap Exp on Grants & Other Financial Assistance (REFCUS),918401,Capital grants,04-Apr-2014,2728629-RED-03-2014-260,"6,909.00",FORESTRY COMMISSION.
Children and Adult Services,Children�s Services,Third Party Payments,425040,Rendered by Voluntary Organisations,04-Apr-2014,2728631-FC014632,700.00,FOSTER CARES LTD.
Children and Adult Services,Children�s Services,Third Party Payments,425040,Rendered by Voluntary Organisations,04-Apr-2014,2728631-FC014673,820.00,FOSTER CARES LTD.
Children and Adult Services,Children�s Services,Third Party Payments,425040,Rendered by Voluntary Organisations,04-Apr-2014,2728631-FC014689,730.00,FOSTER CARES LTD.
Children and Adult Services,Children�s Services,Third Party Payments,425040,Rendered by Voluntary Organisations,04-Apr-2014,2728631-FC014692,760.00,FOSTER CARES LTD.
Children and Adult Services,Children�s Services,Third Party Payments,425040,Rendered by Voluntary Organisations,04-Apr-2014,2728631-FC014694,730.00,FOSTER CARES LTD.
Children and Adult Services,Children�s Services,Third Party Payments,425040,Rendered by Voluntary Organisations,04-Apr-2014,2728631-FC014696,730.00,FOSTER CARES LTD.
Children and Adult Services,Children�s Services,Third Party Payments,425040,Rendered by Voluntary Organisations,04-Apr-2014,2728631-FC014734,820.00,FOSTER CARES LTD.
Children and Adult Services,Children�s Services,Third Party Payments,425040,Rendered by Voluntary Organisations,04-Apr-2014,2728631-FC014743,700.00,FOSTER CARES LTD.
Children and Adult Services,Children�s Services,Third Party Payments,425040,Rendered by Voluntary Organisations,04-Apr-2014,2728631-FC014750,730.00,FOSTER CARES LTD.
Children and Adult Services,Children�s Services,Third Party Payments,425040,Rendered by Voluntary Organisations,04-Apr-2014,2728631-FC014755,730.00,FOSTER CARES LTD.
Regeneration & Economic Development,Economic Development and Housing,Fees,901001,Internal fees,04-Apr-2014,2728632-SITRH/0006261,878.40,FOUR HOUSING GROUP.
Regeneration & Economic Development,Economic Development and Housing,Fees,901001,Internal fees,04-Apr-2014,2728632-SITRH/0006262,"25,023.94",FOUR HOUSING GROUP.
Regeneration & Economic Development,Economic Development and Housing,Fees,901001,Internal fees,04-Apr-2014,2728632-SITRH/0006265,874.80,FOUR HOUSING GROUP.
Regeneration & Economic Development,Economic Development and Housing,Fees,901001,Internal fees,04-Apr-2014,2728632-SITRH/0006267,766.20,FOUR HOUSING GROUP.
Regeneration & Economic Development,Economic Development and Housing,Fees,901001,Internal fees,04-Apr-2014,2728632-SITRH/0006269,835.14,FOUR HOUSING GROUP.
Regeneration & Economic Development,Economic Development and Housing,Fees,901001,Internal fees,04-Apr-2014,2728632-SITRH/0006275,795.00,FOUR HOUSING GROUP.
Regeneration & Economic Development,Economic Development and Housing,Fees,901001,Internal fees,04-Apr-2014,2728632-SITRH/0006280,"3,999.37",FOUR HOUSING GROUP.
Neighbourhood Services,Technical Services,Supplies and Services,304252,Equipment and Materials,04-Apr-2014,2728642-006013933,815.00,GAP GROUP LTD.
Neighbourhood Services,Technical Services,Supplies and Services,304252,Equipment and Materials,04-Apr-2014,2728642-006013935,"1,200.00",GAP GROUP LTD.
Children and Adult Services,Commissioning inc Supporting People,Employees,040001,"Recruitment, Instruction and Training",04-Apr-2014,2728646-16406,"3,025.00",GATENBY SANDERSON LTD.
Neighbourhood Services,Technical Services,Supplies and Services,304358,Equipment and Materials,04-Apr-2014,2728654-9577,670.00,GEORGE VARDY HAULAGE.
Regeneration & Economic Development,Economic Development and Housing,Cap Exp on Grants & Other Financial Assistance (REFCUS),918401,Capital grants,04-Apr-2014,2728656-RED-04-2014-078,"26,777.60",GHENT BUILDING CONTRACTORS LTD.
Regeneration & Economic Development,Economic Development and Housing,Cap Exp on Grants & Other Financial Assistance (REFCUS),918401,Capital grants,04-Apr-2014,2728656-RED-04-2014-082,"20,212.92",GHENT BUILDING CONTRACTORS LTD.
Neighbourhood Services,Technical Services,Supplies and Services,338027,Services,04-Apr-2014,2728661-BGPP0125/039,"6,720.00",GLEEDS ADVISORY LTD.
Neighbourhood Services,Culture & Sport,Third Party Payments,430100,Rendered by Private Contractors,04-Apr-2014,2728668-0012/14,500.00,GOLD RUSH UK LTD.
Neighbourhood Services,Technical Services,Third Party Payments,430100,Rendered by Private Contractors,04-Apr-2014,2728671-23725,600.00,GRAB & DELIVER LTD.
Assistant Chief Executive,Partnerships & Community Engagement Div.,Transfer Payments,525030,Other,04-Apr-2014,2728673-VOUCHER13NB,"8,000.00",CITIZENS ADVICE COUNTY DURHAM.
Neighbourhood Services,Direct Services,Premises,145023,Cleaning and Domestic Supplies,04-Apr-2014,2728675-06/506181,860.55,GREENHAM TRADING LTD.
Neighbourhood Services,Direct Services,Premises,145023,Cleaning and Domestic Supplies,04-Apr-2014,2728675-06/506197,"1,342.40",GREENHAM TRADING LTD.
Regeneration & Economic Development,"Spatial Policy, Planning, Assets & Environment",Supplies and Services,338099,Services,04-Apr-2014,2728681-0000009576,"6,600.00",GROUNDWORK NORTH EAST.
Regeneration & Economic Development,Economic Development and Housing,Supplies and Services,368008,Incentives to Industrialists,04-Apr-2014,2728681-0000009613,"11,857.15",GROUNDWORK NORTH EAST.
Children and Adult Services,Children�s Services,Supplies and Services,332047,"Printing, Stationery and Gen Off Exps",04-Apr-2014,2728682-INV0153353,948.00,GV MULTI MEDIA LTD.
Children and Adult Services,Public Health,Third Party Payments,460803,Contract Payments,04-Apr-2014,2728687-FM788/NRT/0214,"1,663.46",HANCOCK & AINSLEY CHEMIST LTD.
Children and Adult Services,Children�s Services,Supplies and Services,338099,Services,04-Apr-2014,2728688-DCC002,"74,898.00",HARBOUR SUPPORT SERVICES.
Regeneration & Economic Development,"Spatial Policy, Planning, Assets & Environment",Supplies and Services,384199,Miscellaneous Expenses,04-Apr-2014,2728691-RED-03-2014-258,"2,069.62",HARTLEPOOL BOROUGH COUNCIL.
Regeneration & Economic Development,"Spatial Policy, Planning, Assets & Environment",Supplies and Services,384700,Miscellaneous Expenses,04-Apr-2014,2728691-RED-03-2014-263,"4,425.73",HARTLEPOOL BOROUGH COUNCIL.
Children and Adult Services,Public Health,Third Party Payments,460803,Contract Payments,04-Apr-2014,2728706-A83044/Q3/2013/L2SS,"1,075.50",HORDEN GROUP PRACTICE.
Neighbourhood Services,Direct Services,Supplies and Services,304221,Equipment and Materials,04-Apr-2014,2728708-B33/0065499,927.31,HOWDENS JOINERY LTD.
Regeneration & Economic Development,Transport and Contracted Services,Third Party Payments,440999,Other Third Party Payments,04-Apr-2014,2728709-66,500.00,HSA GROUP.
Neighbourhood Services,Direct Services,Employees,040149,"Recruitment, Instruction and Training",04-Apr-2014,2728710-1067,"15,630.00",HSF TRAINING LTD.
Neighbourhood Services,Technical Services,Stock,926900,Stock in hand-Inventory system,04-Apr-2014,2728714-082227,"8,647.50",HYDRAM ENGINEERING LTD.
Neighbourhood Services,Technical Services,Third Party Payments,460350,Contract Payments,04-Apr-2014,2728717-2078,"2,093.00",IAN C LIDDLE.
Neighbourhood Services,Technical Services,Third Party Payments,460350,Contract Payments,04-Apr-2014,2728717-2081,896.50,IAN C LIDDLE.
Neighbourhood Services,Technical Services,Supplies and Services,304358,Equipment and Materials,04-Apr-2014,2728719-C205,"4,525.90",IAN WILSON.
Neighbourhood Services,Technical Services,Supplies and Services,304358,Equipment and Materials,04-Apr-2014,2728719-C206,"2,446.20",IAN WILSON.
Regeneration & Economic Development,Economic Development and Housing,Supplies and Services,384700,Miscellaneous Expenses,04-Apr-2014,2728724-RED-04-2014-070,"1,000.00",INFINITE LEARNING & DEVELOPMENT.
Neighbourhood Services,Technical Services,Third Party Payments,460151,Contract Payments,04-Apr-2014,2728728-442282,735.28,INSTARMAC GROUP PLC.
Children and Adult Services,Public Health,Third Party Payments,460803,Contract Payments,04-Apr-2014,2728736-FDH51/AUG13/NRT,"2,217.74",INTRAHEALTH LTD.
Children and Adult Services,Public Health,Third Party Payments,460803,Contract Payments,04-Apr-2014,2728736-FDH51/FEB2014/NRT,"1,003.63",INTRAHEALTH LTD.
Children and Adult Services,Public Health,Third Party Payments,460803,Contract Payments,04-Apr-2014,2728736-FDH51/NOV/13,"1,151.00",INTRAHEALTH LTD.
Children and Adult Services,Public Health,Third Party Payments,460803,Contract Payments,04-Apr-2014,2728737-FG885/FEB14/NRT,833.66,INTRAHEALTH LTD.
Regeneration & Economic Development,Transport and Contracted Services,Supplies and Services,342051,Computers and Communications,04-Apr-2014,2728743-1020,"4,995.00",ITO WORLD LTD.
Neighbourhood Services,Technical Services,Third Party Payments,460350,Contract Payments,04-Apr-2014,2728745-1387,589.50,J & JG GILL & SONS LTD.
Neighbourhood Services,Technical Services,Supplies and Services,304358,Equipment and Materials,04-Apr-2014,2728745-1390,"1,296.00",J & JG GILL & SONS LTD.
Neighbourhood Services,Technical Services,Supplies and Services,304358,Equipment and Materials,04-Apr-2014,2728745-1392,608.00,J & JG GILL & SONS LTD.
Neighbourhood Services,Technical Services,Supplies and Services,304358,Equipment and Materials,04-Apr-2014,2728745-1393,"6,480.00",J & JG GILL & SONS LTD.
Neighbourhood Services,Technical Services,Third Party Payments,460350,Contract Payments,04-Apr-2014,2728745-1412,903.00,J & JG GILL & SONS LTD.
Neighbourhood Services,Technical Services,Supplies and Services,304358,Equipment and Materials,04-Apr-2014,2728745-1421,"3,240.00",J & JG GILL & SONS LTD.
Neighbourhood Services,Technical Services,Third Party Payments,460350,Contract Payments,04-Apr-2014,2728748-5304599,895.50,JA GILSON (AGRICULTURAL CONTRACTORS) LTD.
Corporate Resources,Human Resources,Third Party Payments,479112,Purchase of Care,04-Apr-2014,2728749-SEPT-NOV2013,"1,950.00",JAMIE OLDROYD.
RED HRA,HRA Capital,Construction Work,908105,Construction work,04-Apr-2014,2728752-15676,762.91,JDP CONTRACTING SERVICES LTD.
Children and Adult Services,Public Health,Third Party Payments,460803,Contract Payments,04-Apr-2014,2728755,"1,064.50",JF EILBECK CHEMIST LTD.
Children and Adult Services,Public Health,Third Party Payments,460803,Contract Payments,04-Apr-2014,2728756-FEM40/L2SSS/Q1/14,"1,064.50",JF EILBECK CHEMIST LTD.
Children and Adult Services,Public Health,Third Party Payments,460803,Contract Payments,04-Apr-2014,2728756-FKG29/NRT/0214,"1,250.61",JF EILBECK CHEMIST LTD.
Children and Adult Services,Public Health,Third Party Payments,460803,Contract Payments,04-Apr-2014,2728762-FJL38/FEB/14/NRT,892.21,JOHN LOW LTD T/A MOORSIDE PHARMACY.
Neighbourhood Services,Technical Services,Supplies and Services,304358,Equipment and Materials,04-Apr-2014,2728763-15721,"1,276.00",JOHN R BUTTERFIELD LTD.
Neighbourhood Services,Technical Services,Supplies and Services,304358,Equipment and Materials,04-Apr-2014,2728763-15731,"1,471.00",JOHN R BUTTERFIELD LTD.
Neighbourhood Services,Technical Services,Supplies and Services,304358,Equipment and Materials,04-Apr-2014,2728763-15762,975.00,JOHN R BUTTERFIELD LTD.
Neighbourhood Services,Technical Services,Supplies and Services,304358,Equipment and Materials,04-Apr-2014,2728763-15763,925.00,JOHN R BUTTERFIELD LTD.
Neighbourhood Services,Technical Services,Supplies and Services,304358,Equipment and Materials,04-Apr-2014,2728763-15764,"1,441.00",JOHN R BUTTERFIELD LTD.
Neighbourhood Services,Technical Services,Supplies and Services,304358,Equipment and Materials,04-Apr-2014,2728763-15771,"1,120.00",JOHN R BUTTERFIELD LTD.
Neighbourhood Services,Technical Services,Supplies and Services,304358,Equipment and Materials,04-Apr-2014,2728763-15772,"1,079.70",JOHN R BUTTERFIELD LTD.
Neighbourhood Services,Technical Services,Supplies and Services,304358,Equipment and Materials,04-Apr-2014,2728763-15773,688.20,JOHN R BUTTERFIELD LTD.
Neighbourhood Services,Technical Services,Supplies and Services,304358,Equipment and Materials,04-Apr-2014,2728763-15774,"1,042.75",JOHN R BUTTERFIELD LTD.
Neighbourhood Services,Technical Services,Supplies and Services,304358,Equipment and Materials,04-Apr-2014,2728763-15775,925.60,JOHN R BUTTERFIELD LTD.
Neighbourhood Services,Technical Services,Supplies and Services,304358,Equipment and Materials,04-Apr-2014,2728763-15777,"1,121.40",JOHN R BUTTERFIELD LTD.
Neighbourhood Services,Technical Services,Supplies and Services,304358,Equipment and Materials,04-Apr-2014,2728763-15778,906.50,JOHN R BUTTERFIELD LTD.
Neighbourhood Services,Technical Services,Supplies and Services,304358,Equipment and Materials,04-Apr-2014,2728763-15780,744.00,JOHN R BUTTERFIELD LTD.
Neighbourhood Services,Technical Services,Supplies and Services,304358,Equipment and Materials,04-Apr-2014,2728763-15783,639.25,JOHN R BUTTERFIELD LTD.
Neighbourhood Services,Technical Services,Supplies and Services,304358,Equipment and Materials,04-Apr-2014,2728763-15806,975.00,JOHN R BUTTERFIELD LTD.
Neighbourhood Services,Technical Services,Supplies and Services,304358,Equipment and Materials,04-Apr-2014,2728763-15807,925.00,JOHN R BUTTERFIELD LTD.
Neighbourhood Services,Technical Services,Supplies and Services,304358,Equipment and Materials,04-Apr-2014,2728763-15808,"1,161.00",JOHN R BUTTERFIELD LTD.
Neighbourhood Services,Technical Services,Supplies and Services,304358,Equipment and Materials,04-Apr-2014,2728763-15811,716.00,JOHN R BUTTERFIELD LTD.
Neighbourhood Services,Technical Services,Supplies and Services,304358,Equipment and Materials,04-Apr-2014,2728763-15812,896.00,JOHN R BUTTERFIELD LTD.
Neighbourhood Services,Technical Services,Supplies and Services,304358,Equipment and Materials,04-Apr-2014,2728763-15813,570.00,JOHN R BUTTERFIELD LTD.
Neighbourhood Services,Technical Services,Supplies and Services,304358,Equipment and Materials,04-Apr-2014,2728763-15814,700.20,JOHN R BUTTERFIELD LTD.
Neighbourhood Services,Technical Services,Supplies and Services,304358,Equipment and Materials,04-Apr-2014,2728763-15816,923.50,JOHN R BUTTERFIELD LTD.
Neighbourhood Services,Technical Services,Supplies and Services,304358,Equipment and Materials,04-Apr-2014,2728763-15818,892.60,JOHN R BUTTERFIELD LTD.
Neighbourhood Services,Technical Services,Supplies and Services,304358,Equipment and Materials,04-Apr-2014,2728763-15820,914.20,JOHN R BUTTERFIELD LTD.
Neighbourhood Services,Technical Services,Supplies and Services,304358,Equipment and Materials,04-Apr-2014,2728763-15825,564.00,JOHN R BUTTERFIELD LTD.
Neighbourhood Services,Technical Services,Supplies and Services,304358,Equipment and Materials,04-Apr-2014,2728763-15851,615.00,JOHN R BUTTERFIELD LTD.
Neighbourhood Services,Technical Services,Supplies and Services,304358,Equipment and Materials,04-Apr-2014,2728763-15854,957.00,JOHN R BUTTERFIELD LTD.
Neighbourhood Services,Technical Services,Supplies and Services,304358,Equipment and Materials,04-Apr-2014,2728763-15855,578.00,JOHN R BUTTERFIELD LTD.
Neighbourhood Services,Technical Services,Supplies and Services,304358,Equipment and Materials,04-Apr-2014,2728763-15856,789.00,JOHN R BUTTERFIELD LTD.
Neighbourhood Services,Technical Services,Supplies and Services,304358,Equipment and Materials,04-Apr-2014,2728763-15859,662.00,JOHN R BUTTERFIELD LTD.
Neighbourhood Services,Technical Services,Supplies and Services,304358,Equipment and Materials,04-Apr-2014,2728763-15862,897.60,JOHN R BUTTERFIELD LTD.
Neighbourhood Services,Technical Services,Supplies and Services,304358,Equipment and Materials,04-Apr-2014,2728763-15864,914.20,JOHN R BUTTERFIELD LTD.
Neighbourhood Services,Technical Services,Supplies and Services,304358,Equipment and Materials,04-Apr-2014,2728763-15867,685.20,JOHN R BUTTERFIELD LTD.
Neighbourhood Services,Technical Services,Supplies and Services,304358,Equipment and Materials,04-Apr-2014,2728763-15869,547.50,JOHN R BUTTERFIELD LTD.
Neighbourhood Services,Direct Services,Supplies and Services,304221,Equipment and Materials,04-Apr-2014,2728766-325738,"1,084.46",JOINERY & TIMBER CREATIONS (65) LTD.
Neighbourhood Services,Direct Services,Supplies and Services,304221,Equipment and Materials,04-Apr-2014,2728766-325739,"1,084.46",JOINERY & TIMBER CREATIONS (65) LTD.
Neighbourhood Services,Direct Services,Supplies and Services,304221,Equipment and Materials,04-Apr-2014,2728766-325740,"1,084.46",JOINERY & TIMBER CREATIONS (65) LTD.
Neighbourhood Services,Direct Services,Supplies and Services,304221,Equipment and Materials,04-Apr-2014,2728766-325741,"1,084.46",JOINERY & TIMBER CREATIONS (65) LTD.
Neighbourhood Services,Direct Services,Supplies and Services,304221,Equipment and Materials,04-Apr-2014,2728766-325742,"1,084.46",JOINERY & TIMBER CREATIONS (65) LTD.
Neighbourhood Services,Direct Services,Supplies and Services,304221,Equipment and Materials,04-Apr-2014,2728766-325743,"1,084.46",JOINERY & TIMBER CREATIONS (65) LTD.
Neighbourhood Services,Direct Services,Supplies and Services,304221,Equipment and Materials,04-Apr-2014,2728766-325744,"1,084.46",JOINERY & TIMBER CREATIONS (65) LTD.
Neighbourhood Services,Direct Services,Supplies and Services,304221,Equipment and Materials,04-Apr-2014,2728766-325745,548.23,JOINERY & TIMBER CREATIONS (65) LTD.
Neighbourhood Services,Direct Services,Supplies and Services,304221,Equipment and Materials,04-Apr-2014,2728766-325746,"1,084.46",JOINERY & TIMBER CREATIONS (65) LTD.
Neighbourhood Services,Direct Services,Supplies and Services,304221,Equipment and Materials,04-Apr-2014,2728766-325747,"1,084.46",JOINERY & TIMBER CREATIONS (65) LTD.
Neighbourhood Services,Direct Services,Supplies and Services,304221,Equipment and Materials,04-Apr-2014,2728766-325935,"3,157.14",JOINERY & TIMBER CREATIONS (65) LTD.
Neighbourhood Services,Direct Services,Supplies and Services,304221,Equipment and Materials,04-Apr-2014,2728766-325936,"1,402.80",JOINERY & TIMBER CREATIONS (65) LTD.
Neighbourhood Services,Direct Services,Supplies and Services,304221,Equipment and Materials,04-Apr-2014,2728767-325737,"1,084.46",JOINERY & TIMBER CREATIONS (65) LTD.
Children and Adult Services,Head of Adults,Supplies and Services,324117,Provisions,04-Apr-2014,2728769-O93332,945.62,JR HOLLAND FOOD SERVICES LTD.
Neighbourhood Services,Culture & Sport,Supplies and Services,338099,Services,04-Apr-2014,2728770-1022,"1,023.00",JR PRODUCTIONS.
Neighbourhood Services,Technical Services,Supplies and Services,304221,Equipment and Materials,04-Apr-2014,2728771-BII130216,568.59,JT DOVE LTD.
Neighbourhood Services,Technical Services,Supplies and Services,304221,Equipment and Materials,04-Apr-2014,2728771-BII130458,"2,139.25",JT DOVE LTD.
Neighbourhood Services,Direct Services,Supplies and Services,304221,Equipment and Materials,04-Apr-2014,2728771-CNI19079/D,"1,275.52",JT DOVE LTD.
Neighbourhood Services,Direct Services,Supplies and Services,304221,Equipment and Materials,04-Apr-2014,2728771-HEI549785,"2,012.28",JT DOVE LTD.
Corporate Resources,Legal & Democratic Services,Supplies and Services,336007,Advertising,04-Apr-2014,2728777-7852,525.00,KEITH TAYLOR PHOTOGRAPHER.
Neighbourhood Services,Technical Services,Supplies and Services,304221,Equipment and Materials,04-Apr-2014,2728778-4595,644.80,KEN THOMAS (SITE CLEARANCE LTD).
Neighbourhood Services,Technical Services,Creditors,952041,Personal ac-DCC,04-Apr-2014,2728784-14156,"30,811.15",KIELY BROS LTD.
Neighbourhood Services,Technical Services,Creditors,952041,Personal ac-DCC,04-Apr-2014,2728784-14242,"5,014.81",KIELY BROS LTD.
Neighbourhood Services,Direct Services,Supplies and Services,304221,Equipment and Materials,04-Apr-2014,2728785-SI02-0017847,"1,519.22",KILLGERM CHEMICALS LTD.
Children and Adult Services,Central Charges (CYPS),Creditors,952132,D.A.S.H.,04-Apr-2014,2728786-1000242,"1,473.35",KING JAMES I ACADEMY.
RED HRA,HRA Capital,Construction Work,908105,Construction work,04-Apr-2014,2728791-I370,728.30,KJS ACCESS SOLUTIONS.
Neighbourhood Services,Technical Services,Third Party Payments,430100,Rendered by Private Contractors,04-Apr-2014,2728796-1788,"48,466.61",L & G PLANT HIRE & SALES LTD.
Corporate Resources,Financial Services,Employees,040149,"Recruitment, Instruction and Training",04-Apr-2014,2728797-LAD7730,"1,050.00",LA DIRECTORIES LTD.
Children and Adult Services,Public Health,Third Party Payments,460803,Contract Payments,04-Apr-2014,2728799-NRT0214FFF81,704.69,LANCHESTER PHARMACY.
Neighbourhood Services,Technical Services,Supplies and Services,304358,Equipment and Materials,04-Apr-2014,2728800-INV00433188,625.00,LANES GROUP PLC.
Dedicated Schools Grant,Dedicated Schools Grant,Supplies and Services,384199,Miscellaneous Expenses,04-Apr-2014,2728804-RS-SPRINGTERM14,742.05,LEADGATE CHILD CENTRE LTD.
Corporate Resources,Human Resources,Supplies and Services,342051,Computers and Communications,04-Apr-2014,2728809-125127,"41,169.00",LEARNING NEXUS LTD.
Children and Adult Services,Education,Supplies and Services,384199,Miscellaneous Expenses,04-Apr-2014,2728813-2008864,620.00,LEISUREWORKS.
Children and Adult Services,Commissioning inc Supporting People,Third Party Payments,470101,Purchase of Care,04-Apr-2014,2728814-RINVTP/00309341,"3,655.56",LEONARD CHESHIRE DISABILITY.
Neighbourhood Services,Culture & Sport,Supplies and Services,338029,Services,04-Apr-2014,2728816-DCC0011,"2,639.00",LEWIS LEISURE CONSULTANCY.
Children and Adult Services,Public Health,Third Party Payments,460803,Contract Payments,04-Apr-2014,2728828-150,"5,833.00",LIVING MINDFULLY CIC.
Children and Adult Services,Public Health,Third Party Payments,460803,Contract Payments,04-Apr-2014,2728831-FFC99/NRT/0214,716.77,LLOYDS PHARMACY.
Children and Adult Services,Public Health,Third Party Payments,460803,Contract Payments,04-Apr-2014,2728833-FHM85/NRT/0214,771.76,LLOYDS PHARMACY.
Children and Adult Services,Public Health,Third Party Payments,460803,Contract Payments,04-Apr-2014,2728834-FRR32/FEB/14/NRT,"1,157.92",LLOYDS PHARMACY.
Neighbourhood Services,Direct Services,Transport,210057,Repair and Maintenance of Vehicles,04-Apr-2014,2728840-105460,524.09,LONDONDERRY GARAGE LTD.
Neighbourhood Services,Technical Services,Supplies and Services,304221,Equipment and Materials,04-Apr-2014,2728842-90810,"3,158.30",LORD TECHNICAL LTD.
Children and Adult Services,Public Health,Third Party Payments,460803,Contract Payments,04-Apr-2014,2728847-FH490/0214/NRT,"1,023.60",M & M PHARMACIES LTD.
Children and Adult Services,Public Health,Third Party Payments,460803,Contract Payments,04-Apr-2014,2728848-FMJ44/0214/NRT,672.67,M & M PHARMACIES LTD.
Children and Adult Services,Public Health,Third Party Payments,460803,Contract Payments,04-Apr-2014,2728849-FRQ38/FEB/14/NRT,729.15,M & M PHARMACIES LTD.
Children and Adult Services,Public Health,Third Party Payments,460803,Contract Payments,04-Apr-2014,2728849-FRQ38/QUARTER3,571.50,M & M PHARMACIES LTD.
Children and Adult Services,Public Health,Third Party Payments,460803,Contract Payments,04-Apr-2014,2728850-FVW28/FEB2014/NRT,"1,031.90",M & M PHARMACIES LTD.
Regeneration & Economic Development,Economic Development and Housing,Cap Exp on Grants & Other Financial Assistance (REFCUS),918401,Capital grants,04-Apr-2014,2728852-RED-04-2014-080,"6,040.00",M & R DEVELOPMENTS & CONTRACTORS LTD..
Children and Adult Services,Public Health,Third Party Payments,460803,Contract Payments,04-Apr-2014,2728857-FQL31/NRT/0214,798.63,M WHITFIELD LTD.
Dedicated Schools Grant,Dedicated Schools Grant,Third Party Payments,425005,Rendered by Voluntary Organisations,04-Apr-2014,2728865-1000614,"8,307.69",MARCHBANK FREE SCHOOL.
Children and Adult Services,Public Health,Third Party Payments,460803,Contract Payments,04-Apr-2014,2728869-A83051/Q3/2013/L2SS,607.00,MARLBOROUGH SURGERY.
Regeneration & Economic Development,Transport and Contracted Services,Acquisition Of Land And Buildings,905009,Acquisition of land and buildings,04-Apr-2014,2728871-RED-04-2014-086,"6,500.00",MARTIN CORNEY LTD.
Regeneration & Economic Development,Transport and Contracted Services,Premises,145051,Cleaning and Domestic Supplies,04-Apr-2014,2728876-110068,"1,056.60",MAX RECYCLE T/A THE DURHAM COMPANY (TDC).
Regeneration & Economic Development,Transport and Contracted Services,Premises,145051,Cleaning and Domestic Supplies,04-Apr-2014,2728876-110077,"1,037.40",MAX RECYCLE T/A THE DURHAM COMPANY (TDC).
Regeneration & Economic Development,Transport and Contracted Services,Premises,145051,Cleaning and Domestic Supplies,04-Apr-2014,2728876-110091,"1,037.40",MAX RECYCLE T/A THE DURHAM COMPANY (TDC).
Corporate Resources,Centrally Administered Costs,Supplies and Services,338013,Services,04-Apr-2014,2728877-939398,"33,318.00",MAZARS LLP.
Neighbourhood Services,Culture & Sport,Supplies and Services,384199,Miscellaneous Expenses,04-Apr-2014,2728884-2194,600.00,MID NITE EXPRESS.
Regeneration & Economic Development,Economic Development and Housing,Premises,145050,Cleaning and Domestic Supplies,04-Apr-2014,2728885-073,630.00,MIKE TINKLER.
Children and Adult Services,Public Health,Third Party Payments,460803,Contract Payments,04-Apr-2014,2728886-FED01/NRT/0214,"1,122.30",MILLERS PHARMACY.
Children and Adult Services,Public Health,Third Party Payments,460802,Contract Payments,04-Apr-2014,2728905-A83041/Q3/2013/HC,800.00,MURTON MEDICAL GROUP.
Corporate Resources,Internal Audit and Insurance,Supplies and Services,352001,Conference Expenses,04-Apr-2014,2728909-60358954,"5,149.00",NATIONAL ANTI FRAUD NETWORK.
Neighbourhood Services,Culture & Sport,Supplies and Services,384999,Miscellaneous Expenses,04-Apr-2014,2728911-111935,"62,790.00",NATIONAL MUSEUM OF SCIENCE & INDUSTRY ENTERPRISES LTD.
RED HRA,Housing Revenue Account,Debtors,930106,Debtor-furnished tenancy scheme,04-Apr-2014,2728917-1800006893604,"12,552.73",NEWCASTLE UPON TYNE CITY COUNCIL.
Corporate Resources,Legal & Democratic Services,Supplies and Services,338057,Services,04-Apr-2014,2728918-R0219264,"1,690.00",NEWCASTLE UPON TYNE HOSPITALS NHS FOUNDATION TRUST.
Dedicated Schools Grant,Dedicated Schools Grant,Employees,080025,Agency Staff,04-Apr-2014,2728922-88,"1,423.00",NEXT STEP CONSULTANCY.
Children and Adult Services,Education,Supplies and Services,372009,Subscriptions,04-Apr-2014,2728923-27990,950.00,NGA.
Children and Adult Services,Children�s Services,Supplies and Services,384199,Miscellaneous Expenses,04-Apr-2014,2728924-48318809,"1,059.10",NHS PROPERTY SERVICES LTD.
Dedicated Schools Grant,Dedicated Schools Grant,Third Party Payments,440080,Other Third Party Payments,04-Apr-2014,2728932-0000016954,"2,094.08",NORTH EAST AUTISM SOCIETY.
Dedicated Schools Grant,Dedicated Schools Grant,Third Party Payments,440080,Other Third Party Payments,04-Apr-2014,2728932-0000016962,"2,745.48",NORTH EAST AUTISM SOCIETY.
Dedicated Schools Grant,Dedicated Schools Grant,Third Party Payments,440080,Other Third Party Payments,04-Apr-2014,2728932-0000017163,"2,378.47",NORTH EAST AUTISM SOCIETY.
Dedicated Schools Grant,Dedicated Schools Grant,Third Party Payments,425005,Rendered by Voluntary Organisations,04-Apr-2014,2728933-0000016686,"23,928.89",NORTH EAST AUTISM SOCIETY.
Dedicated Schools Grant,Dedicated Schools Grant,Third Party Payments,425005,Rendered by Voluntary Organisations,04-Apr-2014,2728933-0000016687,"23,928.89",NORTH EAST AUTISM SOCIETY.
Dedicated Schools Grant,Dedicated Schools Grant,Third Party Payments,425005,Rendered by Voluntary Organisations,04-Apr-2014,2728933-0000016689,"9,442.39",NORTH EAST AUTISM SOCIETY.
Dedicated Schools Grant,Dedicated Schools Grant,Third Party Payments,425005,Rendered by Voluntary Organisations,04-Apr-2014,2728933-0000016690,"7,951.48",NORTH EAST AUTISM SOCIETY.
Regeneration & Economic Development,Economic Development and Housing,Premises,120009,Energy Costs,04-Apr-2014,2728945-NNO7JZMM,"1,305.47",NPOWER.
Regeneration & Economic Development,Transport and Contracted Services,Third Party Payments,430100,Rendered by Private Contractors,04-Apr-2014,2728946-023866,"3,287.80",NSL LTD.
Regeneration & Economic Development,Transport and Contracted Services,Third Party Payments,430100,Rendered by Private Contractors,04-Apr-2014,2728946-023867,"5,175.00",NSL LTD.
Regeneration & Economic Development,Transport and Contracted Services,Third Party Payments,430100,Rendered by Private Contractors,04-Apr-2014,2728946-023868,"1,149.08",NSL LTD.
Regeneration & Economic Development,Transport and Contracted Services,Third Party Payments,430100,Rendered by Private Contractors,04-Apr-2014,2728946-023869,828.00,NSL LTD.
Regeneration & Economic Development,Transport and Contracted Services,Third Party Payments,430100,Rendered by Private Contractors,04-Apr-2014,2728946-023870,675.02,NSL LTD.
Children and Adult Services,Public Health,Third Party Payments,460802,Contract Payments,04-Apr-2014,2728949-A83618/Q3/2013/HC,"1,525.00",OAKFIELDS HEALTH CENTRE.
Children and Adult Services,Children�s Services,Supplies and Services,304259,Equipment and Materials,04-Apr-2014,2728951-CN18695389,785.52,OCS GROUP UK LTD T/A CANNON HYGIENE.
Neighbourhood Services,Technical Services,Third Party Payments,430100,Rendered by Private Contractors,04-Apr-2014,2728961-SIN9010156,"22,215.45",OWEN PUGH CONTRACTS LTD.
Neighbourhood Services,Direct Services,Third Party Payments,430100,Rendered by Private Contractors,04-Apr-2014,2728965-190,"2,192.45",PARAMOUNT CEILINGS & PARTITIONS.
Neighbourhood Services,Technical Services,Stock,926900,Stock in hand-Inventory system,04-Apr-2014,2728966-XL110543,"1,268.54",PARK ELECTRICAL DISTRIBUTORS LTD.
Neighbourhood Services,Technical Services,Stock,926900,Stock in hand-Inventory system,04-Apr-2014,2728966-XL110640,576.00,PARK ELECTRICAL DISTRIBUTORS LTD.
Neighbourhood Services,Technical Services,Stock,926900,Stock in hand-Inventory system,04-Apr-2014,2728966-XL110766,"2,254.85",PARK ELECTRICAL DISTRIBUTORS LTD.
Neighbourhood Services,Technical Services,Stock,926900,Stock in hand-Inventory system,04-Apr-2014,2728966-XL110812,"3,500.00",PARK ELECTRICAL DISTRIBUTORS LTD.
Neighbourhood Services,Technical Services,Stock,926900,Stock in hand-Inventory system,04-Apr-2014,2728966-XL110873,"2,375.52",PARK ELECTRICAL DISTRIBUTORS LTD.
Neighbourhood Services,Technical Services,Stock,926900,Stock in hand-Inventory system,04-Apr-2014,2728966-XL111660,"2,348.73",PARK ELECTRICAL DISTRIBUTORS LTD.
Neighbourhood Services,Culture & Sport,Supplies and Services,384540,Miscellaneous Expenses,04-Apr-2014,2728969-5811,958.00,PBL PRINT.
Neighbourhood Services,Culture & Sport,Supplies and Services,384540,Miscellaneous Expenses,04-Apr-2014,2728969-5825,598.50,PBL PRINT.
Children and Adult Services,Public Health,Third Party Payments,460802,Contract Payments,04-Apr-2014,2728972-A83033,"2,280.00",PELTON & FELLROSE MEDICAL GROUP.
Regeneration & Economic Development,Economic Development and Housing,Supplies and Services,384700,Miscellaneous Expenses,04-Apr-2014,2728972-RED-04-2014-071,"2,000.00",PELTON & FELLROSE MEDICAL GROUP.
Dedicated Schools Grant,Dedicated Schools Grant,Third Party Payments,425005,Rendered by Voluntary Organisations,04-Apr-2014,2728975-20284,"30,611.01",PERCY HEDLEY FOUNDATION.
Children and Adult Services,Children�s Services,Third Party Payments,425020,Rendered by Voluntary Organisations,04-Apr-2014,2728975-20782,"2,024.00",PERCY HEDLEY FOUNDATION.
Children and Adult Services,Children�s Services,Third Party Payments,425021,Rendered by Voluntary Organisations,04-Apr-2014,2728975-20784,"50,525.16",PERCY HEDLEY FOUNDATION.
Dedicated Schools Grant,Dedicated Schools Grant,Third Party Payments,425005,Rendered by Voluntary Organisations,04-Apr-2014,2728975-2474,"30,611.00",PERCY HEDLEY FOUNDATION.
Children and Adult Services,Public Health,Third Party Payments,460803,Contract Payments,04-Apr-2014,2728978-FYV47,509.50,PHILLIPS CHEMISTS LTD.
Children and Adult Services,Head of Adults,Supplies and Services,304516,Equipment and Materials,04-Apr-2014,2728980-00825,531.40,PHILLIPS TAXI GROUP LTD.
Neighbourhood Services,Culture & Sport,Supplies and Services,304259,Equipment and Materials,04-Apr-2014,2728984-60953462,"2,812.08",PHS GROUP PLC.
Children and Adult Services,Children�s Services,Third Party Payments,440062,Other Third Party Payments,04-Apr-2014,2728985-12634,"1,824.64",PHYSIOTHERAPY FOR YOU.
Neighbourhood Services,Direct Services,Supplies and Services,338099,Services,04-Apr-2014,2729002-128328,610.00,PREMIER TRAFFIC MANAGEMENT LTD.
Neighbourhood Services,Technical Services,Third Party Payments,430100,Rendered by Private Contractors,04-Apr-2014,2729002-128349,"2,665.00",PREMIER TRAFFIC MANAGEMENT LTD.
Neighbourhood Services,Technical Services,Third Party Payments,430100,Rendered by Private Contractors,04-Apr-2014,2729002-128350,"4,429.95",PREMIER TRAFFIC MANAGEMENT LTD.
Neighbourhood Services,Direct Services,Premises,145009,Cleaning and Domestic Supplies,04-Apr-2014,2729003-445855,639.20,PREMIER WASTE RECYCLING LTD.
Dedicated Schools Grant,Dedicated Schools Grant,Third Party Payments,425005,Rendered by Voluntary Organisations,04-Apr-2014,2729021-0000121165,"1,950.00",QUALITY TIME CARE LTD.
Dedicated Schools Grant,Dedicated Schools Grant,Third Party Payments,425005,Rendered by Voluntary Organisations,04-Apr-2014,2729021-0000121178,"2,600.00",QUALITY TIME CARE LTD.
Dedicated Schools Grant,Dedicated Schools Grant,Third Party Payments,425005,Rendered by Voluntary Organisations,04-Apr-2014,2729021-0000121193,"1,950.00",QUALITY TIME CARE LTD.
Dedicated Schools Grant,Dedicated Schools Grant,Third Party Payments,425005,Rendered by Voluntary Organisations,04-Apr-2014,2729021-0000121220,"2,730.00",QUALITY TIME CARE LTD.
Regeneration & Economic Development,Economic Development and Housing,Supplies and Services,338078,Services,04-Apr-2014,2729023-31/3/14,"5,015.12",QW SECURITY LTD.
Neighbourhood Services,Technical Services,Third Party Payments,430100,Rendered by Private Contractors,04-Apr-2014,2729033-2580/140222,"2,400.80",RAINTON CONSTRUCTION LTD.
Neighbourhood Services,Technical Services,Third Party Payments,430100,Rendered by Private Contractors,04-Apr-2014,2729033-2580/140346,"56,017.80",RAINTON CONSTRUCTION LTD.
Neighbourhood Services,Technical Services,Third Party Payments,430100,Rendered by Private Contractors,04-Apr-2014,2729033-2580/140348,"32,180.26",RAINTON CONSTRUCTION LTD.
Neighbourhood Services,Technical Services,Third Party Payments,430100,Rendered by Private Contractors,04-Apr-2014,2729033-2580/140349,"14,812.12",RAINTON CONSTRUCTION LTD.
Neighbourhood Services,Technical Services,Third Party Payments,430100,Rendered by Private Contractors,04-Apr-2014,2729033-2580/140350,"17,254.98",RAINTON CONSTRUCTION LTD.
Neighbourhood Services,Technical Services,Third Party Payments,430100,Rendered by Private Contractors,04-Apr-2014,2729033-2580/140351,"63,556.69",RAINTON CONSTRUCTION LTD.
Neighbourhood Services,Technical Services,Third Party Payments,430100,Rendered by Private Contractors,04-Apr-2014,2729033-2580/140352,"28,404.31",RAINTON CONSTRUCTION LTD.
Neighbourhood Services,Technical Services,Third Party Payments,430100,Rendered by Private Contractors,04-Apr-2014,2729033-2580/140353,"45,276.41",RAINTON CONSTRUCTION LTD.
Neighbourhood Services,Technical Services,Third Party Payments,430100,Rendered by Private Contractors,04-Apr-2014,2729033-2580/140354,"57,090.94",RAINTON CONSTRUCTION LTD.
Neighbourhood Services,Technical Services,Third Party Payments,430100,Rendered by Private Contractors,04-Apr-2014,2729033-2580/140355,"13,282.51",RAINTON CONSTRUCTION LTD.
Neighbourhood Services,Technical Services,Third Party Payments,430100,Rendered by Private Contractors,04-Apr-2014,2729033-2580/140356,"14,711.56",RAINTON CONSTRUCTION LTD.
Neighbourhood Services,Technical Services,Third Party Payments,430100,Rendered by Private Contractors,04-Apr-2014,2729033-2580/140357,"32,087.16",RAINTON CONSTRUCTION LTD.
Neighbourhood Services,Technical Services,Third Party Payments,430100,Rendered by Private Contractors,04-Apr-2014,2729033-2580/140358,"55,512.36",RAINTON CONSTRUCTION LTD.
Neighbourhood Services,Technical Services,Third Party Payments,430100,Rendered by Private Contractors,04-Apr-2014,2729033-2580/140359,"35,885.52",RAINTON CONSTRUCTION LTD.
Neighbourhood Services,Technical Services,Third Party Payments,430100,Rendered by Private Contractors,04-Apr-2014,2729033-2580/140360,"35,578.37",RAINTON CONSTRUCTION LTD.
Neighbourhood Services,Direct Services,Supplies and Services,304358,Equipment and Materials,04-Apr-2014,2729037-8767,"1,109.00",RD KEARTON & SONS LTD.
Neighbourhood Services,Technical Services,Supplies and Services,304358,Equipment and Materials,04-Apr-2014,2729037-8778,"5,400.00",RD KEARTON & SONS LTD.
Neighbourhood Services,Direct Services,Third Party Payments,430100,Rendered by Private Contractors,04-Apr-2014,2729047-2963,"9,000.00",RINGLAND SCAFFOLDING.
Children and Adult Services,Public Health,Third Party Payments,460803,Contract Payments,04-Apr-2014,2729053-FL345/0214/NRT,939.18,ROBERTS & ROBERTS LTD T/A HIGGINBOTTOM PHARMACY.
Regeneration & Economic Development,Economic Development and Housing,Cap Exp on Grants & Other Financial Assistance (REFCUS),918401,Capital grants,04-Apr-2014,2729059-RED-04-2014-076,"12,886.80",RONDEN PROPERTIES LTD.
Children and Adult Services,Head of Adults,Supplies and Services,344137,Telephones,04-Apr-2014,2729063-ND4685/14,554.00,RUSSELL TELECOM LTD.
Children and Adult Services,Head of Adults,Transfer Payments,515209,Social Services Clients,04-Apr-2014,2729065-CAS-04-2014-031,"11,277.00",REDACTED - PAYMENT TO INDIVIDUAL
Children and Adult Services,Public Health,Third Party Payments,460802,Contract Payments,04-Apr-2014,2729070,975.00,SACRISTON SURGERY.
Dedicated Schools Grant,Dedicated Schools Grant,Supplies and Services,384199,Miscellaneous Expenses,04-Apr-2014,2729088-OM-13WKS,"1,365.00",SEAHAM HOUSE DAY NURSERY.
Assistant Chief Executive,Partnerships & Community Engagement Div.,Transfer Payments,525030,Other,04-Apr-2014,2729092,"3,000.00",SEDGEFIELD AREA & SURROUNDING COMMUNITIES.
Corporate Resources,I.C.T. Services,Supplies and Services,332029,"Printing, Stationery and Gen Off Exps",04-Apr-2014,2729094-91914406,"2,600.00",SERVICE POINT (UK) LTD.
Corporate Resources,I.C.T. Services,Supplies and Services,332029,"Printing, Stationery and Gen Off Exps",04-Apr-2014,2729094-91914409,"1,560.00",SERVICE POINT (UK) LTD.
RED HRA,HRA Capital,Construction Work,908105,Construction work,04-Apr-2014,2729097-72402,644.00,SGS MIS ENVIRONMENTAL LTD.
RED HRA,HRA Capital,Construction Work,908105,Construction work,04-Apr-2014,2729097-72403,"1,196.00",SGS MIS ENVIRONMENTAL LTD.
RED HRA,HRA Capital,Construction Work,908105,Construction work,04-Apr-2014,2729097-72488,615.00,SGS MIS ENVIRONMENTAL LTD.
RED HRA,HRA Capital,Construction Work,908105,Construction work,04-Apr-2014,2729097-72523,828.00,SGS MIS ENVIRONMENTAL LTD.
RED HRA,HRA Capital,Construction Work,908105,Construction work,04-Apr-2014,2729097-72524,828.00,SGS MIS ENVIRONMENTAL LTD.
Children and Adult Services,Children�s Services,Third Party Payments,440999,Other Third Party Payments,04-Apr-2014,2729099-CAS-04-2014-007,848.00,REDACTED - PAYMENT TO INDIVIDUAL
Children and Adult Services,Public Health,Third Party Payments,460803,Contract Payments,04-Apr-2014,2729102-FJW29,887.35,SHOTTON PHARMACY.
Corporate Resources,Corporate Finance,Supplies and Services,384199,Miscellaneous Expenses,04-Apr-2014,2729111-5914,"3,300.00",SILVER TIN.
Children and Adult Services,Education,Supplies and Services,384199,Miscellaneous Expenses,04-Apr-2014,2729113-214206,"1,380.00",SIMPLY SPORT LTD.
Assistant Chief Executive,Planning & Performance Division,Supplies and Services,342053,Computers and Communications,04-Apr-2014,2729118-27/03/2014,"1,120.00",SNAP SURVEYS.
Neighbourhood Services,Technical Services,Stock,926900,Stock in hand-Inventory system,04-Apr-2014,2729127-270031843,787.69,SOVEREIGN CHEMICALS LTD.
Children and Adult Services,Public Health,Supplies and Services,384540,Miscellaneous Expenses,04-Apr-2014,2729143-201131,"1,080.00",STAR RADIO.
Neighbourhood Services,Technical Services,Supplies and Services,304221,Equipment and Materials,04-Apr-2014,2729148-060473,"1,463.34",STONEGRAVE AGGREGATES LTD.
Neighbourhood Services,Technical Services,Supplies and Services,304221,Equipment and Materials,04-Apr-2014,2729148-060519,"1,958.62",STONEGRAVE AGGREGATES LTD.
Neighbourhood Services,Technical Services,Supplies and Services,304221,Equipment and Materials,04-Apr-2014,2729148-060566,847.12,STONEGRAVE AGGREGATES LTD.
Neighbourhood Services,Technical Services,Supplies and Services,304221,Equipment and Materials,04-Apr-2014,2729148-060607,"1,525.94",STONEGRAVE AGGREGATES LTD.
Neighbourhood Services,Technical Services,Supplies and Services,304221,Equipment and Materials,04-Apr-2014,2729148-060647,"1,959.88",STONEGRAVE AGGREGATES LTD.
Neighbourhood Services,Technical Services,Supplies and Services,304221,Equipment and Materials,04-Apr-2014,2729148-060764,"2,460.52",STONEGRAVE AGGREGATES LTD.
Neighbourhood Services,Technical Services,Supplies and Services,304221,Equipment and Materials,04-Apr-2014,2729148-060798,"1,550.30",STONEGRAVE AGGREGATES LTD.
Neighbourhood Services,Technical Services,Supplies and Services,304221,Equipment and Materials,04-Apr-2014,2729148-060840,545.28,STONEGRAVE AGGREGATES LTD.
Neighbourhood Services,Technical Services,Supplies and Services,304221,Equipment and Materials,04-Apr-2014,2729148-060887,592.64,STONEGRAVE AGGREGATES LTD.
Neighbourhood Services,Technical Services,Supplies and Services,304221,Equipment and Materials,04-Apr-2014,2729148-060927,"2,305.90",STONEGRAVE AGGREGATES LTD.
Neighbourhood Services,Direct Services,Third Party Payments,430105,Rendered by Private Contractors,04-Apr-2014,2729148-060948,934.00,STONEGRAVE AGGREGATES LTD.
Neighbourhood Services,Technical Services,Supplies and Services,304221,Equipment and Materials,04-Apr-2014,2729148-061062,"1,241.54",STONEGRAVE AGGREGATES LTD.
Neighbourhood Services,Technical Services,Supplies and Services,304221,Equipment and Materials,04-Apr-2014,2729148-061205,966.62,STONEGRAVE AGGREGATES LTD.
Neighbourhood Services,Technical Services,Supplies and Services,304221,Equipment and Materials,04-Apr-2014,2729148-061239,564.82,STONEGRAVE AGGREGATES LTD.
Children and Adult Services,Education,Transfer Payments,510026,School Children,04-Apr-2014,2729154-13990,"1,135.80",SUNSHINE DAY NURSERY.
Neighbourhood Services,Culture & Sport,Supplies and Services,342013,Computers and Communications,04-Apr-2014,2729156-6569474,612.16,SUPPLIES TEAM LTD.
Children and Adult Services,Children�s Services,Third Party Payments,425040,Rendered by Voluntary Organisations,04-Apr-2014,2729163-144633,910.00,SWIIS FOSTER CARE LTD.
Children and Adult Services,Children�s Services,Third Party Payments,425040,Rendered by Voluntary Organisations,04-Apr-2014,2729163-144634,"1,069.00",SWIIS FOSTER CARE LTD.
Children and Adult Services,Children�s Services,Third Party Payments,425040,Rendered by Voluntary Organisations,04-Apr-2014,2729163-144635,"1,075.00",SWIIS FOSTER CARE LTD.
Children and Adult Services,Children�s Services,Third Party Payments,425040,Rendered by Voluntary Organisations,04-Apr-2014,2729163-144636,891.90,SWIIS FOSTER CARE LTD.
Children and Adult Services,Children�s Services,Third Party Payments,425040,Rendered by Voluntary Organisations,04-Apr-2014,2729163-144637,"1,069.00",SWIIS FOSTER CARE LTD.
Neighbourhood Services,Direct Services,Supplies and Services,304221,Equipment and Materials,04-Apr-2014,2729166-1115079,543.90,T CROSSLING & CO LTD.
Children and Adult Services,Education,Supplies and Services,324500,Provisions,04-Apr-2014,2729169-SI-TSD-1000438,"2,298,576.00",TAYLOR SHAW LTD.
Dedicated Schools Grant,Dedicated Schools Grant,Employees,080025,Agency Staff,04-Apr-2014,2729175-879529,"1,366.05",TEACHING PERSONNEL LTD.
Children and Adult Services,Children�s Services,Third Party Payments,425040,Rendered by Voluntary Organisations,04-Apr-2014,2729176-21723,"3,631.43",TEAM FOSTERING.
Children and Adult Services,Children�s Services,Third Party Payments,425040,Rendered by Voluntary Organisations,04-Apr-2014,2729176-21734,"3,100.00",TEAM FOSTERING.
Children and Adult Services,Children�s Services,Third Party Payments,425040,Rendered by Voluntary Organisations,04-Apr-2014,2729176-21749,"3,232.86",TEAM FOSTERING.
Children and Adult Services,Children�s Services,Third Party Payments,425040,Rendered by Voluntary Organisations,04-Apr-2014,2729176-21750,"3,100.00",TEAM FOSTERING.
Children and Adult Services,Children�s Services,Third Party Payments,425040,Rendered by Voluntary Organisations,04-Apr-2014,2729176-21815,"2,502.86",TEAM FOSTERING.
Neighbourhood Services,Direct Services,Third Party Payments,430100,Rendered by Private Contractors,04-Apr-2014,2729177-6349,"83,305.00",TEAMS ROOFING LTD.
Children and Adult Services,Head of Adults,Employees,080025,Agency Staff,04-Apr-2014,2729182-4810001925,813.75,TEES ESK & WEAR VALLEYS NHS FOUNDATION TRUST.
Children and Adult Services,Head of Adults,Employees,080025,Agency Staff,04-Apr-2014,2729182-4810002057,813.75,TEES ESK & WEAR VALLEYS NHS FOUNDATION TRUST.
Children and Adult Services,Head of Adults,Employees,080025,Agency Staff,04-Apr-2014,2729182-4810002058,"1,627.42",TEES ESK & WEAR VALLEYS NHS FOUNDATION TRUST.
Children and Adult Services,Head of Adults,Employees,080025,Agency Staff,04-Apr-2014,2729182-4810002059,"1,627.42",TEES ESK & WEAR VALLEYS NHS FOUNDATION TRUST.
Children and Adult Services,Head of Adults,Employees,080025,Agency Staff,04-Apr-2014,2729182-4810002063,"3,583.09",TEES ESK & WEAR VALLEYS NHS FOUNDATION TRUST.
Children and Adult Services,Public Health,Third Party Payments,460803,Contract Payments,04-Apr-2014,2729187-FMH62/0214/NRT,516.98,TESCO PHARMACY.
Neighbourhood Services,Technical Services,Supplies and Services,304358,Equipment and Materials,04-Apr-2014,2729189-8432,985.00,TEWARD BROS LTD.
Children and Adult Services,Education,Supplies and Services,338029,Services,04-Apr-2014,2729190-CAS-04-2014-022,960.00,THE ACADEMY AT SHOTTON HALL.
Children and Adult Services,Public Health,Third Party Payments,460803,Contract Payments,04-Apr-2014,2729192-A83042/Q3/2013/L2SS,822.00,THE CARODOC PRACTICE.
Children and Adult Services,Education,Transfer Payments,510026,School Children,04-Apr-2014,2729198-BW27/1-28/3/14,757.20,THE NURSERY.
Neighbourhood Services,Technical Services,Stock,926900,Stock in hand-Inventory system,04-Apr-2014,2729204-N/IN118734,820.35,THOMAS OWEN & SONS (NEWCASTLE) LTD.
Neighbourhood Services,Technical Services,Stock,926900,Stock in hand-Inventory system,04-Apr-2014,2729204-N/IN119197,"1,173.08",THOMAS OWEN & SONS (NEWCASTLE) LTD.
Regeneration & Economic Development,Economic Development and Housing,Cap Exp on Grants & Other Financial Assistance (REFCUS),918401,Capital grants,04-Apr-2014,2729206-RED-04-2014-061,"3,480.00",THYSSENKRUPP ENCASA LTD.
Neighbourhood Services,Technical Services,Supplies and Services,304221,Equipment and Materials,04-Apr-2014,2729212-23944,850.00,TODDS HIGHWAY MAINTENANCE LTD.
Regeneration & Economic Development,Transport and Contracted Services,Premises,108099,Service Repairs and Maintenance,04-Apr-2014,2729216,"1,322.00",TOPLINE ENVIRONMENTAL SOLUTION.
Regeneration & Economic Development,Transport and Contracted Services,Other Expenses,914001,Other capital expenses,04-Apr-2014,2729216-A,"1,070.85",TOPLINE ENVIRONMENTAL SOLUTION.
Children and Adult Services,Public Health,Third Party Payments,460803,Contract Payments,04-Apr-2014,2729219-FF689/FEB/14/NRT,695.37,TOW LAW PHARMACY.
Children and Adult Services,Children�s Services,Supplies and Services,384199,Miscellaneous Expenses,04-Apr-2014,2729223-814,"3,900.00",TRAINING LADDER LTD.
Neighbourhood Services,Direct Services,Supplies and Services,304221,Equipment and Materials,04-Apr-2014,2729233-122171,615.96,TUDOR (UK) LTD T/A TUDOR ENVIRONMENTAL.
Children and Adult Services,Commissioning inc Supporting People,Supplies and Services,338099,Services,04-Apr-2014,2729235-3IN/20131053,"2,716.15",TUNSTALL HEALTHCARE (UK) LTD.
Regeneration & Economic Development,Economic Development and Housing,Construction Work,908105,Construction work,04-Apr-2014,2729236-1784,"102,842.16",TURNEY WYLDE (CONSTRUCTION) LTD.
Neighbourhood Services,Technical Services,Supplies and Services,304221,Equipment and Materials,04-Apr-2014,2729239-134723,960.74,TYNEDALE ROADSTONE LTD.
Neighbourhood Services,Technical Services,Supplies and Services,304221,Equipment and Materials,04-Apr-2014,2729239-134994,865.91,TYNEDALE ROADSTONE LTD.
Neighbourhood Services,Technical Services,Supplies and Services,304221,Equipment and Materials,04-Apr-2014,2729239-135190,"1,037.12",TYNEDALE ROADSTONE LTD.
Neighbourhood Services,Direct Services,Supplies and Services,304221,Equipment and Materials,04-Apr-2014,2729245-1008936,560.40,UNDERFLOOR WAREHOUSE LTD (UFW).
Neighbourhood Services,Direct Services,Supplies and Services,304221,Equipment and Materials,04-Apr-2014,2729245-1008959,"1,162.51",UNDERFLOOR WAREHOUSE LTD (UFW).
Neighbourhood Services,Direct Services,Supplies and Services,304221,Equipment and Materials,04-Apr-2014,2729245-1008960,"2,612.80",UNDERFLOOR WAREHOUSE LTD (UFW).
Neighbourhood Services,Direct Services,Supplies and Services,304221,Equipment and Materials,04-Apr-2014,2729245-1008961,802.36,UNDERFLOOR WAREHOUSE LTD (UFW).
Neighbourhood Services,Direct Services,Supplies and Services,304221,Equipment and Materials,04-Apr-2014,2729245-1008963,928.90,UNDERFLOOR WAREHOUSE LTD (UFW).
Neighbourhood Services,Direct Services,Supplies and Services,304221,Equipment and Materials,04-Apr-2014,2729245-1009028,"4,360.61",UNDERFLOOR WAREHOUSE LTD (UFW).
Corporate Resources,I.C.T. Services,Stock,926900,Stock in hand-Inventory system,04-Apr-2014,2729256-2340570,"19,380.00",VIGLEN LTD.
Corporate Resources,I.C.T. Services,Stock,926900,Stock in hand-Inventory system,04-Apr-2014,2729256-2340836,"1,595.00",VIGLEN LTD.
Children and Adult Services,Children�s Services,Employees,080025,Agency Staff,04-Apr-2014,2729259-101914,950.00,VISION FOR EDUCATION LTD.
Dedicated Schools Grant,Dedicated Schools Grant,Employees,080025,Agency Staff,04-Apr-2014,2729259-102979,950.00,VISION FOR EDUCATION LTD.
Dedicated Schools Grant,Dedicated Schools Grant,Supplies and Services,384199,Miscellaneous Expenses,04-Apr-2014,2729261-VM5759,"1,000.00",VIVO REWARDS LTD.
Neighbourhood Services,Technical Services,Supplies and Services,304358,Equipment and Materials,04-Apr-2014,2729264-36987,"2,672.00",W MARLEY AGRICULTURAL CONTRACTORS LTD.
Children and Adult Services,Public Health,Third Party Payments,460803,Contract Payments,04-Apr-2014,2729267-FML39/02/14/NRT,873.44,W SMITH (DURHAM) LTD.
Regeneration & Economic Development,Economic Development and Housing,Other Expenses,914001,Other capital expenses,04-Apr-2014,2729270-3078643,"3,000.00",WATERMAN STRUCTURES LTD.
Neighbourhood Services,Technical Services,Premises,150015,Apportioned Exps of Operational Blds,04-Apr-2014,2729274-273520,598.29,WERNICK HIRE LTD.
Neighbourhood Services,Technical Services,Premises,150015,Apportioned Exps of Operational Blds,04-Apr-2014,2729274-273523,598.29,WERNICK HIRE LTD.
Neighbourhood Services,Technical Services,Premises,150015,Apportioned Exps of Operational Blds,04-Apr-2014,2729274-273524,638.69,WERNICK HIRE LTD.
Neighbourhood Services,Technical Services,Premises,150015,Apportioned Exps of Operational Blds,04-Apr-2014,2729274-273526,522.09,WERNICK HIRE LTD.
Neighbourhood Services,Technical Services,Premises,150015,Apportioned Exps of Operational Blds,04-Apr-2014,2729274-273527,638.69,WERNICK HIRE LTD.
Neighbourhood Services,Technical Services,Premises,150015,Apportioned Exps of Operational Blds,04-Apr-2014,2729274-273528,638.69,WERNICK HIRE LTD.
Neighbourhood Services,Direct Services,Premises,150015,Apportioned Exps of Operational Blds,04-Apr-2014,2729274-273590,664.95,WERNICK HIRE LTD.
Neighbourhood Services,Direct Services,Premises,150015,Apportioned Exps of Operational Blds,04-Apr-2014,2729274-273605,664.95,WERNICK HIRE LTD.
Children and Adult Services,Public Health,Third Party Payments,460802,Contract Payments,04-Apr-2014,2729276-A83024/Q3/2013/HC,"2,200.00",WEST RAINTON SURGERY.
Children and Adult Services,Children�s Services,Premises,125009,Rents,04-Apr-2014,2729282-282239,612.00,WHITTLE JONES (GROUP) LTD.
Children and Adult Services,Public Health,Third Party Payments,460803,Contract Payments,04-Apr-2014,2729283-FGF94,994.62,WHITWORTH CHEMISTS LTD.
Children and Adult Services,Public Health,Third Party Payments,460803,Contract Payments,04-Apr-2014,2729284-FEQ59,869.76,WHITWORTH CHEMISTS LTD.
Neighbourhood Services,Technical Services,Supplies and Services,304221,Equipment and Materials,04-Apr-2014,2729286-56,"1,100.00",WILF HUSBAND PLANT HIRE.
Neighbourhood Services,Technical Services,Supplies and Services,304221,Equipment and Materials,04-Apr-2014,2729289-13-1097,"11,690.00",WM O SILMON LTD.
Neighbourhood Services,Direct Services,Supplies and Services,304259,Equipment and Materials,04-Apr-2014,2729289-13-1104,"1,800.00",WM O SILMON LTD.
Neighbourhood Services,Technical Services,Stock,926900,Stock in hand-Inventory system,04-Apr-2014,2729290-11302036,669.05,WOLSELEY UK LTD.
Neighbourhood Services,Technical Services,Stock,926900,Stock in hand-Inventory system,04-Apr-2014,2729290-11463413,693.90,WOLSELEY UK LTD.
Children and Adult Services,Public Health,Third Party Payments,460802,Contract Payments,04-Apr-2014,2729293-1011688,"32,250.00",WRS GROUP UK.
Neighbourhood Services,Direct Services,Stock,926004,Stock,04-Apr-2014,2729298-SVI26256,"1,471.50",ZOELLER WASTE SYSTEMS LTD.
Corporate Resources,Corporate Finance,Supplies and Services,342051,Computers and Communications,07-Apr-2014,2729570,"15,333.61",INFOR GLOBAL SOLUTIONS (MIDLANDS II) LTD.
Corporate Resources,I.C.T. Services,Supplies and Services,344033,Telephones,07-Apr-2014,2729901,"6,529.26",VODAFONE CORPORATE LTD.
Children and Adult Services,Head of Adults,Transport,230005,Contract Hire,07-Apr-2014,2729301-31415,"1,806.00",24/7 TAXI SERVICES LTD.
Children and Adult Services,Head of Adults,Transport,230005,Contract Hire,07-Apr-2014,2729306-EA220751,"1,764.00",A MURRAY TRAVEL.
Regeneration & Economic Development,Economic Development and Housing,Premises,106082,Centrally Controlled Rep and Maint,07-Apr-2014,2729315-14389,"5,933.13",ACROL AIR CONDITIONING CO LTD.
Children and Adult Services,Head of Adults,Transport,230005,Contract Hire,07-Apr-2014,2729316-106,612.00,ADAMSONS TAXIS.
Neighbourhood Services,Culture & Sport,Premises,106082,Centrally Controlled Rep and Maint,07-Apr-2014,2729317-26249740-61,785.00,ADT FIRE & SECURITY PLC.
Neighbourhood Services,Culture & Sport,Premises,106082,Centrally Controlled Rep and Maint,07-Apr-2014,2729317-26249747-61,742.00,ADT FIRE & SECURITY PLC.
Neighbourhood Services,Technical Services,Supplies and Services,338027,Services,07-Apr-2014,2729319-28184837,"8,984.25",AECOM LTD.
Regeneration & Economic Development,"Spatial Policy, Planning, Assets & Environment",Other Expenses,914001,Other capital expenses,07-Apr-2014,2729320-31MAR2014,820.00,AET LTD.
Neighbourhood Services,Projects and Business services,Supplies and Services,338027,Services,07-Apr-2014,2729325-HL154936,"2,276.96",ALCONTROL LABORATORIES.
Neighbourhood Services,Projects and Business services,Supplies and Services,338027,Services,07-Apr-2014,2729325-HL155900,737.11,ALCONTROL LABORATORIES.
Neighbourhood Services,Direct Services,Supplies and Services,304221,Equipment and Materials,07-Apr-2014,2729333-3080128745,"3,399.90",ANDREWS SYKES HIRE LTD..
Children and Adult Services,Children�s Services,Premises,106082,Centrally Controlled Rep and Maint,07-Apr-2014,2729341-22584,650.00,AQUAJET DRAIN CLEANING.
Neighbourhood Services,Technical Services,Stock,926900,Stock in hand-Inventory system,07-Apr-2014,2729342-921636467,905.53,ARCO LTD.
Neighbourhood Services,Technical Services,Stock,926900,Stock in hand-Inventory system,07-Apr-2014,2729342-921636468,"3,372.85",ARCO LTD.
Neighbourhood Services,Culture & Sport,Supplies and Services,312013,"Newspapers, Books and Periodicals",07-Apr-2014,2729347-4200839,616.67,ASKEWS & HOLTS LIBRARY SERVICES LTD.
Children and Adult Services,Children�s Services,Supplies and Services,340001,Postages,07-Apr-2014,2729349-SIN009780,"4,656.67",AWARD SCHEME LTD.
Assistant Chief Executive,Partnerships & Community Engagement Div.,Supplies and Services,384086,Miscellaneous Expenses,07-Apr-2014,2729350,"2,500.00",AYCLIFFE CENTRAL OPEN RESIDENTS NETWORK.
Regeneration & Economic Development,Strategy Programmes and Performance,Supplies and Services,384899,Miscellaneous Expenses,07-Apr-2014,2729353-FEDF008,"5,022.34",BARI TEA LTD.;
Children and Adult Services,Children�s Services,Supplies and Services,338043,Services,07-Apr-2014,2729358-RES-04-2014-022,540.00,BHP LAW..
Children and Adult Services,Head of Adults,Transport,230005,Contract Hire,07-Apr-2014,2729365-0097/3,840.00,BOBBY DOVE.
Regeneration & Economic Development,Economic Development and Housing,Fees,901002,Professional fees,07-Apr-2014,2729368-4168269,518.65,BOND DICKINSON LLP.
Neighbourhood Services,Direct Services,Construction Work,908105,Construction work,07-Apr-2014,2729374-140450,"1,080.00",BRAMBLEDOWN LANDSCAPE SERVICES LTD.
Children and Adult Services,Head of Adults,Transport,230005,Contract Hire,07-Apr-2014,2729376-BZ00096,905.00,BREZ`S TAXIS.
Regeneration & Economic Development,"Spatial Policy, Planning, Assets & Environment",Fees,901002,Professional fees,07-Apr-2014,2729392-93252068,"2,054.50",CAPITA PROPERTY & INFRASTRUCTURE LTD.
Neighbourhood Services,Direct Services,Third Party Payments,430100,Rendered by Private Contractors,07-Apr-2014,2729394-15148,"6,465.94",CARE ABILITY.
Neighbourhood Services,Direct Services,Third Party Payments,430100,Rendered by Private Contractors,07-Apr-2014,2729394-15149,"3,305.65",CARE ABILITY.
Neighbourhood Services,Direct Services,Premises,106082,Centrally Controlled Rep and Maint,07-Apr-2014,2729398-15014,604.85,CATHEDRAL LOCK & SAFE SERVICES LTD.
Children and Adult Services,Children�s Services,Premises,106082,Centrally Controlled Rep and Maint,07-Apr-2014,2729398-15016,610.20,CATHEDRAL LOCK & SAFE SERVICES LTD.
Children and Adult Services,Education,Supplies and Services,338076,Services,07-Apr-2014,2729403-1,"10,500.00",CHILTON COMMUNITY COLLEGE.
Neighbourhood Services,Technical Services,Premises,150015,Apportioned Exps of Operational Blds,07-Apr-2014,2729416-250760,862.47,CLEE HILL PLANT LTD.
Neighbourhood Services,Technical Services,Premises,150015,Apportioned Exps of Operational Blds,07-Apr-2014,2729416-250761,862.47,CLEE HILL PLANT LTD.
Neighbourhood Services,Technical Services,Premises,150015,Apportioned Exps of Operational Blds,07-Apr-2014,2729416-250762,862.47,CLEE HILL PLANT LTD.
Neighbourhood Services,Technical Services,Premises,150015,Apportioned Exps of Operational Blds,07-Apr-2014,2729416-250763,862.47,CLEE HILL PLANT LTD.
Neighbourhood Services,Technical Services,Premises,150015,Apportioned Exps of Operational Blds,07-Apr-2014,2729416-250764,862.47,CLEE HILL PLANT LTD.
Children and Adult Services,Children�s Services,Third Party Payments,479101,Purchase of Care,07-Apr-2014,2729421-3910003211,"33,250.66",CO DURHAM & DARLINGTON NHS FOUNDATION TRUST.
Children and Adult Services,Head of Adults,Transport,230005,Contract Hire,07-Apr-2014,2729425-227,"1,217.40",COLIN HOLMES.
Children and Adult Services,Head of Adults,Transport,230005,Contract Hire,07-Apr-2014,2729426-0001220,650.00,COLORS TAXIS LTD.
Children and Adult Services,Head of Adults,Transport,230005,Contract Hire,07-Apr-2014,2729426-0001222,"1,110.00",COLORS TAXIS LTD.
Children and Adult Services,Head of Adults,Transport,230005,Contract Hire,07-Apr-2014,2729427-SED082/03.14,630.00,COLVIN`S CABS.
Neighbourhood Services,Direct Services,Third Party Payments,430100,Rendered by Private Contractors,07-Apr-2014,2729429-3119/CCS1594,"8,697.50",COMPLETE CLADDING SYSTEMS LTD.
Children and Adult Services,Head of Adults,Transport,230005,Contract Hire,07-Apr-2014,2729431-279,"1,134.00",CONNORS MINI BUSES.
RED HRA,Housing Revenue Account,Supplies and Services,338027,Services,07-Apr-2014,2729450-80001812,"19,701.83",DALE & VALLEY HOMES.
RED HRA,Housing Revenue Account,Third Party Payments,430100,Rendered by Private Contractors,07-Apr-2014,2729450-80001813,"14,921.56",DALE & VALLEY HOMES.
Corporate Resources,I.C.T. Services,Supplies and Services,332029,"Printing, Stationery and Gen Off Exps",07-Apr-2014,2729461-68878,819.50,DESIGN X PRESS LTD.
Regeneration & Economic Development,Strategy Programmes and Performance,Supplies and Services,384899,Miscellaneous Expenses,07-Apr-2014,2729474-FEDF004/02,"1,272.25",DURHAM GIN LTD T/A DURHAM DISTILLERY.
Regeneration & Economic Development,Economic Development and Housing,Supplies and Services,384700,Miscellaneous Expenses,07-Apr-2014,2729475-RED-04-2013-088,"1,000.00",DURHAM PLUMBING SUPPLIES.
Neighbourhood Services,Technical Services,Employees,040149,"Recruitment, Instruction and Training",07-Apr-2014,2729477-0000032660,"1,500.00",EAST DURHAM COLLEGE.
RED HRA,Housing Revenue Account,Transport,235076,Public Transport,07-Apr-2014,2729479-3319,933.12,EAST DURHAM HOMES.
RED HRA,Housing Revenue Account,Third Party Payments,430100,Rendered by Private Contractors,07-Apr-2014,2729479-SINV/00003316,"6,335.88",EAST DURHAM HOMES.
RED HRA,HRA Capital,Construction Work,908105,Construction work,07-Apr-2014,2729479-SINV/00003321,"18,929.25",EAST DURHAM HOMES.
RED HRA,HRA Capital,Construction Work,908105,Construction work,07-Apr-2014,2729479-SINV/00003322,"5,647.62",EAST DURHAM HOMES.
RED HRA,HRA Capital,Construction Work,908105,Construction work,07-Apr-2014,2729479-SINV/00003323,"33,593.23",EAST DURHAM HOMES.
RED HRA,HRA Capital,Construction Work,908105,Construction work,07-Apr-2014,2729479-SINV/00003324,"80,899.63",EAST DURHAM HOMES.
RED HRA,HRA Capital,Construction Work,908105,Construction work,07-Apr-2014,2729479-SINV/00003325,"5,691.91",EAST DURHAM HOMES.
RED HRA,HRA Capital,Construction Work,908105,Construction work,07-Apr-2014,2729479-SINV/00003326,"2,601.60",EAST DURHAM HOMES.
RED HRA,HRA Capital,Construction Work,908105,Construction work,07-Apr-2014,2729479-SINV/00003329,624.00,EAST DURHAM HOMES.
Neighbourhood Services,Direct Services,Supplies and Services,304259,Equipment and Materials,07-Apr-2014,2729480-4031944,"4,114.80",EAST RIDING HORTICULTURE LTD.
Neighbourhood Services,Culture & Sport,Supplies and Services,338099,Services,07-Apr-2014,2729497-272,"2,000.00",EVENTS OF EXCELLENCE LTD.
Assistant Chief Executive,Partnerships & Community Engagement Div.,Supplies and Services,384086,Miscellaneous Expenses,07-Apr-2014,2729500,"6,800.00",FERRYHILL LADDER CENTRE LTD.
Regeneration & Economic Development,Economic Development and Housing,Other Expenses,914001,Other capital expenses,07-Apr-2014,2729506-4003,"70,000.00",FIVE LAMPS ORGANISATION.
Neighbourhood Services,Technical Services,Stock,926900,Stock in hand-Inventory system,07-Apr-2014,2729507-OP/I277973,546.64,FLEMING & CO (MACHINERY) LTD.
Children and Adult Services,Children�s Services,Third Party Payments,425040,Rendered by Voluntary Organisations,07-Apr-2014,2729510-FC014683,"1,180.00",FOSTER CARES LTD.
Children and Adult Services,Children�s Services,Third Party Payments,425040,Rendered by Voluntary Organisations,07-Apr-2014,2729510-FC014702,820.00,FOSTER CARES LTD.
Children and Adult Services,Children�s Services,Third Party Payments,425040,Rendered by Voluntary Organisations,07-Apr-2014,2729510-FC014744,"1,180.00",FOSTER CARES LTD.
Children and Adult Services,Children�s Services,Third Party Payments,425040,Rendered by Voluntary Organisations,07-Apr-2014,2729510-FC014762,820.00,FOSTER CARES LTD.
Neighbourhood Services,Technical Services,Stock,926900,Stock in hand-Inventory system,07-Apr-2014,2729511-/309541,"1,146.60",FRED WILLIAMSON & SONS LTD.
Regeneration & Economic Development,Economic Development and Housing,Supplies and Services,384700,Miscellaneous Expenses,07-Apr-2014,2729513-RED-04-2014-089,"2,000.00",FUTURE LEISURE IN COXHOE (FLIC).
RED HRA,HRA Capital,Construction Work,908105,Construction work,07-Apr-2014,2729518-SIGN/00042404,"173,440.39",GENTOO CONSTRUCTION LTD.
RED HRA,HRA Capital,Construction Work,908105,Construction work,07-Apr-2014,2729518-SIGN/00042622,707.04,GENTOO CONSTRUCTION LTD.
RED HRA,HRA Capital,Construction Work,908105,Construction work,07-Apr-2014,2729518-SIGN/00042623,501.60,GENTOO CONSTRUCTION LTD.
RED HRA,HRA Capital,Construction Work,908105,Construction work,07-Apr-2014,2729518-SIGN/00042625,"1,678.44",GENTOO CONSTRUCTION LTD.
Dedicated Schools Grant,Dedicated Schools Grant,Supplies and Services,384871,Miscellaneous Expenses,07-Apr-2014,2729521-GSACIC/01/00081,"1,645.00",GLOBAL SPORT ACADEMY CIC.
Neighbourhood Services,Technical Services,Supplies and Services,304358,Equipment and Materials,07-Apr-2014,2729524-0000323851,715.50,GO PLANT LTD T/A GPL HIRE.
